Workbook

Sheet Certificación Relación Mensual
A1: IdN | B1: IdX | C1: ACHE | D1: Proc | E1: Num | G1: Meses | H1: 7 | I1: 8 | J1: 9 | K1: 10 | L1: 11 | M1: 12 | N1: 1 | O1: 2 | P1: 3 | Q1: 4 | AC1: 5 | AD1: 6 | AE1: Xornada | AF1: Achega | AG1: Dias | AH1: Contía | AI1: %PPE | AJ1: Diascp | AK1: P.P. Extra | AL1: %CV | AM1: Diascv | AN1: Vacacións | AO1: NÓMINA | AQ1: IT | AR1: Baixa | BQ1: 1 | BR1: 2 | BS1: 3 | BT1: 4 | BU1: 5 | BV1: 6 | BW1: 7 | BX1: 8 | BY1: 9 | BZ1: 10 | CA1: 11 | CB1: 12 | CC1: 13 | CD1: 14 | CE1: 15 | CF1: 16 | CG1: 17 | CH1: 18 | CI1: 19 | CJ1: 20 | CK1: 21 | CL1: 22 | CM1: 23 | CN1: 24 | CO1: 25 | CP1: 26 | CQ1: 27 | CR1: 28 | CS1: =IF(DAY(VALUE(1&"-"&$AT$7&"-"&$AU$7)-1)>28,29,"") -> 29 | CT1: =IF(DAY(VALUE(1&"-"&$AT$7&"-"&$AU$7)-1)>29,30,"") -> 30 | CU1: =IF(DAY(VALUE(1&"-"&$AT$7&"-"&$AU$7)-1)>30,31,"") -> 31 | CV1: Trab. | CW1: Baixa | DD1: inimes | DE1: finmes | DF1: diasnomina | DG1: diasbaixa | DH1: dbaixa | DI1: dalta | DJ1: dbaixaat | DK1: dbaixait | DL1: Dias baixa mes | DM1: Diasconsumidos | DN1: Totdiasbaixa | DO1: ya subv. | DP1: Pedientes | DQ1: DatainiCV | DR1: DiasCV | DS1: filas | DT1: Folla | DU1: Follas | DV1: 1ºS 3 | DW1: resto | DX1: os 12 | DY1: - os 3 1ºS | DZ1: os 12 | EA1: Pago | EB1: Alt | EC1: Baix | ED1: NÓMINA | EE1: Data_nómina
B2: area de impresión | H2: C.E.E. Solicitante | BR2: Decembro | BS2: Xaneiro | BT2: Febreiro | BU2: Marzo | BV2: Abril | BW2: Maio | BX2: Xuño | BY2: Xullo | BZ2: Agosto | CA2: Setembro
B3: de | E3: A1 | H3: DNI/NIF: | P3: NºExp | AM3: Certificación mensual da relación do cadro de persoal c/discapaciade | BR3: 12 | BS3: 1 | BT3: 2 | BU3: 3 | BV3: 4 | BW3: 5 | BX3: 6 | BY3: 7 | BZ3: 8 | CA3: 9 | EV3: =VALUE(1&"-"&$EV$6&"-"&$EW$6)-1 -> 2024-12-31
B4: a | E4: ="AV"&IF(MAXA(B2:B60)=0,11,11+MAXA(B12:B60)) -> AV12 | H4: Nome da persoa representante: | BR4: Decembro | BS4: Xaneiro | BT4: Febreiro | BU4: Marzo | BV4: Abril | BW4: Maio | BX4: Xuño | BY4: Xullo | BZ4: Agosto | CA4: Setembro
H5: Tipo de Axuda: Subvencion para a financiación do custo salarial de todas a persoas traballadoras con discapacidade contratadas en C.E.E. do territorio da Comunadade Autónoma de Galicia | AU5: =VALUE(1&"-"&$AT$7&"-"&$AU$7)-1 -> 2025-01-31 | BI5: S U X E R I D O | BP5: =IF(IFERROR(VLOOKUP(#REF!,$AT$12:$AT$60,1,FALSE),"")="","",1) ->  | EV5: mes | EW5: año
G6: Desde | H6: =IF($AU$5=VALUE(30&"/"&6&"/"&YEAR($AU$5)),"Verán",IF($AU$5=VALUE(31&"/"&12&"/"&YEAR($AU$5)),"Inverno","")) ->  | I6: Data_nómina | N6: 50%SMI | O6: 65%SMI | Q6: Tot | AB6: Tot.P. | AC6: 0 | AD6: 0 | AE6: Programa III: Programa de axudas ao mantemento do custo salarial nos C.E.E. (Procedemento TR341M) | AT6: mes | AU6: ano | BH6: Totais | BI6: Achega Mes | BL6: P.P.Extra | BO6: Vacacións | BQ6: =VALUE(BQ11&"/"&MONTH($AU$5)&"/"&YEAR($AU$5)) -> 2025-01-01 | BR6: 2025-01-02 | BS6: 2025-01-03 | BT6: 2025-01-04 | BU6: 2025-01-05 | BV6: 2025-01-06 | BW6: 2025-01-07 | BX6: 2025-01-08 | BY6: 2025-01-09 | BZ6: 2025-01-10 | CA6: 2025-01-11 | CB6: 2025-01-12 | CC6: 2025-01-13 | CD6: 2025-01-14 | CE6: 2025-01-15 | CF6: 2025-01-16 | CG6: 2025-01-17 | CH6: 2025-01-18 | CI6: 2025-01-19 | CJ6: 2025-01-20 | CK6: 2025-01-21 | CL6: 2025-01-22 | CM6: 2025-01-23 | CN6: 2025-01-24 | CO6: 2025-01-25 | CP6: 2025-01-26 | CQ6: 2025-01-27 | CR6: 2025-01-28 | CS6: 2025-01-29 | CT6: 2025-01-30 | CU6: 2025-01-31 | DJ6: SI(AK13="AT";CO13;0) | DY6: Convenio | EV6: =IF(MONTH(AR7)+1>12,MONTH(AR7)+1-12,MONTH(AR7)+1) -> 1 | EW6: =IF(MONTH(AR7)+1>12,YEAR(AR7)+1,YEAR(AR7)) -> 2025
A7: Novo | C7: Tot. Trab. CEE/RNT | G7: Certificación do cadro de | I7: =VALUE("1/"&HLOOKUP(H8,BR2:CC3,2,FALSE)&"/"&(IF(HLOOKUP(H8,BR2:CDO3,2,FALSE)<12,YEAR(AR7)+1,YEAR(AR7)))) -> 2025-01-01 | K7: Cert.comprobada | M7: Si | N7: =COUNTIFS($J$11:$J$61,P7,$C$11:$C$61,0,$AO$11:$AO$61,"SI") -> 0 | O7: =COUNTIFS($J$11:$J$61,P7,$C$11:$C$61,1,$AO$11:$AO$61,"SI") -> 0 | P7: H | Q7: P.Trab | AB7: Trab. | AD7: =AB8 -> 0 | AE7: Total Achega mes | AH7: =VALUE(SUBTOTAL(109,AH11:AH61)) -> 0 | AI7: P.Extra | AK7: =SUBTOTAL(9,AK12:AK60) -> 0 | AL7: T.c.Vacacións | AN7: =SUBTOTAL(9,AN11:AN61) -> 0 | AP7: Periodo | AR7: 2024-12-01 | AS7: =EDATE(AR7,1)-1 -> 2024-12-31 | AT7: =IF(MONTH(AH8)+1>12,MONTH(AH8)+1-12,MONTH(AH8)+1) -> 2 | AU7: =IF(MONTH(AH8)+1>12,YEAR(AH8)+1,YEAR(AH8)) -> 2025 | BB7: Anexo X | BI7: =SUBTOTAL(9,BI12:BI60) -> 0 | BL7: =SUBTOTAL(9,BL12:BL60) -> 0 | BO7: =SUBTOTAL(9,BO12:BO18060) -> 0 | CX7: IT | CY7: 15
A8: IdX | B8: =MAXA(B12:B73) -> 1 | C8: % Trab. c/discap. | F8: =IFERROR(AH9/F7,0) -> 0 | G8: persoal do mes de | H8: Xaneiro | K8: Calculo correcto? | M8: Si | N8: =COUNTIFS($J$11:$J$61,P8,$C$11:$C$61,0,$AO$11:$AO$61,"SI") -> 0 | O8: =COUNTIFS($J$11:$J$61,P8,$C$11:$C$61,1,$AO$11:$AO$61,"SI") -> 0 | P8: M | Q8: =SUM(N7:O8) -> 0 | AB8: =SUM(N7:O8) -> 0 | AD8: =AB8*180/30 -> 0 | AE8: Ordinaria | AG8: x | AH8: =I7 -> 2025-01-01 | AI8: Semestal | AL8: Tot. Certificación mes de | AP8: Convc.Axudas | AR8: =AS7+1 -> 2025-01-01 | AS8: =EDATE(AR8,9)-1 -> 2025-09-30 | AT8: mes | AU8: ano | CX8: AT | CY8: 1 | DA8: =DY8 -> NON | DY8: =AS9 -> NON | EU8: incio | FG8: fin
A9: =MAXA(A11:A61)+1 -> 1 | C9: G | D9: Cod | E9: Salario mes | AE9: Tot. P. Trab. mes | AH9: =COUNTIF(AO11:AO61,"SI") -> 0 | AK9: Total Anexo X | AL9: =H8 -> Xaneiro | AN9: =AN7+AK7+AH7 -> 0 | AR9: Conv. IT | AS9: NON | BI9: Total Xeral mes de | BK9: =H8 -> Xaneiro | BO9: =BO7+BL7+BI7 -> 0 | CX9: Total | CY9: Días | CZ9: Días | DA9: Días | DC9: =COLUMN() -> 107 | EU9: 7 | EV9: 8 | EW9: 9 | EX9: 10 | EY9: 11 | EZ9: 12 | FA9: 1 | FB9: 2 | FC9: 3 | FD9: 4 | FE9: 5 | FF9: 6
A10: IdX | B10: IdN | E10: Convenio | F10: Nº Rexistro | G10: Traballador | I10: Data | N10: Data | O10: Data | P10: Código | Q10: Tipo | AE10: % | AF10: Tipo | AH10: Achega | AI10: % | AK10: Comp. | AL10: % | AN10: Comp. | AP10: Dias | AQ10: IT | AR10: I T / A T | AT10: Conv | AX10: Xust | AZ10: INF. | BA10: Copia | BB10: Comun. | BC10: Anexo | BF10: Anexo | BG10: % | BH10: Dias | BI10: Achega Mensual | BJ10: % | BK10: Dias | BL10: Comp. | BM10: % | BN10: Dias | BO10: Comp. | BQ10: C | BR10: A | BS10: L | BT10: E | BU10: N | BV10: D | BW10: A | BX10: R | BY10: I | BZ10: O | CB10: D | CC10: E | CE10: T | CF10: R | CG10: A | CH10: B | CI10: A | CJ10: L | CK10: L | CL10: O | CN10: D | CO10: O | CQ10: M | CR10: E | CS10: S | CV10: Días | CW10: Días | CX10: Días | CY10: Baixa | CZ10: Baixa | DA10: Baixa | DV10: tres primeros | EG10: Dias 1º | EH10: 1º Período | EM10: Dias 2º | EN10: 2º Periodo | EU10: =$AR$7 -> 2024-12-01 | EV10: =EU11+1 -> 2025-01-01 | EW10: =EV11+1 -> 2025-02-01 | EX10: 2025-03-01 | EY10: 2025-04-01 | EZ10: 2025-05-01 | FA10: 2025-06-01 | FB10: 2025-07-01 | FC10: 2025-08-01 | FD10: 2025-09-01 | FE10: 2025-10-01 | FF10: 2025-11-01 | FG10: =EU10 -> 2024-12-01 | FH10: =FG11+1 -> 2025-01-01 | FI10: =FH11+1 -> 2025-02-01 | FJ10: 2025-03-01 | FK10: 2025-04-01 | FL10: 2025-05-01 | FM10: 2025-06-01 | FN10: 2025-07-01 | FO10: 2025-08-01 | FP10: 2025-09-01 | FQ10: 2025-10-01 | FR10: 2025-11-01
A11: IdN | B11: IdX | C11: D | D11: RNT | E11: Colectivo | F11: Conv. Colect | G11: (Apelido1 Apelido2, Nome) | H11: N.I.F. | I11: Nacemento | J11: sexo | K11: Discapacidade | L11: Grao | M11: Tipo | N11: Alta | O11: Baixa | P11: Contrato | Q11: Cont | R11: Empresa | S11: NIF | T11: EXP | U11: mes | V11: total | W11: Nomina | X11: trab | Y11: DN | Z11: DA | AA11: DB | AB11: acheg | AC11: Rateo | AD11: +Cont | AE11: Xornada | AF11: Achega | AG11: Días | AH11: Mensual | AI11: Xornada2 | AJ11: Días3 | AK11: P.P. Extra | AL11: Xornada4 | AM11: Días5 | AN11: Vacacións | AO11: Certific | AP11: Absentism | AQ11: AT | AR11: Baixa6 | AS11: Alta | AT11: Baixa7 | AU11: Interindade | AV11: Observacións | AW11: Nómina | AX11: Pago | AY11: TC2 | AZ11: IDC | BA11: Cto | BB11: SEPE | BC11: XI | BD11: IDC8 | BE11: TA2 | BF11: XII | BG11: Xornada9 | BH11: Sux. | BI11: Suxerida | BJ11: Xornada10 | BK11: Columna11 | BL11: P.P. Extra12 | BM11: Xornada13 | BN11: Columna14 | BO11: Vacacións15 | BP11: Columna16 | BQ11: 1 | BR11: 2 | BS11: 3 | BT11: 4 | BU11: 5 | BV11: 6 | BW11: 7 | BX11: 8 | BY11: 9 | BZ11: 10 | CA11: 11 | CB11: 12 | CC11: 13 | CD11: 14 | CE11: 15 | CF11: 16 | CG11: 17 | CH11: 18 | CI11: 19 | CJ11: 20 | CK11: 21 | CL11: 22 | CM11: 23 | CN11: 24 | CO11: 25 | CP11: 26 | CQ11: 27 | CR11: 28 | CS11: 29 | CT11: 30 | CU11: 31 | CV11: Trab. | CW11: Baixa17 | CX11: Baixa18 | CY11: Acum | CZ11: xa sub | DA11: Pend | DB11: 5 | DC11: 5 | DD11: inimes | DE11: finmes | DF11: diasnomina | DG11: diasbaixa | DH11: dbaixa | DI11: dalta | DJ11: dbaixaat | DK11: dbaixait | DL11: Dias baixa mes | DM11: Diasconsumidos | DN11: Totdiasbaixa | DO11: ya subv. | DP11: Pedientes | DQ11: DatainiCV | DR11: DiasCV | DS11: 0 | DV11: 1ºS 3 | DW11: resto | DX11: os 12 | DY11: - os 3 1ºS | DZ11: os 12 | EA11: Pago | EB11: Alt | EC11: Baix | ED11: Certific | EE11: Data_nómina | EG11: Periodo | EH11: 7 | EI11: 8 | EJ11: 9 | EK11: 10 | EL11: 11 | EM11: Periodo | EN11: 12 | EO11: 1 | EP11: 2 | EQ11: 3 | ER11: 4 | ES11: 5 | ET11: 6 | EU11: =(1&"/"&IF(MONTH(EU10)+1>12,12-MONTH(EU10)+1,(MONTH(EU10)+1)&"/"&IF(MONTH(EU10)+1>12,YEAR(EU10)+1,YEAR(EU10))))-1 -> 2024-12-31 | EV11: =(1&"/"&IF(MONTH(EV10)+1>12,12-MONTH(EV10)+1,(MONTH(EV10)+1)&"/"&IF(MONTH(EV10)+1>12,YEAR(EV10)+1,YEAR(EV10))))-1 -> 2025-01-31 | EW11: =(1&"/"&IF(MONTH(EW10)+1>12,12-MONTH(EW10)+1,(MONTH(EW10)+1)&"/"&IF(MONTH(EW10)+1>12,YEAR(EW10)+1,YEAR(EW10))))-1 -> 2025-02-28 | EX11: 2025-03-31 | EY11: 2025-04-30 | EZ11: =EOMONTH(EY10,1) -> 2025-05-31 | FA11: 2025-06-30 | FB11: 2025-07-31 | FC11: 2025-08-31 | FD11: 2025-09-30 | FE11: 2025-10-31 | FF11: 2025-11-30 | FG11: =(1&"/"&IF(MONTH(FG10)+1>12,12-MONTH(FG10)+1,(MONTH(FG10)+1)&"/"&IF(MONTH(FG10)+1>12,YEAR(FG10)+1,YEAR(FG10))))-1 -> 2024-12-31 | FH11: =(1&"/"&IF(MONTH(FH10)+1>12,12-MONTH(FH10)+1,(MONTH(FH10)+1)&"/"&IF(MONTH(FH10)+1>12,YEAR(FH10)+1,YEAR(FH10))))-1 -> 2025-01-31 | FI11: =(1&"/"&IF(MONTH(FI10)+1>12,12-MONTH(FI10)+1,(MONTH(FI10)+1)&"/"&IF(MONTH(FI10)+1>12,YEAR(FI10)+1,YEAR(FI10))))-1 -> 2025-02-28 | FJ11: 2025-03-31 | FK11: 2025-04-30 | FL11: =EOMONTH(FK10,1) -> 2025-05-31 | FM11: 2025-06-30 | FN11: 2025-07-31 | FO11: 2025-08-31 | FP11: 2025-09-30 | FQ11: 2025-10-31 | FR11: 2025-11-30
B12: 1 | C12: =IF(AND(K12="",L12=""),"",IF(L12>=65,1,IF(AND(L12>=33,OR(K12="P. Cerebral",K12="Enf. Mental",K12="D. Intelectual",K12="Psíquica")),1,0))) ->  | D12: =IFERROR(MID(G12,1,2)&(MID(G12,FIND(" ",G12,1)+1,2))&IFERROR((MID(G12,FIND(",",G12,1)+2,1)),MID(G12,FIND(" ",G12,FIND(" ",G12,1)+1)+1,1)),"") ->  | Q12: =IFERROR(VLOOKUP(P12,Importes!L:Q,2,FALSE),"") ->  | R12: =IF(G12="","",$M$4) ->  | S12: =IF(G12="","",#REF!) ->  | T12: =IF(G12="","",#REF!) ->  | U12: =IF(G12="","",IF($AH$8="Extra Inverno","1/12/2016",IF($AH$8="Extra Verán","1/6/2017",$AH$8))) ->  | V12: =IF(G12="","",$AN$9) ->  | W12: =IF(G12="","",IF($AG$8="x","Mensualidade",IF(AND($AG$8="",#REF!="x",$AH$8=DATE(YEAR($CU$7),12,1)),"Extra Inverno",IF(AND($AG$8="",#REF!="x",$AH$8=DATE(YEAR($CV$8),6,1)),"Extra Verán","")))) ->  | X12: =$AH$9 -> 0 | Y12: =IF(I12="","",DAY(I12)&"/"&MONTH(I12)&"/"&YEAR(I12)) ->  | Z12: =IF(N12="","",DAY(N12)&"/"&MONTH(N12)&"/"&YEAR(N12)) ->  | AA12: =IF(O12="","",DAY(O12)&"/"&MONTH(O12)&"/"&YEAR(O12)) ->  | AB12: =MID(AF12,1,4) -> AM+E | AC12: Si | AD12: 1 | AF12: =IF(AC12="Non","AM+e","AM+E") -> AM+E | AG12: =IFERROR(IF(AF12="AM",DF12-AP12,IF(AF12="AM+E",DF12-AP12,IF(AF12="CP",DR12-AP12,IF(AF12="CV",DR12-AP12,IF(AF12="CV+E",DR12-AP12))))),0) -> 0 | AH12: =IFERROR(IF(OR(AD12="+CT",AF12=""),0,ROUND(IF(MOD(AG12,30)=0,QUOTIENT(AG12,30)*VLOOKUP(C12&AF12,Importes!$A$2:$I$14,IF(MONTH($I$7)=12,6,9),FALSE)*(IF($AE12>100,0,$AE12)/100),AG12*VLOOKUP(C12&AF12,Importes!$A$2:$I$14,IF(MONTH($I$7)=12,5,8),FALSE)*(IF($AE12>100,0,$AE12)/100)),2)),0) -> 0 | AI12: =IFERROR(IF(AJ12="","",AE12),"") ->  | AJ12: =IFERROR(IF($M$8="Si",BK12,""),"") ->  | AK12: =IFERROR(IF(AJ12="","",IF(AJ12<180,AJ12*VLOOKUP(#REF!&"CP",Importes!$A$2:$F$14,5,FALSE)*(IF($AI12>100,0,$AI12)/100),IF(AJ12=180,VLOOKUP(#REF!&"CP",Importes!$A$2:$F$14,6,FALSE)*6*(IF($AI12>100,0,$AI12)/100),0))),0) ->  | AL12: =IFERROR(IF(AM12="","",AE12),"") ->  | AM12: =IFERROR(IF($M$8="Si",BN12,""),"") ->  | AN12: =IF(AM12="","",IF(AM12>0,ROUND(IF(MOD(AM12,30)=0,QUOTIENT(AM12,30)*VLOOKUP(C12&IF(AC12="Si","AM+E","AM"),Importes!$A$2:$I$14,IF(MONTH($I$7)=12,6,9),FALSE)*(IF($AL12>100,0,$AL12)/100),AM12*VLOOKUP(C12&IF(AC12="Si","AM+E","AM"),Importes!$A$2:$I$14,IF(MONTH($I$7)=12,5,8),FALSE)*(IF($AL12>100,0,$AL12)/100)),2),0)) ->  | AO12: =IFERROR(IF(ED12="NO","",ED12),"") ->  | AR12: =IF(AQ12="IT",N12,IF(AQ12="AT",N12,"")) ->  | AS12: =IF(AND(AR12<>"",O12>0),O12,"") ->  | AT12: Non | AW12: =IF($AH12>0,"X","") ->  | BG12: 81.3 | BH12: =IFERROR(IF(AF12="AM",DF12,IF(AF12="AM+E",DF12,IF(AF12="CP",#REF!,IF(AF12="CV",DR12,IF(AF12="CV+E",DR12))))),0) -> 0 | BI12: =IFERROR(IF(OR(AD12="+CT",AF12=""),0,ROUND(IF(MOD(AG12,30)=0,QUOTIENT(AG12,30)*VLOOKUP(#REF!&AF12,Importes!$A$2:$F$14,6,FALSE)*(IF($AE12>100,0,$AE12)/100),AG12*VLOOKUP(#REF!&AF12,Importes!$A$2:$F$14,5,FALSE)*(IF($AE12>100,0,$AE12)/100)),2)),0) -> 0 | BJ12: =IFERROR(IF(BK12="","",BG12),"") ->  | BK12: =IFERROR(ROUND(IF($AI$8="Anual",0.5,1)*IF(AND(AF12="AM",OR(EA12="ALINT",EA12="AL")),#REF!,IF(AND(AF12="AM",#REF!="x"),#REF!,"")),0),"") ->  | BL12: =IF(AJ12="","",IF(AJ12>0,ROUND(IF(MOD(AJ12,30)=0,QUOTIENT(AJ12,30)*VLOOKUP(#REF!&"CP",Importes!$A$2:$F$14,6,FALSE)*(IF($BG12>100,0,$BG12)/100),BK12*VLOOKUP(#REF!&"CP",Importes!$A$2:$F$14,5,FALSE)*(IF($BG12>100,0,$BG12)/100)),2),0)) ->  | BM12: =IFERROR(IF(BN12="","",BG12),"") ->  | BN12: =IFERROR(IF(OR(EA12="ALINT",EA12="AL"),DR12,""),"") ->  | BO12: =IF(AM12="","",IF(AM12>0,ROUND(IF(MOD(AM12,30)=0,QUOTIENT(AM12,30)*VLOOKUP(#REF!&IF(AC12="Si","AM+E","AM"),Importes!$A$2:$F$14,6,FALSE)*(IF($BG12>100,0,$BG12)/100),AM12*VLOOKUP(#REF!&IF(AC12="Si","AM+E","AM"),Importes!$A$2:$F$14,5,FALSE)*(IF($BG12>100,0,$BG12)/100)),2),0)) ->  | BP12: =IF(IFERROR(VLOOKUP(H12,$AU$12:$AU$60,1,FALSE),"")="","",1) ->  | BQ12: =IF(VALUE($A12)=0,"",IF(BQ$11="","",IF($O12<BQ$6,"",IF($N12>BQ$6,"",IF(AND(OR($O12="",$O12>=BQ$6),$AR12="",$AF12<>""),"F",IF(AND($AR12<=BQ$6,OR($AS12=$O12,$AS12>=BQ$6,IF($AS12="",$AU$5))),"h",IF($DE12>=BQ$6,"F",""))))))) ->  | CA12: =IF(VALUE($A12)=0,"",IF(CA$11="","",IF($O12<CA$6,"",IF($N12>CA$6,"",IF(AND(OR($O12="",$O12>=CA$6),$AR12="",$AF12<>""),"F",IF(AND($AR12<=CA$6,OR($AS12=$O12,$AS12>=CA$6,IF($AS12="",$AU$5))),"h",IF($DE12>=CA$6,"F",""))))))) ->  | CK12: =IF(VALUE($A12)=0,"",IF(CK$11="","",IF($O12<CK$6,"",IF($N12>CK$6,"",IF(AND(OR($O12="",$O12>=CK$6),$AR12="",$AF12<>""),"F",IF(AND($AR12<=CK$6,OR($AS12=$O12,$AS12>=CK$6,IF($AS12="",$AU$5))),"h",IF($DE12>=CK$6,"F",""))))))) ->  | CV12: =IF(COUNTIF(BP12:CU12,"F")=0,0,COUNTIF(BP12:CU12,"F")) -> 0 | CW12: =IF(COUNTIF(BP12:CU12,"h")=0,0,COUNTIF(BP12:CU12,"h")) -> 0 | CX12: =IF(OR(AQ12="IT",AQ12="AT"),DI12+1-(DH12),0) -> 0 | CY12: =IF(AQ12="AT",1,IF(IF(AQ12="IT",DI12+1-(DH12),0)>15,15,IF(AQ12="IT",DI12+1-(DH12),0))) -> 0 | CZ12: =IF(AQ12="IT",IF(CX12-CW12>15,15,CX12-CW12),IF(AQ12="AT",IF(CX12-CW12>1,1,CX12-CW12),0)) -> 0 | DA12: =IF(OR(AT12="SI",$DA$8="SI"),CY12-CZ12,IF(AND(AT12<>"SI",OR($DA$8="NON",$DA$8="<<>>")),IF(CZ12<=3,IF(CY12-CZ12-3<=0,IF(AQ12="AT",IF(CZ12=1,0,1),0),CY12-CZ12-(3-CZ12)),CY12-CZ12),0)) -> 0 | DB12: =IF(COLUMN()>0,5,5) -> 5 | DC12: 5 | DD12: =IF(N12<$AH$8,$AH$8,N12) -> 2025-01-01 | DE12: =IF(O12="",$AU$5,O12) -> 2025-01-31 | DF12: =IF(CV12+DG12>30,30,IF(AND(MONTH($I$7)=2,CV12>=DAY($AU$5),OR(AR12="",AR12<=$I$7)),30,IF(CV12+DA12>30,30,CV12+DA12))) -> 0 | DG12: =DP12 -> 0 | DH12: =IF(AQ12="at",IF(DJ12<$AR$7,DJ12,IF(DJ12<$AH$8,$AH$8-1,DJ12)),DK12) -> 2025-01-01 | DI12: =IF(OR(AS12="",AS12>$AU$5),IF(O12="",$AU$5,IF(O12>$AU$5,$AU$5,O12)),AS12) -> 2025-01-31 | DJ12: =IF(AQ12="AT",DK12,0) -> 00:00:00 | DK12: =IF(IF(AR12="",0,AR12)+3=3,VALUE(1&"-"&1&"-"&$AU$7),AR12) -> 2025-01-01 | DL12: =CW12 -> 0 | DM12: =IF(OR(AQ12="IT",AQ12="AT"),IF(DH12<DD12,DD12-(DH12),0),0) -> 0 | DN12: =IF(OR(AQ12="IT",AQ12="AT"),DI12+1-(DH12),0) -> 0 | DO12: =IF(OR(AQ12="IT",AQ12="AT"),IF(DM12>=15,12,IF(DM12<15,DM12,DM12-3)),0) -> 0 | DP12: =IF(AND(AQ12="AT",DN12-DL12=0),1,IF(AQ12="IT",DZ12,0)) -> 0 | DQ12: =IF(N12<VALUE(1&"-"&1&"-"&IF(YEAR($AU$5)<$AU$7,YEAR($AU$5),$AU$7)),VALUE(1&"-"&1&"-"&IF(YEAR($AU$5)<$AU$7,YEAR($AU$5),$AU$7)),N12) -> 2025-01-01 | DR12: =IF(O12="",0,(DAYS360(DQ12,O12)+1)/30*2.5) -> 0 | DS12: =IFERROR(DS11+IF(EE12=$I$7,1,0),0) -> 0 | DT12: =IF(DS12="","",IF(MOD(DS12,10)=0,QUOTIENT(DS12,10),QUOTIENT(DS12,10)+1)) -> 0 | DU12: =QUOTIENT(COUNTIF(EE:EE,$I$7),10)+IF(MOD(COUNTIF(EE:EE,$I$7),10)>0,1,0) -> 0 | DV12: =IF(DO12>=3,3,DO12) -> 0 | DW12: =IF(OR($DY$8="SI",$AT12="SI"),DV12,3-DV12) -> 3 | DX12: =IF(DM12>15,IF(OR($DY$8="SI",$AT12="SI"),15,12),IF(OR($DY$8="SI",$AT12="SI"),DM12,DM12-DV12)) -> 0 | DY12: =IF(DN12-DW12-DV12<0,0,IF(DN12-DW12-DV12>12,IF(OR($DY$8="SI",$AT12="SI"),15,12),IF(DN12-DW12-DV12>CW12,CW12-DW12,DN12-DW12-DV12))) -> 0 | DZ12: =IF(DY12-DX12>=IF(OR($DY$8="SI",$AT12="SI"),15,12),IF(OR($DY$8="SI",$AT12="SI"),15,12),DY12-DX12) -> 0 | EA12: =EB12&EC12&IF(OR(P12=510,P12=410),"INT","") -> AA | EB12: =IF(YEAR(N12)<YEAR($I$7),"A",IF(YEAR(N12)=YEAR($I$7),IF(MONTH(N12)<=MONTH($I$7),"A","NO"))) -> A | EC12: =IF(O12="","A",IF(YEAR(O12)>YEAR($I$7),"A",IF(YEAR(O12)=YEAR($I$7),IF(MONTH(O12)>MONTH($I$7),"A",IF(MONTH(O12)=MONTH($I$7),"L","B"))))) -> A | ED12: =IFERROR(IF(M12<33,"NO",IF(OR(EA12="AA",EA12="AL"),"SI",IF(OR(EA12="AAINT",EA12="ALINT"),"SI"))),"") -> NO | EE12: =IFERROR(IF(ED12="SI",$I$7,""),0) ->  | EG12: =IFERROR(SUM(EH12:EL12),0) -> 148 | EH12: =IF(OR(EU12=0,FG12=0),0,IF(FG12-EU12+1>30,30,FG12-EU12+1)) -> 30 | EI12: =IF(OR(EV12=0,FH12=0),0,IF(FH12-EV12+1>30,30,FH12-EV12+1)) -> 30 | EJ12: =IF(OR(EW12=0,FI12=0),0,IF(FI12-EW12+1>30,30,FI12-EW12+1)) -> 28 | EK12: =IF(OR(EX12=0,FJ12=0),0,IF(FJ12-EX12+1>30,30,FJ12-EX12+1)) -> 30 | EL12: =IF(OR(EY12=0,FK12=0),0,IF(FK12-EY12+1>30,30,FK12-EY12+1)) -> 30 | EM12: =IFERROR(SUM(EN12:ET12),0) -> 210 | EN12: =IF(OR(EZ12=0,FL12=0),0,IF(FL12-EZ12+1>30,30,FL12-EZ12+1)) -> 30 | EO12: =IF(OR(FA12=0,FM12=0),0,IF(FM12-FA12+1>30,30,FM12-FA12+1)) -> 30 | EP12: =IF(IF(OR(FB12=0,FN12=0),0,IF(FN12-FB12+1>30,30,FN12-FB12+1))>=28,30,IF(OR(FB12=0,FN12=0),0,IF(FN12-FB12+1>30,30,FN12-FB12+1))) -> 30 | EQ12: =IF(OR(FC12=0,FO12=0),0,IF(FO12-FC12+1>30,30,FO12-FC12+1)) -> 30 | ER12: =IF(OR(FD12=0,FP12=0),0,IF(FP12-FD12+1>30,30,FP12-FD12+1)) -> 30 | ES12: =IF(OR(FE12=0,FQ12=0),0,IF(FQ12-FE12+1>30,30,FQ12-FE12+1)) -> 30 | ET12: =IF(OR(FF12=0,FR12=0),0,IF(FR12-FF12+1>30,30,FR12-FF12+1)) -> 30 | EU12: =IFERROR(IF($N12<=EU$11,1,IF(YEAR($N12)=YEAR(EU$11),IF(MONTH($N12)=MONTH(EU$11),DAY($N12),0))),0) -> 1 | EV12: 1 | EW12: 1 | EX12: 1 | EY12: 1 | EZ12: 1 | FA12: 1 | FB12: 1 | FC12: 1 | FD12: 1 | FE12: 1 | FF12: 1 | FG12: =IFERROR(IF(OR($O12="",$O12=0),DAY(FG$11),IF($O12>=FG$11,DAY(FG$11),IF(MONTH($O12)=MONTH(FG$11),DAY($O12),0))),0) -> 31 | FH12: 31 | FI12: 28 | FJ12: 31 | FK12: 30 | FL12: 31 | FM12: 30 | FN12: 31 | FO12: 31 | FP12: 30 | FQ12: 31 | FR12: 30
B13: 1 | C13: =IF(AND(K13="",L13=""),"",IF(L13>=65,1,IF(AND(L13>=33,OR(K13="P. Cerebral",K13="Enf. Mental",K13="D. Intelectual",K13="Psíquica")),1,0))) ->  | D13: =IFERROR(MID(G13,1,2)&(MID(G13,FIND(" ",G13,1)+1,2))&IFERROR((MID(G13,FIND(",",G13,1)+2,1)),MID(G13,FIND(" ",G13,FIND(" ",G13,1)+1)+1,1)),"") ->  | Q13: =IFERROR(VLOOKUP(P13,Importes!L:Q,2,FALSE),"") ->  | R13: =IF(G13="","",$M$4) ->  | S13: =IF(G13="","",#REF!) ->  | T13: =IF(G13="","",#REF!) ->  | U13: =IF(G13="","",IF($AH$8="Extra Inverno","1/12/2016",IF($AH$8="Extra Verán","1/6/2017",$AH$8))) ->  | V13: =IF(G13="","",$AN$9) ->  | W13: =IF(G13="","",IF($AG$8="x","Mensualidade",IF(AND($AG$8="",#REF!="x",$AH$8=DATE(YEAR($CU$7),12,1)),"Extra Inverno",IF(AND($AG$8="",#REF!="x",$AH$8=DATE(YEAR($CV$8),6,1)),"Extra Verán","")))) ->  | X13: 0 | Y13: =IF(I13="","",DAY(I13)&"/"&MONTH(I13)&"/"&YEAR(I13)) ->  | Z13: =IF(N13="","",DAY(N13)&"/"&MONTH(N13)&"/"&YEAR(N13)) ->  | AA13: =IF(O13="","",DAY(O13)&"/"&MONTH(O13)&"/"&YEAR(O13)) ->  | AB13: =MID(AF13,1,4) -> AM+E | AC13: Si | AD13: 1 | AF13: =IF(AC13="Non","AM+e","AM+E") -> AM+E | AG13: =IFERROR(IF(AF13="AM",DF13-AP13,IF(AF13="AM+E",DF13-AP13,IF(AF13="CP",DR13-AP13,IF(AF13="CV",DR13-AP13,IF(AF13="CV+E",DR13-AP13))))),0) -> 0 | AH13: =IFERROR(IF(OR(AD13="+CT",AF13=""),0,ROUND(IF(MOD(AG13,30)=0,QUOTIENT(AG13,30)*VLOOKUP(C13&AF13,Importes!$A$2:$I$14,IF(MONTH($I$7)=12,6,9),FALSE)*(IF($AE13>100,0,$AE13)/100),AG13*VLOOKUP(C13&AF13,Importes!$A$2:$I$14,IF(MONTH($I$7)=12,5,8),FALSE)*(IF($AE13>100,0,$AE13)/100)),2)),0) -> 0 | AI13: =IFERROR(IF(AJ13="","",AE13),"") ->  | AJ13: =IFERROR(IF($M$8="Si",BK13,""),"") ->  | AK13: =IFERROR(IF(AJ13="","",IF(AJ13<180,AJ13*VLOOKUP(#REF!&"CP",Importes!$A$2:$F$14,5,FALSE)*(IF($AI13>100,0,$AI13)/100),IF(AJ13=180,VLOOKUP(#REF!&"CP",Importes!$A$2:$F$14,6,FALSE)*6*(IF($AI13>100,0,$AI13)/100),0))),0) ->  | AL13: =IFERROR(IF(AM13="","",AE13),"") ->  | AM13: =IFERROR(IF($M$8="Si",BN13,""),"") ->  | AN13: =IF(AM13="","",IF(AM13>0,ROUND(IF(MOD(AM13,30)=0,QUOTIENT(AM13,30)*VLOOKUP(C13&IF(AC13="Si","AM+E","AM"),Importes!$A$2:$I$14,IF(MONTH($I$7)=12,6,9),FALSE)*(IF($AL13>100,0,$AL13)/100),AM13*VLOOKUP(C13&IF(AC13="Si","AM+E","AM"),Importes!$A$2:$I$14,IF(MONTH($I$7)=12,5,8),FALSE)*(IF($AL13>100,0,$AL13)/100)),2),0)) ->  | AO13: =IFERROR(IF(ED13="NO","",ED13),"") ->  | AR13: =IF(AQ13="IT",N13,IF(AQ13="AT",N13,"")) ->  | AS13: =IF(AND(AR13<>"",O13>0),O13,"") ->  | AT13: Non | BG13: 81.3 | BH13: =IFERROR(IF(AF13="AM",DF13,IF(AF13="AM+E",DF13,IF(AF13="CP",#REF!,IF(AF13="CV",DR13,IF(AF13="CV+E",DR13))))),0) -> 0 | BI13: =IFERROR(IF(OR(AD13="+CT",AF13=""),0,ROUND(IF(MOD(AG13,30)=0,QUOTIENT(AG13,30)*VLOOKUP(#REF!&AF13,Importes!$A$2:$F$14,6,FALSE)*(IF($AE13>100,0,$AE13)/100),AG13*VLOOKUP(#REF!&AF13,Importes!$A$2:$F$14,5,FALSE)*(IF($AE13>100,0,$AE13)/100)),2)),0) -> 0 | BJ13: =IFERROR(IF(BK13="","",BG13),"") ->  | BK13: =IFERROR(ROUND(IF($AI$8="Anual",0.5,1)*IF(AND(AF13="AM",OR(EA13="ALINT",EA13="AL")),#REF!,IF(AND(AF13="AM",#REF!="x"),#REF!,"")),0),"") ->  | BL13: =IF(AJ13="","",IF(AJ13>0,ROUND(IF(MOD(AJ13,30)=0,QUOTIENT(AJ13,30)*VLOOKUP(#REF!&"CP",Importes!$A$2:$F$14,6,FALSE)*(IF($BG13>100,0,$BG13)/100),BK13*VLOOKUP(#REF!&"CP",Importes!$A$2:$F$14,5,FALSE)*(IF($BG13>100,0,$BG13)/100)),2),0)) ->  | BM13: =IFERROR(IF(BN13="","",BG13),"") ->  | BN13: =IFERROR(IF(OR(EA13="ALINT",EA13="AL"),DR13,""),"") ->  | BO13: =IF(AM13="","",IF(AM13>0,ROUND(IF(MOD(AM13,30)=0,QUOTIENT(AM13,30)*VLOOKUP(#REF!&IF(AC13="Si","AM+E","AM"),Importes!$A$2:$F$14,6,FALSE)*(IF($BG13>100,0,$BG13)/100),AM13*VLOOKUP(#REF!&IF(AC13="Si","AM+E","AM"),Importes!$A$2:$F$14,5,FALSE)*(IF($BG13>100,0,$BG13)/100)),2),0)) ->  | BP13: =IF(IFERROR(VLOOKUP(H13,$AU$12:$AU$60,1,FALSE),"")="","",1) ->  | CV13: =IF(COUNTIF(BP13:CU13,"F")=0,0,COUNTIF(BP13:CU13,"F")) -> 0 | CW13: =IF(COUNTIF(BP13:CU13,"h")=0,0,COUNTIF(BP13:CU13,"h")) -> 0 | CX13: =IF(OR(AQ13="IT",AQ13="AT"),DI13+1-(DH13),0) -> 0 | CY13: =IF(AQ13="AT",1,IF(IF(AQ13="IT",DI13+1-(DH13),0)>15,15,IF(AQ13="IT",DI13+1-(DH13),0))) -> 0 | CZ13: =IF(AQ13="IT",IF(CX13-CW13>15,15,CX13-CW13),IF(AQ13="AT",IF(CX13-CW13>1,1,CX13-CW13),0)) -> 0 | DA13: =IF(OR(AT13="SI",$DA$8="SI"),CY13-CZ13,IF(AND(AT13<>"SI",OR($DA$8="NON",$DA$8="<<>>")),IF(CZ13<=3,IF(CY13-CZ13-3<=0,IF(AQ13="AT",IF(CZ13=1,0,1),0),CY13-CZ13-(3-CZ13)),CY13-CZ13),0)) -> 0 | DB13: 5 | DC13: 5 | DD13: =IF(N13<$AH$8,$AH$8,N13) -> 2025-01-01 | DE13: =IF(O13="",$AU$5,O13) -> 2025-01-31 | DF13: =IF(CV13+DG13>30,30,IF(AND(MONTH($I$7)=2,CV13>=DAY($AU$5),OR(AR13="",AR13<=$I$7)),30,IF(CV13+DA13>30,30,CV13+DA13))) -> 0 | DG13: =DP13 -> 0 | DH13: =IF(AQ13="at",IF(DJ13<$AR$7,DJ13,IF(DJ13<$AH$8,$AH$8-1,DJ13)),DK13) -> 2025-01-01 | DI13: =IF(OR(AS13="",AS13>$AU$5),IF(O13="",$AU$5,IF(O13>$AU$5,$AU$5,O13)),AS13) -> 2025-01-31 | DJ13: =IF(AQ13="AT",DK13,0) -> 00:00:00 | DK13: =IF(IF(AR13="",0,AR13)+3=3,VALUE(1&"-"&1&"-"&$AU$7),AR13) -> 2025-01-01 | DL13: =CW13 -> 0 | DM13: =IF(OR(AQ13="IT",AQ13="AT"),IF(DH13<DD13,DD13-(DH13),0),0) -> 0 | DN13: =IF(OR(AQ13="IT",AQ13="AT"),DI13+1-(DH13),0) -> 0 | DO13: =IF(OR(AQ13="IT",AQ13="AT"),IF(DM13>=15,12,IF(DM13<15,DM13,DM13-3)),0) -> 0 | DP13: =IF(AND(AQ13="AT",DN13-DL13=0),1,IF(AQ13="IT",DZ13,0)) -> 0 | DQ13: =IF(N13<VALUE(1&"-"&1&"-"&IF(YEAR($AU$5)<$AU$7,YEAR($AU$5),$AU$7)),VALUE(1&"-"&1&"-"&IF(YEAR($AU$5)<$AU$7,YEAR($AU$5),$AU$7)),N13) -> 2025-01-01 | DR13: =IF(O13="",0,(DAYS360(DQ13,O13)+1)/30*2.5) -> 0 | DS13: =IFERROR(DS12+IF(EE13=$I$7,1,0),0) -> 0 | DT13: =IF(DS13="","",IF(MOD(DS13,10)=0,QUOTIENT(DS13,10),QUOTIENT(DS13,10)+1)) -> 0 | DU13: =QUOTIENT(COUNTIF(EE:EE,$I$7),10)+IF(MOD(COUNTIF(EE:EE,$I$7),10)>0,1,0) -> 0 | DV13: =IF(DO13>=3,3,DO13) -> 0 | DW13: =IF(OR($DY$8="SI",$AT13="SI"),DV13,3-DV13) -> 3 | DX13: =IF(DM13>15,IF(OR($DY$8="SI",$AT13="SI"),15,12),IF(OR($DY$8="SI",$AT13="SI"),DM13,DM13-DV13)) -> 0 | DY13: =IF(DN13-DW13-DV13<0,0,IF(DN13-DW13-DV13>12,IF(OR($DY$8="SI",$AT13="SI"),15,12),IF(DN13-DW13-DV13>CW13,CW13-DW13,DN13-DW13-DV13))) -> 0 | DZ13: =IF(DY13-DX13>=IF(OR($DY$8="SI",$AT13="SI"),15,12),IF(OR($DY$8="SI",$AT13="SI"),15,12),DY13-DX13) -> 0 | EA13: =EB13&EC13&IF(OR(P13=510,P13=410),"INT","") -> AA | EB13: =IF(YEAR(N13)<YEAR($I$7),"A",IF(YEAR(N13)=YEAR($I$7),IF(MONTH(N13)<=MONTH($I$7),"A","NO"))) -> A | EC13: =IF(O13="","A",IF(YEAR(O13)>YEAR($I$7),"A",IF(YEAR(O13)=YEAR($I$7),IF(MONTH(O13)>MONTH($I$7),"A",IF(MONTH(O13)=MONTH($I$7),"L","B"))))) -> A | ED13: =IFERROR(IF(M13<33,"NO",IF(OR(EA13="AA",EA13="AL"),"SI",IF(OR(EA13="AAINT",EA13="ALINT"),"SI"))),"") -> NO | EE13: =IFERROR(IF(ED13="SI",$I$7,""),0) ->  | EG13: =IFERROR(SUM(EH13:EL13),0) -> 148 | EH13: =IF(OR(EU13=0,FG13=0),0,IF(FG13-EU13+1>30,30,FG13-EU13+1)) -> 30 | EI13: =IF(OR(EV13=0,FH13=0),0,IF(FH13-EV13+1>30,30,FH13-EV13+1)) -> 30 | EJ13: =IF(OR(EW13=0,FI13=0),0,IF(FI13-EW13+1>30,30,FI13-EW13+1)) -> 28 | EK13: =IF(OR(EX13=0,FJ13=0),0,IF(FJ13-EX13+1>30,30,FJ13-EX13+1)) -> 30 | EL13: =IF(OR(EY13=0,FK13=0),0,IF(FK13-EY13+1>30,30,FK13-EY13+1)) -> 30 | EM13: =IFERROR(SUM(EN13:ET13),0) -> 210 | EN13: =IF(OR(EZ13=0,FL13=0),0,IF(FL13-EZ13+1>30,30,FL13-EZ13+1)) -> 30 | EO13: =IF(OR(FA13=0,FM13=0),0,IF(FM13-FA13+1>30,30,FM13-FA13+1)) -> 30 | EP13: =IF(IF(OR(FB13=0,FN13=0),0,IF(FN13-FB13+1>30,30,FN13-FB13+1))>=28,30,IF(OR(FB13=0,FN13=0),0,IF(FN13-FB13+1>30,30,FN13-FB13+1))) -> 30 | EQ13: =IF(OR(FC13=0,FO13=0),0,IF(FO13-FC13+1>30,30,FO13-FC13+1)) -> 30 | ER13: =IF(OR(FD13=0,FP13=0),0,IF(FP13-FD13+1>30,30,FP13-FD13+1)) -> 30 | ES13: =IF(OR(FE13=0,FQ13=0),0,IF(FQ13-FE13+1>30,30,FQ13-FE13+1)) -> 30 | ET13: =IF(OR(FF13=0,FR13=0),0,IF(FR13-FF13+1>30,30,FR13-FF13+1)) -> 30 | EU13: 1 | EV13: 1 | EW13: 1 | EX13: 1 | EY13: 1 | EZ13: 1 | FA13: 1 | FB13: 1 | FC13: 1 | FD13: 1 | FE13: 1 | FF13: 1 | FG13: 31 | FH13: 31 | FI13: 28 | FJ13: 31 | FK13: 30 | FL13: 31 | FM13: 30 | FN13: 31 | FO13: 31 | FP13: 30 | FQ13: 31 | FR13: 30
B14: 1 | Q14: =IFERROR(VLOOKUP(P14,Importes!L:Q,2,FALSE),"") ->  | R14: =IF(G14="","",$M$4) ->  | S14: =IF(G14="","",#REF!) ->  | T14: =IF(G14="","",#REF!) ->  | W14: =IF(G14="","",IF($AG$8="x","Mensualidade",IF(AND($AG$8="",#REF!="x",$AH$8=DATE(YEAR($CU$7),12,1)),"Extra Inverno",IF(AND($AG$8="",#REF!="x",$AH$8=DATE(YEAR($CV$8),6,1)),"Extra Verán","")))) ->  | X14: 0 | AB14: AM+E | AC14: Si | AD14: 1 | AF14: AM+E | AG14: 0 | AH14: =IFERROR(IF(OR(AD14="+CT",AF14=""),0,ROUND(IF(MOD(AG14,30)=0,QUOTIENT(AG14,30)*VLOOKUP(C14&AF14,Importes!$A$2:$I$14,IF(MONTH($I$7)=12,6,9),FALSE)*(IF($AE14>100,0,$AE14)/100),AG14*VLOOKUP(C14&AF14,Importes!$A$2:$I$14,IF(MONTH($I$7)=12,5,8),FALSE)*(IF($AE14>100,0,$AE14)/100)),2)),0) -> 0 | AK14: =IFERROR(IF(AJ14="","",IF(AJ14<180,AJ14*VLOOKUP(#REF!&"CP",Importes!$A$2:$F$14,5,FALSE)*(IF($AI14>100,0,$AI14)/100),IF(AJ14=180,VLOOKUP(#REF!&"CP",Importes!$A$2:$F$14,6,FALSE)*6*(IF($AI14>100,0,$AI14)/100),0))),0) ->  | AN14: =IF(AM14="","",IF(AM14>0,ROUND(IF(MOD(AM14,30)=0,QUOTIENT(AM14,30)*VLOOKUP(C14&IF(AC14="Si","AM+E","AM"),Importes!$A$2:$I$14,IF(MONTH($I$7)=12,6,9),FALSE)*(IF($AL14>100,0,$AL14)/100),AM14*VLOOKUP(C14&IF(AC14="Si","AM+E","AM"),Importes!$A$2:$I$14,IF(MONTH($I$7)=12,5,8),FALSE)*(IF($AL14>100,0,$AL14)/100)),2),0)) ->  | AT14: Non | BG14: 81.3 | BH14: =IFERROR(IF(AF14="AM",DF14,IF(AF14="AM+E",DF14,IF(AF14="CP",#REF!,IF(AF14="CV",DR14,IF(AF14="CV+E",DR14))))),0) -> 0 | BI14: =IFERROR(IF(OR(AD14="+CT",AF14=""),0,ROUND(IF(MOD(AG14,30)=0,QUOTIENT(AG14,30)*VLOOKUP(#REF!&AF14,Importes!$A$2:$F$14,6,FALSE)*(IF($AE14>100,0,$AE14)/100),AG14*VLOOKUP(#REF!&AF14,Importes!$A$2:$F$14,5,FALSE)*(IF($AE14>100,0,$AE14)/100)),2)),0) -> 0 | BK14: =IFERROR(ROUND(IF($AI$8="Anual",0.5,1)*IF(AND(AF14="AM",OR(EA14="ALINT",EA14="AL")),#REF!,IF(AND(AF14="AM",#REF!="x"),#REF!,"")),0),"") ->  | BL14: =IF(AJ14="","",IF(AJ14>0,ROUND(IF(MOD(AJ14,30)=0,QUOTIENT(AJ14,30)*VLOOKUP(#REF!&"CP",Importes!$A$2:$F$14,6,FALSE)*(IF($BG14>100,0,$BG14)/100),BK14*VLOOKUP(#REF!&"CP",Importes!$A$2:$F$14,5,FALSE)*(IF($BG14>100,0,$BG14)/100)),2),0)) ->  | BO14: =IF(AM14="","",IF(AM14>0,ROUND(IF(MOD(AM14,30)=0,QUOTIENT(AM14,30)*VLOOKUP(#REF!&IF(AC14="Si","AM+E","AM"),Importes!$A$2:$F$14,6,FALSE)*(IF($BG14>100,0,$BG14)/100),AM14*VLOOKUP(#REF!&IF(AC14="Si","AM+E","AM"),Importes!$A$2:$F$14,5,FALSE)*(IF($BG14>100,0,$BG14)/100)),2),0)) ->  | CV14: 0 | CW14: 0 | CX14: 0 | CY14: 0 | CZ14: 0 | DA14: 0 | DB14: 5 | DC14: 5 | DD14: 2025-01-01 | DE14: 2025-01-31 | DF14: 0 | DG14: 0 | DH14: 2025-01-01 | DI14: 2025-01-31 | DJ14: 00:00:00 | DK14: 2025-01-01 | DL14: 0 | DM14: 0 | DN14: 0 | DO14: 0 | DP14: 0 | DQ14: 2025-01-01 | DR14: 0 | DS14: 0 | DT14: 0 | DU14: 0 | DV14: 0 | DW14: 3 | DX14: 0 | DY14: 0 | DZ14: 0 | EA14: AA | EB14: A | EC14: A | ED14: NO | EG14: 148 | EH14: 30 | EI14: 30 | EJ14: 28 | EK14: 30 | EL14: 30 | EM14: 210 | EN14: 30 | EO14: 30 | EP14: 30 | EQ14: 30 | ER14: 30 | ES14: 30 | ET14: 30 | EU14: 1 | EV14: 1 | EW14: 1 | EX14: 1 | EY14: 1 | EZ14: 1 | FA14: 1 | FB14: 1 | FC14: 1 | FD14: 1 | FE14: 1 | FF14: 1 | FG14: 31 | FH14: 31 | FI14: 28 | FJ14: 31 | FK14: 30 | FL14: 31 | FM14: 30 | FN14: 31 | FO14: 31 | FP14: 30 | FQ14: 31 | FR14: 30
B15: 1 | Q15: =IFERROR(VLOOKUP(P15,Importes!L:Q,2,FALSE),"") ->  | R15: =IF(G15="","",$M$4) ->  | S15: =IF(G15="","",#REF!) ->  | T15: =IF(G15="","",#REF!) ->  | U15: =IF(G15="","",IF($AH$8="Extra Inverno","1/12/2016",IF($AH$8="Extra Verán","1/6/2017",$AH$8))) ->  | V15: =IF(G15="","",$AN$9) ->  | W15: =IF(G15="","",IF($AG$8="x","Mensualidade",IF(AND($AG$8="",#REF!="x",$AH$8=DATE(YEAR($CU$7),12,1)),"Extra Inverno",IF(AND($AG$8="",#REF!="x",$AH$8=DATE(YEAR($CV$8),6,1)),"Extra Verán","")))) ->  | X15: 0 | Y15: =IF(I15="","",DAY(I15)&"/"&MONTH(I15)&"/"&YEAR(I15)) ->  | Z15: =IF(N15="","",DAY(N15)&"/"&MONTH(N15)&"/"&YEAR(N15)) ->  | AA15: =IF(O15="","",DAY(O15)&"/"&MONTH(O15)&"/"&YEAR(O15)) ->  | AB15: =MID(AF15,1,4) -> AM+E | AC15: Si | AD15: 1 | AF15: AM+E | AG15: 0 | AH15: =IFERROR(IF(OR(AD15="+CT",AF15=""),0,ROUND(IF(MOD(AG15,30)=0,QUOTIENT(AG15,30)*VLOOKUP(C15&AF15,Importes!$A$2:$I$14,IF(MONTH($I$7)=12,6,9),FALSE)*(IF($AE15>100,0,$AE15)/100),AG15*VLOOKUP(C15&AF15,Importes!$A$2:$I$14,IF(MONTH($I$7)=12,5,8),FALSE)*(IF($AE15>100,0,$AE15)/100)),2)),0) -> 0 | AK15: =IFERROR(IF(AJ15="","",IF(AJ15<180,AJ15*VLOOKUP(#REF!&"CP",Importes!$A$2:$F$14,5,FALSE)*(IF($AI15>100,0,$AI15)/100),IF(AJ15=180,VLOOKUP(#REF!&"CP",Importes!$A$2:$F$14,6,FALSE)*6*(IF($AI15>100,0,$AI15)/100),0))),0) ->  | AN15: =IF(AM15="","",IF(AM15>0,ROUND(IF(MOD(AM15,30)=0,QUOTIENT(AM15,30)*VLOOKUP(C15&IF(AC15="Si","AM+E","AM"),Importes!$A$2:$I$14,IF(MONTH($I$7)=12,6,9),FALSE)*(IF($AL15>100,0,$AL15)/100),AM15*VLOOKUP(C15&IF(AC15="Si","AM+E","AM"),Importes!$A$2:$I$14,IF(MONTH($I$7)=12,5,8),FALSE)*(IF($AL15>100,0,$AL15)/100)),2),0)) ->  | AT15: Non | BG15: 81.3 | BH15: =IFERROR(IF(AF15="AM",DF15,IF(AF15="AM+E",DF15,IF(AF15="CP",#REF!,IF(AF15="CV",DR15,IF(AF15="CV+E",DR15))))),0) -> 0 | BI15: =IFERROR(IF(OR(AD15="+CT",AF15=""),0,ROUND(IF(MOD(AG15,30)=0,QUOTIENT(AG15,30)*VLOOKUP(#REF!&AF15,Importes!$A$2:$F$14,6,FALSE)*(IF($AE15>100,0,$AE15)/100),AG15*VLOOKUP(#REF!&AF15,Importes!$A$2:$F$14,5,FALSE)*(IF($AE15>100,0,$AE15)/100)),2)),0) -> 0 | BK15: =IFERROR(ROUND(IF($AI$8="Anual",0.5,1)*IF(AND(AF15="AM",OR(EA15="ALINT",EA15="AL")),#REF!,IF(AND(AF15="AM",#REF!="x"),#REF!,"")),0),"") ->  | BL15: =IF(AJ15="","",IF(AJ15>0,ROUND(IF(MOD(AJ15,30)=0,QUOTIENT(AJ15,30)*VLOOKUP(#REF!&"CP",Importes!$A$2:$F$14,6,FALSE)*(IF($BG15>100,0,$BG15)/100),BK15*VLOOKUP(#REF!&"CP",Importes!$A$2:$F$14,5,FALSE)*(IF($BG15>100,0,$BG15)/100)),2),0)) ->  | BO15: =IF(AM15="","",IF(AM15>0,ROUND(IF(MOD(AM15,30)=0,QUOTIENT(AM15,30)*VLOOKUP(#REF!&IF(AC15="Si","AM+E","AM"),Importes!$A$2:$F$14,6,FALSE)*(IF($BG15>100,0,$BG15)/100),AM15*VLOOKUP(#REF!&IF(AC15="Si","AM+E","AM"),Importes!$A$2:$F$14,5,FALSE)*(IF($BG15>100,0,$BG15)/100)),2),0)) ->  | CV15: 0 | CW15: 0 | CX15: 0 | CY15: 0 | CZ15: 0 | DA15: 0 | DB15: 5 | DC15: 5 | DD15: 2025-01-01 | DE15: 2025-01-31 | DF15: 0 | DG15: 0 | DH15: 2025-01-01 | DI15: 2025-01-31 | DJ15: 00:00:00 | DK15: 2025-01-01 | DL15: 0 | DM15: 0 | DN15: 0 | DO15: 0 | DP15: 0 | DQ15: 2025-01-01 | DR15: 0 | DS15: 0 | DT15: 0 | DU15: 0 | DV15: 0 | DW15: 3 | DX15: 0 | DY15: 0 | DZ15: 0 | EA15: AA | EB15: A | EC15: A | ED15: NO | EG15: 148 | EH15: 30 | EI15: 30 | EJ15: 28 | EK15: 30 | EL15: 30 | EM15: 210 | EN15: 30 | EO15: 30 | EP15: 30 | EQ15: 30 | ER15: 30 | ES15: 30 | ET15: 30 | EU15: 1 | EV15: 1 | EW15: 1 | EX15: 1 | EY15: 1 | EZ15: 1 | FA15: 1 | FB15: 1 | FC15: 1 | FD15: 1 | FE15: 1 | FF15: 1 | FG15: 31 | FH15: 31 | FI15: 28 | FJ15: 31 | FK15: 30 | FL15: 31 | FM15: 30 | FN15: 31 | FO15: 31 | FP15: 30 | FQ15: 31 | FR15: 30
B16: 1 | Q16: =IFERROR(VLOOKUP(P16,Importes!L:Q,2,FALSE),"") ->  | S16: =IF(G16="","",#REF!) ->  | T16: =IF(G16="","",#REF!) ->  | W16: =IF(G16="","",IF($AG$8="x","Mensualidade",IF(AND($AG$8="",#REF!="x",$AH$8=DATE(YEAR($CU$7),12,1)),"Extra Inverno",IF(AND($AG$8="",#REF!="x",$AH$8=DATE(YEAR($CV$8),6,1)),"Extra Verán","")))) ->  | X16: 0 | AB16: AM+E | AC16: Si | AD16: 1 | AF16: AM+E | AG16: 0 | AH16: =IFERROR(IF(OR(AD16="+CT",AF16=""),0,ROUND(IF(MOD(AG16,30)=0,QUOTIENT(AG16,30)*VLOOKUP(C16&AF16,Importes!$A$2:$I$14,IF(MONTH($I$7)=12,6,9),FALSE)*(IF($AE16>100,0,$AE16)/100),AG16*VLOOKUP(C16&AF16,Importes!$A$2:$I$14,IF(MONTH($I$7)=12,5,8),FALSE)*(IF($AE16>100,0,$AE16)/100)),2)),0) -> 0 | AK16: =IFERROR(IF(AJ16="","",IF(AJ16<180,AJ16*VLOOKUP(#REF!&"CP",Importes!$A$2:$F$14,5,FALSE)*(IF($AI16>100,0,$AI16)/100),IF(AJ16=180,VLOOKUP(#REF!&"CP",Importes!$A$2:$F$14,6,FALSE)*6*(IF($AI16>100,0,$AI16)/100),0))),0) ->  | AN16: =IF(AM16="","",IF(AM16>0,ROUND(IF(MOD(AM16,30)=0,QUOTIENT(AM16,30)*VLOOKUP(C16&IF(AC16="Si","AM+E","AM"),Importes!$A$2:$I$14,IF(MONTH($I$7)=12,6,9),FALSE)*(IF($AL16>100,0,$AL16)/100),AM16*VLOOKUP(C16&IF(AC16="Si","AM+E","AM"),Importes!$A$2:$I$14,IF(MONTH($I$7)=12,5,8),FALSE)*(IF($AL16>100,0,$AL16)/100)),2),0)) ->  | AT16: Non | BG16: 81.3 | BH16: =IFERROR(IF(AF16="AM",DF16,IF(AF16="AM+E",DF16,IF(AF16="CP",#REF!,IF(AF16="CV",DR16,IF(AF16="CV+E",DR16))))),0) -> 0 | BI16: =IFERROR(IF(OR(AD16="+CT",AF16=""),0,ROUND(IF(MOD(AG16,30)=0,QUOTIENT(AG16,30)*VLOOKUP(#REF!&AF16,Importes!$A$2:$F$14,6,FALSE)*(IF($AE16>100,0,$AE16)/100),AG16*VLOOKUP(#REF!&AF16,Importes!$A$2:$F$14,5,FALSE)*(IF($AE16>100,0,$AE16)/100)),2)),0) -> 0 | BK16: =IFERROR(ROUND(IF($AI$8="Anual",0.5,1)*IF(AND(AF16="AM",OR(EA16="ALINT",EA16="AL")),#REF!,IF(AND(AF16="AM",#REF!="x"),#REF!,"")),0),"") ->  | BL16: =IF(AJ16="","",IF(AJ16>0,ROUND(IF(MOD(AJ16,30)=0,QUOTIENT(AJ16,30)*VLOOKUP(#REF!&"CP",Importes!$A$2:$F$14,6,FALSE)*(IF($BG16>100,0,$BG16)/100),BK16*VLOOKUP(#REF!&"CP",Importes!$A$2:$F$14,5,FALSE)*(IF($BG16>100,0,$BG16)/100)),2),0)) ->  | BO16: =IF(AM16="","",IF(AM16>0,ROUND(IF(MOD(AM16,30)=0,QUOTIENT(AM16,30)*VLOOKUP(#REF!&IF(AC16="Si","AM+E","AM"),Importes!$A$2:$F$14,6,FALSE)*(IF($BG16>100,0,$BG16)/100),AM16*VLOOKUP(#REF!&IF(AC16="Si","AM+E","AM"),Importes!$A$2:$F$14,5,FALSE)*(IF($BG16>100,0,$BG16)/100)),2),0)) ->  | CV16: 0 | CW16: 0 | CX16: 0 | CY16: 0 | CZ16: 0 | DA16: 0 | DB16: 5 | DC16: 5 | DD16: 2025-01-01 | DE16: 2025-01-31 | DF16: 0 | DG16: 0 | DH16: 2025-01-01 | DI16: 2025-01-31 | DJ16: 00:00:00 | DK16: 2025-01-01 | DL16: 0 | DM16: 0 | DN16: 0 | DO16: 0 | DP16: 0 | DQ16: 2025-01-01 | DR16: 0 | DS16: 0 | DT16: 0 | DU16: 0 | DV16: 0 | DW16: 3 | DX16: 0 | DY16: 0 | DZ16: 0 | EA16: AA | EB16: A | EC16: A | ED16: NO | EG16: 148 | EH16: 30 | EI16: 30 | EJ16: 28 | EK16: 30 | EL16: 30 | EM16: 210 | EN16: 30 | EO16: 30 | EP16: 30 | EQ16: 30 | ER16: 30 | ES16: 30 | ET16: 30 | EU16: 1 | EV16: 1 | EW16: 1 | EX16: 1 | EY16: 1 | EZ16: 1 | FA16: 1 | FB16: 1 | FC16: 1 | FD16: 1 | FE16: 1 | FF16: 1 | FG16: 31 | FH16: 31 | FI16: 28 | FJ16: 31 | FK16: 30 | FL16: 31 | FM16: 30 | FN16: 31 | FO16: 31 | FP16: 30 | FQ16: 31 | FR16: 30
B17: 1 | Q17: =IFERROR(VLOOKUP(P17,Importes!L:Q,2,FALSE),"") ->  | S17: =IF(G17="","",#REF!) ->  | T17: =IF(G17="","",#REF!) ->  | W17: =IF(G17="","",IF($AG$8="x","Mensualidade",IF(AND($AG$8="",#REF!="x",$AH$8=DATE(YEAR($CU$7),12,1)),"Extra Inverno",IF(AND($AG$8="",#REF!="x",$AH$8=DATE(YEAR($CV$8),6,1)),"Extra Verán","")))) ->  | X17: 0 | AB17: AM+E | AC17: Si | AD17: 1 | AF17: AM+E | AG17: 0 | AH17: =IFERROR(IF(OR(AD17="+CT",AF17=""),0,ROUND(IF(MOD(AG17,30)=0,QUOTIENT(AG17,30)*VLOOKUP(C17&AF17,Importes!$A$2:$I$14,IF(MONTH($I$7)=12,6,9),FALSE)*(IF($AE17>100,0,$AE17)/100),AG17*VLOOKUP(C17&AF17,Importes!$A$2:$I$14,IF(MONTH($I$7)=12,5,8),FALSE)*(IF($AE17>100,0,$AE17)/100)),2)),0) -> 0 | AK17: =IFERROR(IF(AJ17="","",IF(AJ17<180,AJ17*VLOOKUP(#REF!&"CP",Importes!$A$2:$F$14,5,FALSE)*(IF($AI17>100,0,$AI17)/100),IF(AJ17=180,VLOOKUP(#REF!&"CP",Importes!$A$2:$F$14,6,FALSE)*6*(IF($AI17>100,0,$AI17)/100),0))),0) ->  | AN17: =IF(AM17="","",IF(AM17>0,ROUND(IF(MOD(AM17,30)=0,QUOTIENT(AM17,30)*VLOOKUP(C17&IF(AC17="Si","AM+E","AM"),Importes!$A$2:$I$14,IF(MONTH($I$7)=12,6,9),FALSE)*(IF($AL17>100,0,$AL17)/100),AM17*VLOOKUP(C17&IF(AC17="Si","AM+E","AM"),Importes!$A$2:$I$14,IF(MONTH($I$7)=12,5,8),FALSE)*(IF($AL17>100,0,$AL17)/100)),2),0)) ->  | AT17: Non | BG17: 81.3 | BH17: =IFERROR(IF(AF17="AM",DF17,IF(AF17="AM+E",DF17,IF(AF17="CP",#REF!,IF(AF17="CV",DR17,IF(AF17="CV+E",DR17))))),0) -> 0 | BI17: =IFERROR(IF(OR(AD17="+CT",AF17=""),0,ROUND(IF(MOD(AG17,30)=0,QUOTIENT(AG17,30)*VLOOKUP(#REF!&AF17,Importes!$A$2:$F$14,6,FALSE)*(IF($AE17>100,0,$AE17)/100),AG17*VLOOKUP(#REF!&AF17,Importes!$A$2:$F$14,5,FALSE)*(IF($AE17>100,0,$AE17)/100)),2)),0) -> 0 | BK17: =IFERROR(ROUND(IF($AI$8="Anual",0.5,1)*IF(AND(AF17="AM",OR(EA17="ALINT",EA17="AL")),#REF!,IF(AND(AF17="AM",#REF!="x"),#REF!,"")),0),"") ->  | BL17: =IF(AJ17="","",IF(AJ17>0,ROUND(IF(MOD(AJ17,30)=0,QUOTIENT(AJ17,30)*VLOOKUP(#REF!&"CP",Importes!$A$2:$F$14,6,FALSE)*(IF($BG17>100,0,$BG17)/100),BK17*VLOOKUP(#REF!&"CP",Importes!$A$2:$F$14,5,FALSE)*(IF($BG17>100,0,$BG17)/100)),2),0)) ->  | BO17: =IF(AM17="","",IF(AM17>0,ROUND(IF(MOD(AM17,30)=0,QUOTIENT(AM17,30)*VLOOKUP(#REF!&IF(AC17="Si","AM+E","AM"),Importes!$A$2:$F$14,6,FALSE)*(IF($BG17>100,0,$BG17)/100),AM17*VLOOKUP(#REF!&IF(AC17="Si","AM+E","AM"),Importes!$A$2:$F$14,5,FALSE)*(IF($BG17>100,0,$BG17)/100)),2),0)) ->  | CV17: 0 | CW17: 0 | CX17: 0 | CY17: 0 | CZ17: 0 | DA17: 0 | DB17: 5 | DC17: 5 | DD17: 2025-01-01 | DE17: 2025-01-31 | DF17: 0 | DG17: 0 | DH17: 2025-01-01 | DI17: 2025-01-31 | DJ17: 00:00:00 | DK17: 2025-01-01 | DL17: 0 | DM17: 0 | DN17: 0 | DO17: 0 | DP17: 0 | DQ17: 2025-01-01 | DR17: 0 | DS17: 0 | DT17: 0 | DU17: 0 | DV17: 0 | DW17: 3 | DX17: 0 | DY17: 0 | DZ17: 0 | EA17: AA | EB17: A | EC17: A | ED17: NO | EG17: 148 | EH17: 30 | EI17: 30 | EJ17: 28 | EK17: 30 | EL17: 30 | EM17: 210 | EN17: 30 | EO17: 30 | EP17: 30 | EQ17: 30 | ER17: 30 | ES17: 30 | ET17: 30 | EU17: 1 | EV17: 1 | EW17: 1 | EX17: 1 | EY17: 1 | EZ17: 1 | FA17: 1 | FB17: 1 | FC17: 1 | FD17: 1 | FE17: 1 | FF17: 1 | FG17: 31 | FH17: 31 | FI17: 28 | FJ17: 31 | FK17: 30 | FL17: 31 | FM17: 30 | FN17: 31 | FO17: 31 | FP17: 30 | FQ17: 31 | FR17: 30
B18: 1 | Q18: =IFERROR(VLOOKUP(P18,Importes!L:Q,2,FALSE),"") ->  | S18: =IF(G18="","",#REF!) ->  | T18: =IF(G18="","",#REF!) ->  | W18: =IF(G18="","",IF($AG$8="x","Mensualidade",IF(AND($AG$8="",#REF!="x",$AH$8=DATE(YEAR($CU$7),12,1)),"Extra Inverno",IF(AND($AG$8="",#REF!="x",$AH$8=DATE(YEAR($CV$8),6,1)),"Extra Verán","")))) ->  | X18: 0 | AB18: AM+E | AC18: Si | AD18: 1 | AF18: AM+E | AG18: 0 | AH18: =IFERROR(IF(OR(AD18="+CT",AF18=""),0,ROUND(IF(MOD(AG18,30)=0,QUOTIENT(AG18,30)*VLOOKUP(C18&AF18,Importes!$A$2:$I$14,IF(MONTH($I$7)=12,6,9),FALSE)*(IF($AE18>100,0,$AE18)/100),AG18*VLOOKUP(C18&AF18,Importes!$A$2:$I$14,IF(MONTH($I$7)=12,5,8),FALSE)*(IF($AE18>100,0,$AE18)/100)),2)),0) -> 0 | AK18: =IFERROR(IF(AJ18="","",IF(AJ18<180,AJ18*VLOOKUP(#REF!&"CP",Importes!$A$2:$F$14,5,FALSE)*(IF($AI18>100,0,$AI18)/100),IF(AJ18=180,VLOOKUP(#REF!&"CP",Importes!$A$2:$F$14,6,FALSE)*6*(IF($AI18>100,0,$AI18)/100),0))),0) ->  | AN18: =IF(AM18="","",IF(AM18>0,ROUND(IF(MOD(AM18,30)=0,QUOTIENT(AM18,30)*VLOOKUP(C18&IF(AC18="Si","AM+E","AM"),Importes!$A$2:$I$14,IF(MONTH($I$7)=12,6,9),FALSE)*(IF($AL18>100,0,$AL18)/100),AM18*VLOOKUP(C18&IF(AC18="Si","AM+E","AM"),Importes!$A$2:$I$14,IF(MONTH($I$7)=12,5,8),FALSE)*(IF($AL18>100,0,$AL18)/100)),2),0)) ->  | AT18: Non | BG18: 81.3 | BH18: =IFERROR(IF(AF18="AM",DF18,IF(AF18="AM+E",DF18,IF(AF18="CP",#REF!,IF(AF18="CV",DR18,IF(AF18="CV+E",DR18))))),0) -> 0 | BI18: =IFERROR(IF(OR(AD18="+CT",AF18=""),0,ROUND(IF(MOD(AG18,30)=0,QUOTIENT(AG18,30)*VLOOKUP(#REF!&AF18,Importes!$A$2:$F$14,6,FALSE)*(IF($AE18>100,0,$AE18)/100),AG18*VLOOKUP(#REF!&AF18,Importes!$A$2:$F$14,5,FALSE)*(IF($AE18>100,0,$AE18)/100)),2)),0) -> 0 | BK18: =IFERROR(ROUND(IF($AI$8="Anual",0.5,1)*IF(AND(AF18="AM",OR(EA18="ALINT",EA18="AL")),#REF!,IF(AND(AF18="AM",#REF!="x"),#REF!,"")),0),"") ->  | BL18: =IF(AJ18="","",IF(AJ18>0,ROUND(IF(MOD(AJ18,30)=0,QUOTIENT(AJ18,30)*VLOOKUP(#REF!&"CP",Importes!$A$2:$F$14,6,FALSE)*(IF($BG18>100,0,$BG18)/100),BK18*VLOOKUP(#REF!&"CP",Importes!$A$2:$F$14,5,FALSE)*(IF($BG18>100,0,$BG18)/100)),2),0)) ->  | BO18: =IF(AM18="","",IF(AM18>0,ROUND(IF(MOD(AM18,30)=0,QUOTIENT(AM18,30)*VLOOKUP(#REF!&IF(AC18="Si","AM+E","AM"),Importes!$A$2:$F$14,6,FALSE)*(IF($BG18>100,0,$BG18)/100),AM18*VLOOKUP(#REF!&IF(AC18="Si","AM+E","AM"),Importes!$A$2:$F$14,5,FALSE)*(IF($BG18>100,0,$BG18)/100)),2),0)) ->  | CV18: 0 | CW18: 0 | CX18: 0 | CY18: 0 | CZ18: 0 | DA18: 0 | DB18: 5 | DC18: 5 | DD18: 2025-01-01 | DE18: 2025-01-31 | DF18: 0 | DG18: 0 | DH18: 2025-01-01 | DI18: 2025-01-31 | DJ18: 00:00:00 | DK18: 2025-01-01 | DL18: 0 | DM18: 0 | DN18: 0 | DO18: 0 | DP18: 0 | DQ18: 2025-01-01 | DR18: 0 | DS18: 0 | DT18: 0 | DU18: 0 | DV18: 0 | DW18: 3 | DX18: 0 | DY18: 0 | DZ18: 0 | EA18: AA | EB18: A | EC18: A | ED18: NO | EG18: 148 | EH18: 30 | EI18: 30 | EJ18: 28 | EK18: 30 | EL18: 30 | EM18: 210 | EN18: 30 | EO18: 30 | EP18: 30 | EQ18: 30 | ER18: 30 | ES18: 30 | ET18: 30 | EU18: 1 | EV18: 1 | EW18: 1 | EX18: 1 | EY18: 1 | EZ18: 1 | FA18: 1 | FB18: 1 | FC18: 1 | FD18: 1 | FE18: 1 | FF18: 1 | FG18: 31 | FH18: 31 | FI18: 28 | FJ18: 31 | FK18: 30 | FL18: 31 | FM18: 30 | FN18: 31 | FO18: 31 | FP18: 30 | FQ18: 31 | FR18: 30
B19: 1 | Q19: =IFERROR(VLOOKUP(P19,Importes!L:Q,2,FALSE),"") ->  | S19: =IF(G19="","",#REF!) ->  | T19: =IF(G19="","",#REF!) ->  | W19: =IF(G19="","",IF($AG$8="x","Mensualidade",IF(AND($AG$8="",#REF!="x",$AH$8=DATE(YEAR($CU$7),12,1)),"Extra Inverno",IF(AND($AG$8="",#REF!="x",$AH$8=DATE(YEAR($CV$8),6,1)),"Extra Verán","")))) ->  | X19: 0 | AB19: AM+E | AC19: Si | AD19: 1 | AF19: AM+E | AG19: 0 | AH19: =IFERROR(IF(OR(AD19="+CT",AF19=""),0,ROUND(IF(MOD(AG19,30)=0,QUOTIENT(AG19,30)*VLOOKUP(C19&AF19,Importes!$A$2:$I$14,IF(MONTH($I$7)=12,6,9),FALSE)*(IF($AE19>100,0,$AE19)/100),AG19*VLOOKUP(C19&AF19,Importes!$A$2:$I$14,IF(MONTH($I$7)=12,5,8),FALSE)*(IF($AE19>100,0,$AE19)/100)),2)),0) -> 0 | AK19: =IFERROR(IF(AJ19="","",IF(AJ19<180,AJ19*VLOOKUP(#REF!&"CP",Importes!$A$2:$F$14,5,FALSE)*(IF($AI19>100,0,$AI19)/100),IF(AJ19=180,VLOOKUP(#REF!&"CP",Importes!$A$2:$F$14,6,FALSE)*6*(IF($AI19>100,0,$AI19)/100),0))),0) ->  | AN19: =IF(AM19="","",IF(AM19>0,ROUND(IF(MOD(AM19,30)=0,QUOTIENT(AM19,30)*VLOOKUP(C19&IF(AC19="Si","AM+E","AM"),Importes!$A$2:$I$14,IF(MONTH($I$7)=12,6,9),FALSE)*(IF($AL19>100,0,$AL19)/100),AM19*VLOOKUP(C19&IF(AC19="Si","AM+E","AM"),Importes!$A$2:$I$14,IF(MONTH($I$7)=12,5,8),FALSE)*(IF($AL19>100,0,$AL19)/100)),2),0)) ->  | AT19: Non | BG19: 81.3 | BH19: =IFERROR(IF(AF19="AM",DF19,IF(AF19="AM+E",DF19,IF(AF19="CP",#REF!,IF(AF19="CV",DR19,IF(AF19="CV+E",DR19))))),0) -> 0 | BI19: =IFERROR(IF(OR(AD19="+CT",AF19=""),0,ROUND(IF(MOD(AG19,30)=0,QUOTIENT(AG19,30)*VLOOKUP(#REF!&AF19,Importes!$A$2:$F$14,6,FALSE)*(IF($AE19>100,0,$AE19)/100),AG19*VLOOKUP(#REF!&AF19,Importes!$A$2:$F$14,5,FALSE)*(IF($AE19>100,0,$AE19)/100)),2)),0) -> 0 | BK19: =IFERROR(ROUND(IF($AI$8="Anual",0.5,1)*IF(AND(AF19="AM",OR(EA19="ALINT",EA19="AL")),#REF!,IF(AND(AF19="AM",#REF!="x"),#REF!,"")),0),"") ->  | BL19: =IF(AJ19="","",IF(AJ19>0,ROUND(IF(MOD(AJ19,30)=0,QUOTIENT(AJ19,30)*VLOOKUP(#REF!&"CP",Importes!$A$2:$F$14,6,FALSE)*(IF($BG19>100,0,$BG19)/100),BK19*VLOOKUP(#REF!&"CP",Importes!$A$2:$F$14,5,FALSE)*(IF($BG19>100,0,$BG19)/100)),2),0)) ->  | BO19: =IF(AM19="","",IF(AM19>0,ROUND(IF(MOD(AM19,30)=0,QUOTIENT(AM19,30)*VLOOKUP(#REF!&IF(AC19="Si","AM+E","AM"),Importes!$A$2:$F$14,6,FALSE)*(IF($BG19>100,0,$BG19)/100),AM19*VLOOKUP(#REF!&IF(AC19="Si","AM+E","AM"),Importes!$A$2:$F$14,5,FALSE)*(IF($BG19>100,0,$BG19)/100)),2),0)) ->  | CV19: 0 | CW19: 0 | CX19: 0 | CY19: 0 | CZ19: 0 | DA19: 0 | DB19: 5 | DC19: 5 | DD19: 2025-01-01 | DE19: 2025-01-31 | DF19: 0 | DG19: 0 | DH19: 2025-01-01 | DI19: 2025-01-31 | DJ19: 00:00:00 | DK19: 2025-01-01 | DL19: 0 | DM19: 0 | DN19: 0 | DO19: 0 | DP19: 0 | DQ19: 2025-01-01 | DR19: 0 | DS19: 0 | DT19: 0 | DU19: 0 | DV19: 0 | DW19: 3 | DX19: 0 | DY19: 0 | DZ19: 0 | EA19: AA | EB19: A | EC19: A | ED19: NO | EG19: 148 | EH19: 30 | EI19: 30 | EJ19: 28 | EK19: 30 | EL19: 30 | EM19: 210 | EN19: 30 | EO19: 30 | EP19: 30 | EQ19: 30 | ER19: 30 | ES19: 30 | ET19: 30 | EU19: 1 | EV19: 1 | EW19: 1 | EX19: 1 | EY19: 1 | EZ19: 1 | FA19: 1 | FB19: 1 | FC19: 1 | FD19: 1 | FE19: 1 | FF19: 1 | FG19: 31 | FH19: 31 | FI19: 28 | FJ19: 31 | FK19: 30 | FL19: 31 | FM19: 30 | FN19: 31 | FO19: 31 | FP19: 30 | FQ19: 31 | FR19: 30
B20: 1 | Q20: =IFERROR(VLOOKUP(P20,Importes!L:Q,2,FALSE),"") ->  | S20: =IF(G20="","",#REF!) ->  | T20: =IF(G20="","",#REF!) ->  | W20: =IF(G20="","",IF($AG$8="x","Mensualidade",IF(AND($AG$8="",#REF!="x",$AH$8=DATE(YEAR($CU$7),12,1)),"Extra Inverno",IF(AND($AG$8="",#REF!="x",$AH$8=DATE(YEAR($CV$8),6,1)),"Extra Verán","")))) ->  | X20: 0 | AB20: AM+E | AC20: Si | AD20: 1 | AF20: AM+E | AG20: 0 | AH20: =IFERROR(IF(OR(AD20="+CT",AF20=""),0,ROUND(IF(MOD(AG20,30)=0,QUOTIENT(AG20,30)*VLOOKUP(C20&AF20,Importes!$A$2:$I$14,IF(MONTH($I$7)=12,6,9),FALSE)*(IF($AE20>100,0,$AE20)/100),AG20*VLOOKUP(C20&AF20,Importes!$A$2:$I$14,IF(MONTH($I$7)=12,5,8),FALSE)*(IF($AE20>100,0,$AE20)/100)),2)),0) -> 0 | AK20: =IFERROR(IF(AJ20="","",IF(AJ20<180,AJ20*VLOOKUP(#REF!&"CP",Importes!$A$2:$F$14,5,FALSE)*(IF($AI20>100,0,$AI20)/100),IF(AJ20=180,VLOOKUP(#REF!&"CP",Importes!$A$2:$F$14,6,FALSE)*6*(IF($AI20>100,0,$AI20)/100),0))),0) ->  | AN20: =IF(AM20="","",IF(AM20>0,ROUND(IF(MOD(AM20,30)=0,QUOTIENT(AM20,30)*VLOOKUP(C20&IF(AC20="Si","AM+E","AM"),Importes!$A$2:$I$14,IF(MONTH($I$7)=12,6,9),FALSE)*(IF($AL20>100,0,$AL20)/100),AM20*VLOOKUP(C20&IF(AC20="Si","AM+E","AM"),Importes!$A$2:$I$14,IF(MONTH($I$7)=12,5,8),FALSE)*(IF($AL20>100,0,$AL20)/100)),2),0)) ->  | AT20: Non | BG20: 81.3 | BH20: =IFERROR(IF(AF20="AM",DF20,IF(AF20="AM+E",DF20,IF(AF20="CP",#REF!,IF(AF20="CV",DR20,IF(AF20="CV+E",DR20))))),0) -> 0 | BI20: =IFERROR(IF(OR(AD20="+CT",AF20=""),0,ROUND(IF(MOD(AG20,30)=0,QUOTIENT(AG20,30)*VLOOKUP(#REF!&AF20,Importes!$A$2:$F$14,6,FALSE)*(IF($AE20>100,0,$AE20)/100),AG20*VLOOKUP(#REF!&AF20,Importes!$A$2:$F$14,5,FALSE)*(IF($AE20>100,0,$AE20)/100)),2)),0) -> 0 | BK20: =IFERROR(ROUND(IF($AI$8="Anual",0.5,1)*IF(AND(AF20="AM",OR(EA20="ALINT",EA20="AL")),#REF!,IF(AND(AF20="AM",#REF!="x"),#REF!,"")),0),"") ->  | BL20: =IF(AJ20="","",IF(AJ20>0,ROUND(IF(MOD(AJ20,30)=0,QUOTIENT(AJ20,30)*VLOOKUP(#REF!&"CP",Importes!$A$2:$F$14,6,FALSE)*(IF($BG20>100,0,$BG20)/100),BK20*VLOOKUP(#REF!&"CP",Importes!$A$2:$F$14,5,FALSE)*(IF($BG20>100,0,$BG20)/100)),2),0)) ->  | BO20: =IF(AM20="","",IF(AM20>0,ROUND(IF(MOD(AM20,30)=0,QUOTIENT(AM20,30)*VLOOKUP(#REF!&IF(AC20="Si","AM+E","AM"),Importes!$A$2:$F$14,6,FALSE)*(IF($BG20>100,0,$BG20)/100),AM20*VLOOKUP(#REF!&IF(AC20="Si","AM+E","AM"),Importes!$A$2:$F$14,5,FALSE)*(IF($BG20>100,0,$BG20)/100)),2),0)) ->  | CV20: 0 | CW20: 0 | CX20: 0 | CY20: 0 | CZ20: 0 | DA20: 0 | DB20: 5 | DC20: 5 | DD20: 2025-01-01 | DE20: 2025-01-31 | DF20: 0 | DG20: 0 | DH20: 2025-01-01 | DI20: 2025-01-31 | DJ20: 00:00:00 | DK20: 2025-01-01 | DL20: 0 | DM20: 0 | DN20: 0 | DO20: 0 | DP20: 0 | DQ20: 2025-01-01 | DR20: 0 | DS20: 0 | DT20: 0 | DU20: 0 | DV20: 0 | DW20: 3 | DX20: 0 | DY20: 0 | DZ20: 0 | EA20: AA | EB20: A | EC20: A | ED20: NO | EG20: 148 | EH20: 30 | EI20: 30 | EJ20: 28 | EK20: 30 | EL20: 30 | EM20: 210 | EN20: 30 | EO20: 30 | EP20: 30 | EQ20: 30 | ER20: 30 | ES20: 30 | ET20: 30 | EU20: 1 | EV20: 1 | EW20: 1 | EX20: 1 | EY20: 1 | EZ20: 1 | FA20: 1 | FB20: 1 | FC20: 1 | FD20: 1 | FE20: 1 | FF20: 1 | FG20: 31 | FH20: 31 | FI20: 28 | FJ20: 31 | FK20: 30 | FL20: 31 | FM20: 30 | FN20: 31 | FO20: 31 | FP20: 30 | FQ20: 31 | FR20: 30
B21: 1 | Q21: =IFERROR(VLOOKUP(P21,Importes!L:Q,2,FALSE),"") ->  | S21: =IF(G21="","",#REF!) ->  | T21: =IF(G21="","",#REF!) ->  | W21: =IF(G21="","",IF($AG$8="x","Mensualidade",IF(AND($AG$8="",#REF!="x",$AH$8=DATE(YEAR($CU$7),12,1)),"Extra Inverno",IF(AND($AG$8="",#REF!="x",$AH$8=DATE(YEAR($CV$8),6,1)),"Extra Verán","")))) ->  | X21: 0 | AB21: AM+E | AC21: Si | AD21: 1 | AF21: AM+E | AG21: 0 | AH21: =IFERROR(IF(OR(AD21="+CT",AF21=""),0,ROUND(IF(MOD(AG21,30)=0,QUOTIENT(AG21,30)*VLOOKUP(C21&AF21,Importes!$A$2:$I$14,IF(MONTH($I$7)=12,6,9),FALSE)*(IF($AE21>100,0,$AE21)/100),AG21*VLOOKUP(C21&AF21,Importes!$A$2:$I$14,IF(MONTH($I$7)=12,5,8),FALSE)*(IF($AE21>100,0,$AE21)/100)),2)),0) -> 0 | AK21: =IFERROR(IF(AJ21="","",IF(AJ21<180,AJ21*VLOOKUP(#REF!&"CP",Importes!$A$2:$F$14,5,FALSE)*(IF($AI21>100,0,$AI21)/100),IF(AJ21=180,VLOOKUP(#REF!&"CP",Importes!$A$2:$F$14,6,FALSE)*6*(IF($AI21>100,0,$AI21)/100),0))),0) ->  | AN21: =IF(AM21="","",IF(AM21>0,ROUND(IF(MOD(AM21,30)=0,QUOTIENT(AM21,30)*VLOOKUP(C21&IF(AC21="Si","AM+E","AM"),Importes!$A$2:$I$14,IF(MONTH($I$7)=12,6,9),FALSE)*(IF($AL21>100,0,$AL21)/100),AM21*VLOOKUP(C21&IF(AC21="Si","AM+E","AM"),Importes!$A$2:$I$14,IF(MONTH($I$7)=12,5,8),FALSE)*(IF($AL21>100,0,$AL21)/100)),2),0)) ->  | AT21: Non | BG21: 81.3 | BH21: =IFERROR(IF(AF21="AM",DF21,IF(AF21="AM+E",DF21,IF(AF21="CP",#REF!,IF(AF21="CV",DR21,IF(AF21="CV+E",DR21))))),0) -> 0 | BI21: =IFERROR(IF(OR(AD21="+CT",AF21=""),0,ROUND(IF(MOD(AG21,30)=0,QUOTIENT(AG21,30)*VLOOKUP(#REF!&AF21,Importes!$A$2:$F$14,6,FALSE)*(IF($AE21>100,0,$AE21)/100),AG21*VLOOKUP(#REF!&AF21,Importes!$A$2:$F$14,5,FALSE)*(IF($AE21>100,0,$AE21)/100)),2)),0) -> 0 | BK21: =IFERROR(ROUND(IF($AI$8="Anual",0.5,1)*IF(AND(AF21="AM",OR(EA21="ALINT",EA21="AL")),#REF!,IF(AND(AF21="AM",#REF!="x"),#REF!,"")),0),"") ->  | BL21: =IF(AJ21="","",IF(AJ21>0,ROUND(IF(MOD(AJ21,30)=0,QUOTIENT(AJ21,30)*VLOOKUP(#REF!&"CP",Importes!$A$2:$F$14,6,FALSE)*(IF($BG21>100,0,$BG21)/100),BK21*VLOOKUP(#REF!&"CP",Importes!$A$2:$F$14,5,FALSE)*(IF($BG21>100,0,$BG21)/100)),2),0)) ->  | BO21: =IF(AM21="","",IF(AM21>0,ROUND(IF(MOD(AM21,30)=0,QUOTIENT(AM21,30)*VLOOKUP(#REF!&IF(AC21="Si","AM+E","AM"),Importes!$A$2:$F$14,6,FALSE)*(IF($BG21>100,0,$BG21)/100),AM21*VLOOKUP(#REF!&IF(AC21="Si","AM+E","AM"),Importes!$A$2:$F$14,5,FALSE)*(IF($BG21>100,0,$BG21)/100)),2),0)) ->  | CV21: 0 | CW21: 0 | CX21: 0 | CY21: 0 | CZ21: 0 | DA21: 0 | DB21: 5 | DC21: 5 | DD21: 2025-01-01 | DE21: 2025-01-31 | DF21: 0 | DG21: 0 | DH21: 2025-01-01 | DI21: 2025-01-31 | DJ21: 00:00:00 | DK21: 2025-01-01 | DL21: 0 | DM21: 0 | DN21: 0 | DO21: 0 | DP21: 0 | DQ21: 2025-01-01 | DR21: 0 | DS21: 0 | DT21: 0 | DU21: 0 | DV21: 0 | DW21: 3 | DX21: 0 | DY21: 0 | DZ21: 0 | EA21: AA | EB21: A | EC21: A | ED21: NO | EG21: 148 | EH21: 30 | EI21: 30 | EJ21: 28 | EK21: 30 | EL21: 30 | EM21: 210 | EN21: 30 | EO21: 30 | EP21: 30 | EQ21: 30 | ER21: 30 | ES21: 30 | ET21: 30 | EU21: 1 | EV21: 1 | EW21: 1 | EX21: 1 | EY21: 1 | EZ21: 1 | FA21: 1 | FB21: 1 | FC21: 1 | FD21: 1 | FE21: 1 | FF21: 1 | FG21: 31 | FH21: 31 | FI21: 28 | FJ21: 31 | FK21: 30 | FL21: 31 | FM21: 30 | FN21: 31 | FO21: 31 | FP21: 30 | FQ21: 31 | FR21: 30
B22: 1 | Q22: =IFERROR(VLOOKUP(P22,Importes!L:Q,2,FALSE),"") ->  | S22: =IF(G22="","",#REF!) ->  | T22: =IF(G22="","",#REF!) ->  | W22: =IF(G22="","",IF($AG$8="x","Mensualidade",IF(AND($AG$8="",#REF!="x",$AH$8=DATE(YEAR($CU$7),12,1)),"Extra Inverno",IF(AND($AG$8="",#REF!="x",$AH$8=DATE(YEAR($CV$8),6,1)),"Extra Verán","")))) ->  | X22: 0 | AB22: AM+E | AC22: Si | AD22: 1 | AF22: AM+E | AG22: 0 | AH22: =IFERROR(IF(OR(AD22="+CT",AF22=""),0,ROUND(IF(MOD(AG22,30)=0,QUOTIENT(AG22,30)*VLOOKUP(C22&AF22,Importes!$A$2:$I$14,IF(MONTH($I$7)=12,6,9),FALSE)*(IF($AE22>100,0,$AE22)/100),AG22*VLOOKUP(C22&AF22,Importes!$A$2:$I$14,IF(MONTH($I$7)=12,5,8),FALSE)*(IF($AE22>100,0,$AE22)/100)),2)),0) -> 0 | AK22: =IFERROR(IF(AJ22="","",IF(AJ22<180,AJ22*VLOOKUP(#REF!&"CP",Importes!$A$2:$F$14,5,FALSE)*(IF($AI22>100,0,$AI22)/100),IF(AJ22=180,VLOOKUP(#REF!&"CP",Importes!$A$2:$F$14,6,FALSE)*6*(IF($AI22>100,0,$AI22)/100),0))),0) ->  | AN22: =IF(AM22="","",IF(AM22>0,ROUND(IF(MOD(AM22,30)=0,QUOTIENT(AM22,30)*VLOOKUP(C22&IF(AC22="Si","AM+E","AM"),Importes!$A$2:$I$14,IF(MONTH($I$7)=12,6,9),FALSE)*(IF($AL22>100,0,$AL22)/100),AM22*VLOOKUP(C22&IF(AC22="Si","AM+E","AM"),Importes!$A$2:$I$14,IF(MONTH($I$7)=12,5,8),FALSE)*(IF($AL22>100,0,$AL22)/100)),2),0)) ->  | AT22: Non | BB22: =IF($AH22>0,"X","") ->  | BG22: 81.3 | BH22: =IFERROR(IF(AF22="AM",DF22,IF(AF22="AM+E",DF22,IF(AF22="CP",#REF!,IF(AF22="CV",DR22,IF(AF22="CV+E",DR22))))),0) -> 0 | BI22: =IFERROR(IF(OR(AD22="+CT",AF22=""),0,ROUND(IF(MOD(AG22,30)=0,QUOTIENT(AG22,30)*VLOOKUP(#REF!&AF22,Importes!$A$2:$F$14,6,FALSE)*(IF($AE22>100,0,$AE22)/100),AG22*VLOOKUP(#REF!&AF22,Importes!$A$2:$F$14,5,FALSE)*(IF($AE22>100,0,$AE22)/100)),2)),0) -> 0 | BK22: =IFERROR(ROUND(IF($AI$8="Anual",0.5,1)*IF(AND(AF22="AM",OR(EA22="ALINT",EA22="AL")),#REF!,IF(AND(AF22="AM",#REF!="x"),#REF!,"")),0),"") ->  | BL22: =IF(AJ22="","",IF(AJ22>0,ROUND(IF(MOD(AJ22,30)=0,QUOTIENT(AJ22,30)*VLOOKUP(#REF!&"CP",Importes!$A$2:$F$14,6,FALSE)*(IF($BG22>100,0,$BG22)/100),BK22*VLOOKUP(#REF!&"CP",Importes!$A$2:$F$14,5,FALSE)*(IF($BG22>100,0,$BG22)/100)),2),0)) ->  | BO22: =IF(AM22="","",IF(AM22>0,ROUND(IF(MOD(AM22,30)=0,QUOTIENT(AM22,30)*VLOOKUP(#REF!&IF(AC22="Si","AM+E","AM"),Importes!$A$2:$F$14,6,FALSE)*(IF($BG22>100,0,$BG22)/100),AM22*VLOOKUP(#REF!&IF(AC22="Si","AM+E","AM"),Importes!$A$2:$F$14,5,FALSE)*(IF($BG22>100,0,$BG22)/100)),2),0)) ->  | CV22: 0 | CW22: 0 | CX22: 0 | CY22: 0 | CZ22: 0 | DA22: 0 | DB22: 5 | DC22: 5 | DD22: 2025-01-01 | DE22: 2025-01-31 | DF22: 0 | DG22: 0 | DH22: 2025-01-01 | DI22: 2025-01-31 | DJ22: 00:00:00 | DK22: 2025-01-01 | DL22: 0 | DM22: 0 | DN22: 0 | DO22: 0 | DP22: 0 | DQ22: 2025-01-01 | DR22: 0 | DS22: 0 | DT22: 0 | DU22: 0 | DV22: 0 | DW22: 3 | DX22: 0 | DY22: 0 | DZ22: 0 | EA22: AA | EB22: A | EC22: A | ED22: NO | EG22: 148 | EH22: 30 | EI22: 30 | EJ22: 28 | EK22: 30 | EL22: 30 | EM22: 210 | EN22: 30 | EO22: 30 | EP22: 30 | EQ22: 30 | ER22: 30 | ES22: 30 | ET22: 30 | EU22: 1 | EV22: 1 | EW22: 1 | EX22: 1 | EY22: 1 | EZ22: 1 | FA22: 1 | FB22: 1 | FC22: 1 | FD22: 1 | FE22: 1 | FF22: 1 | FG22: 31 | FH22: 31 | FI22: 28 | FJ22: 31 | FK22: 30 | FL22: 31 | FM22: 30 | FN22: 31 | FO22: 31 | FP22: 30 | FQ22: 31 | FR22: 30
B23: 1 | Q23: =IFERROR(VLOOKUP(P23,Importes!L:Q,2,FALSE),"") ->  | S23: =IF(G23="","",#REF!) ->  | T23: =IF(G23="","",#REF!) ->  | W23: =IF(G23="","",IF($AG$8="x","Mensualidade",IF(AND($AG$8="",#REF!="x",$AH$8=DATE(YEAR($CU$7),12,1)),"Extra Inverno",IF(AND($AG$8="",#REF!="x",$AH$8=DATE(YEAR($CV$8),6,1)),"Extra Verán","")))) ->  | X23: 0 | AB23: AM+E | AC23: Si | AD23: 1 | AF23: AM+E | AG23: 0 | AH23: =IFERROR(IF(OR(AD23="+CT",AF23=""),0,ROUND(IF(MOD(AG23,30)=0,QUOTIENT(AG23,30)*VLOOKUP(C23&AF23,Importes!$A$2:$I$14,IF(MONTH($I$7)=12,6,9),FALSE)*(IF($AE23>100,0,$AE23)/100),AG23*VLOOKUP(C23&AF23,Importes!$A$2:$I$14,IF(MONTH($I$7)=12,5,8),FALSE)*(IF($AE23>100,0,$AE23)/100)),2)),0) -> 0 | AK23: =IFERROR(IF(AJ23="","",IF(AJ23<180,AJ23*VLOOKUP(#REF!&"CP",Importes!$A$2:$F$14,5,FALSE)*(IF($AI23>100,0,$AI23)/100),IF(AJ23=180,VLOOKUP(#REF!&"CP",Importes!$A$2:$F$14,6,FALSE)*6*(IF($AI23>100,0,$AI23)/100),0))),0) ->  | AN23: =IF(AM23="","",IF(AM23>0,ROUND(IF(MOD(AM23,30)=0,QUOTIENT(AM23,30)*VLOOKUP(C23&IF(AC23="Si","AM+E","AM"),Importes!$A$2:$I$14,IF(MONTH($I$7)=12,6,9),FALSE)*(IF($AL23>100,0,$AL23)/100),AM23*VLOOKUP(C23&IF(AC23="Si","AM+E","AM"),Importes!$A$2:$I$14,IF(MONTH($I$7)=12,5,8),FALSE)*(IF($AL23>100,0,$AL23)/100)),2),0)) ->  | AT23: Non | BG23: 81.3 | BH23: =IFERROR(IF(AF23="AM",DF23,IF(AF23="AM+E",DF23,IF(AF23="CP",#REF!,IF(AF23="CV",DR23,IF(AF23="CV+E",DR23))))),0) -> 0 | BI23: =IFERROR(IF(OR(AD23="+CT",AF23=""),0,ROUND(IF(MOD(AG23,30)=0,QUOTIENT(AG23,30)*VLOOKUP(#REF!&AF23,Importes!$A$2:$F$14,6,FALSE)*(IF($AE23>100,0,$AE23)/100),AG23*VLOOKUP(#REF!&AF23,Importes!$A$2:$F$14,5,FALSE)*(IF($AE23>100,0,$AE23)/100)),2)),0) -> 0 | BK23: =IFERROR(ROUND(IF($AI$8="Anual",0.5,1)*IF(AND(AF23="AM",OR(EA23="ALINT",EA23="AL")),#REF!,IF(AND(AF23="AM",#REF!="x"),#REF!,"")),0),"") ->  | BL23: =IF(AJ23="","",IF(AJ23>0,ROUND(IF(MOD(AJ23,30)=0,QUOTIENT(AJ23,30)*VLOOKUP(#REF!&"CP",Importes!$A$2:$F$14,6,FALSE)*(IF($BG23>100,0,$BG23)/100),BK23*VLOOKUP(#REF!&"CP",Importes!$A$2:$F$14,5,FALSE)*(IF($BG23>100,0,$BG23)/100)),2),0)) ->  | BO23: =IF(AM23="","",IF(AM23>0,ROUND(IF(MOD(AM23,30)=0,QUOTIENT(AM23,30)*VLOOKUP(#REF!&IF(AC23="Si","AM+E","AM"),Importes!$A$2:$F$14,6,FALSE)*(IF($BG23>100,0,$BG23)/100),AM23*VLOOKUP(#REF!&IF(AC23="Si","AM+E","AM"),Importes!$A$2:$F$14,5,FALSE)*(IF($BG23>100,0,$BG23)/100)),2),0)) ->  | CV23: 0 | CW23: 0 | CX23: 0 | CY23: 0 | CZ23: 0 | DA23: 0 | DB23: 5 | DC23: 5 | DD23: 2025-01-01 | DE23: 2025-01-31 | DF23: 0 | DG23: 0 | DH23: 2025-01-01 | DI23: 2025-01-31 | DJ23: 00:00:00 | DK23: 2025-01-01 | DL23: 0 | DM23: 0 | DN23: 0 | DO23: 0 | DP23: 0 | DQ23: 2025-01-01 | DR23: 0 | DS23: 0 | DT23: 0 | DU23: 0 | DV23: 0 | DW23: 3 | DX23: 0 | DY23: 0 | DZ23: 0 | EA23: AA | EB23: A | EC23: A | ED23: NO | EG23: 148 | EH23: 30 | EI23: 30 | EJ23: 28 | EK23: 30 | EL23: 30 | EM23: 210 | EN23: 30 | EO23: 30 | EP23: 30 | EQ23: 30 | ER23: 30 | ES23: 30 | ET23: 30 | EU23: 1 | EV23: 1 | EW23: 1 | EX23: 1 | EY23: 1 | EZ23: 1 | FA23: 1 | FB23: 1 | FC23: 1 | FD23: 1 | FE23: 1 | FF23: 1 | FG23: 31 | FH23: 31 | FI23: 28 | FJ23: 31 | FK23: 30 | FL23: 31 | FM23: 30 | FN23: 31 | FO23: 31 | FP23: 30 | FQ23: 31 | FR23: 30
B24: 1 | Q24: =IFERROR(VLOOKUP(P24,Importes!L:Q,2,FALSE),"") ->  | S24: =IF(G24="","",#REF!) ->  | T24: =IF(G24="","",#REF!) ->  | W24: =IF(G24="","",IF($AG$8="x","Mensualidade",IF(AND($AG$8="",#REF!="x",$AH$8=DATE(YEAR($CU$7),12,1)),"Extra Inverno",IF(AND($AG$8="",#REF!="x",$AH$8=DATE(YEAR($CV$8),6,1)),"Extra Verán","")))) ->  | X24: 0 | AB24: AM+E | AC24: Si | AD24: 1 | AF24: AM+E | AG24: 0 | AH24: =IFERROR(IF(OR(AD24="+CT",AF24=""),0,ROUND(IF(MOD(AG24,30)=0,QUOTIENT(AG24,30)*VLOOKUP(C24&AF24,Importes!$A$2:$I$14,IF(MONTH($I$7)=12,6,9),FALSE)*(IF($AE24>100,0,$AE24)/100),AG24*VLOOKUP(C24&AF24,Importes!$A$2:$I$14,IF(MONTH($I$7)=12,5,8),FALSE)*(IF($AE24>100,0,$AE24)/100)),2)),0) -> 0 | AK24: =IFERROR(IF(AJ24="","",IF(AJ24<180,AJ24*VLOOKUP(#REF!&"CP",Importes!$A$2:$F$14,5,FALSE)*(IF($AI24>100,0,$AI24)/100),IF(AJ24=180,VLOOKUP(#REF!&"CP",Importes!$A$2:$F$14,6,FALSE)*6*(IF($AI24>100,0,$AI24)/100),0))),0) ->  | AN24: =IF(AM24="","",IF(AM24>0,ROUND(IF(MOD(AM24,30)=0,QUOTIENT(AM24,30)*VLOOKUP(C24&IF(AC24="Si","AM+E","AM"),Importes!$A$2:$I$14,IF(MONTH($I$7)=12,6,9),FALSE)*(IF($AL24>100,0,$AL24)/100),AM24*VLOOKUP(C24&IF(AC24="Si","AM+E","AM"),Importes!$A$2:$I$14,IF(MONTH($I$7)=12,5,8),FALSE)*(IF($AL24>100,0,$AL24)/100)),2),0)) ->  | AT24: Non | BG24: 81.3 | BH24: =IFERROR(IF(AF24="AM",DF24,IF(AF24="AM+E",DF24,IF(AF24="CP",#REF!,IF(AF24="CV",DR24,IF(AF24="CV+E",DR24))))),0) -> 0 | BI24: =IFERROR(IF(OR(AD24="+CT",AF24=""),0,ROUND(IF(MOD(AG24,30)=0,QUOTIENT(AG24,30)*VLOOKUP(#REF!&AF24,Importes!$A$2:$F$14,6,FALSE)*(IF($AE24>100,0,$AE24)/100),AG24*VLOOKUP(#REF!&AF24,Importes!$A$2:$F$14,5,FALSE)*(IF($AE24>100,0,$AE24)/100)),2)),0) -> 0 | BK24: =IFERROR(ROUND(IF($AI$8="Anual",0.5,1)*IF(AND(AF24="AM",OR(EA24="ALINT",EA24="AL")),#REF!,IF(AND(AF24="AM",#REF!="x"),#REF!,"")),0),"") ->  | BL24: =IF(AJ24="","",IF(AJ24>0,ROUND(IF(MOD(AJ24,30)=0,QUOTIENT(AJ24,30)*VLOOKUP(#REF!&"CP",Importes!$A$2:$F$14,6,FALSE)*(IF($BG24>100,0,$BG24)/100),BK24*VLOOKUP(#REF!&"CP",Importes!$A$2:$F$14,5,FALSE)*(IF($BG24>100,0,$BG24)/100)),2),0)) ->  | BO24: =IF(AM24="","",IF(AM24>0,ROUND(IF(MOD(AM24,30)=0,QUOTIENT(AM24,30)*VLOOKUP(#REF!&IF(AC24="Si","AM+E","AM"),Importes!$A$2:$F$14,6,FALSE)*(IF($BG24>100,0,$BG24)/100),AM24*VLOOKUP(#REF!&IF(AC24="Si","AM+E","AM"),Importes!$A$2:$F$14,5,FALSE)*(IF($BG24>100,0,$BG24)/100)),2),0)) ->  | CV24: 0 | CW24: 0 | CX24: 0 | CY24: 0 | CZ24: 0 | DA24: 0 | DB24: 5 | DC24: 5 | DD24: 2025-01-01 | DE24: 2025-01-31 | DF24: 0 | DG24: 0 | DH24: 2025-01-01 | DI24: 2025-01-31 | DJ24: 00:00:00 | DK24: 2025-01-01 | DL24: 0 | DM24: 0 | DN24: 0 | DO24: 0 | DP24: 0 | DQ24: 2025-01-01 | DR24: 0 | DS24: 0 | DT24: 0 | DU24: 0 | DV24: 0 | DW24: 3 | DX24: 0 | DY24: 0 | DZ24: 0 | EA24: AA | EB24: A | EC24: A | ED24: NO | EG24: 148 | EH24: 30 | EI24: 30 | EJ24: 28 | EK24: 30 | EL24: 30 | EM24: 210 | EN24: 30 | EO24: 30 | EP24: 30 | EQ24: 30 | ER24: 30 | ES24: 30 | ET24: 30 | EU24: 1 | EV24: 1 | EW24: 1 | EX24: =IFERROR(IF($N24<=EX$11,1,IF(YEAR($N24)=YEAR(EX$11),IF(MONTH($N24)=MONTH(EX$11),DAY($N24),0))),0) -> 1 | EY24: 1 | EZ24: 1 | FA24: 1 | FB24: 1 | FC24: 1 | FD24: 1 | FE24: 1 | FF24: 1 | FG24: 31 | FH24: 31 | FI24: 28 | FJ24: =IFERROR(IF(OR($O24="",$O24=0),DAY(FJ$11),IF($O24>=FJ$11,DAY(FJ$11),IF(MONTH($O24)=MONTH(FJ$11),DAY($O24),0))),0) -> 31 | FK24: 30 | FL24: 31 | FM24: 30 | FN24: 31 | FO24: 31 | FP24: 30 | FQ24: 31 | FR24: 30
B25: 1 | Q25: =IFERROR(VLOOKUP(P25,Importes!L:Q,2,FALSE),"") ->  | S25: =IF(G25="","",#REF!) ->  | T25: =IF(G25="","",#REF!) ->  | W25: =IF(G25="","",IF($AG$8="x","Mensualidade",IF(AND($AG$8="",#REF!="x",$AH$8=DATE(YEAR($CU$7),12,1)),"Extra Inverno",IF(AND($AG$8="",#REF!="x",$AH$8=DATE(YEAR($CV$8),6,1)),"Extra Verán","")))) ->  | X25: 0 | AB25: AM+E | AC25: Si | AD25: 1 | AF25: AM+E | AG25: 0 | AH25: =IFERROR(IF(OR(AD25="+CT",AF25=""),0,ROUND(IF(MOD(AG25,30)=0,QUOTIENT(AG25,30)*VLOOKUP(C25&AF25,Importes!$A$2:$I$14,IF(MONTH($I$7)=12,6,9),FALSE)*(IF($AE25>100,0,$AE25)/100),AG25*VLOOKUP(C25&AF25,Importes!$A$2:$I$14,IF(MONTH($I$7)=12,5,8),FALSE)*(IF($AE25>100,0,$AE25)/100)),2)),0) -> 0 | AK25: =IFERROR(IF(AJ25="","",IF(AJ25<180,AJ25*VLOOKUP(#REF!&"CP",Importes!$A$2:$F$14,5,FALSE)*(IF($AI25>100,0,$AI25)/100),IF(AJ25=180,VLOOKUP(#REF!&"CP",Importes!$A$2:$F$14,6,FALSE)*6*(IF($AI25>100,0,$AI25)/100),0))),0) ->  | AN25: =IF(AM25="","",IF(AM25>0,ROUND(IF(MOD(AM25,30)=0,QUOTIENT(AM25,30)*VLOOKUP(C25&IF(AC25="Si","AM+E","AM"),Importes!$A$2:$I$14,IF(MONTH($I$7)=12,6,9),FALSE)*(IF($AL25>100,0,$AL25)/100),AM25*VLOOKUP(C25&IF(AC25="Si","AM+E","AM"),Importes!$A$2:$I$14,IF(MONTH($I$7)=12,5,8),FALSE)*(IF($AL25>100,0,$AL25)/100)),2),0)) ->  | AT25: Non | BG25: 81.3 | BH25: =IFERROR(IF(AF25="AM",DF25,IF(AF25="AM+E",DF25,IF(AF25="CP",#REF!,IF(AF25="CV",DR25,IF(AF25="CV+E",DR25))))),0) -> 0 | BI25: =IFERROR(IF(OR(AD25="+CT",AF25=""),0,ROUND(IF(MOD(AG25,30)=0,QUOTIENT(AG25,30)*VLOOKUP(#REF!&AF25,Importes!$A$2:$F$14,6,FALSE)*(IF($AE25>100,0,$AE25)/100),AG25*VLOOKUP(#REF!&AF25,Importes!$A$2:$F$14,5,FALSE)*(IF($AE25>100,0,$AE25)/100)),2)),0) -> 0 | BK25: =IFERROR(ROUND(IF($AI$8="Anual",0.5,1)*IF(AND(AF25="AM",OR(EA25="ALINT",EA25="AL")),#REF!,IF(AND(AF25="AM",#REF!="x"),#REF!,"")),0),"") ->  | BL25: =IF(AJ25="","",IF(AJ25>0,ROUND(IF(MOD(AJ25,30)=0,QUOTIENT(AJ25,30)*VLOOKUP(#REF!&"CP",Importes!$A$2:$F$14,6,FALSE)*(IF($BG25>100,0,$BG25)/100),BK25*VLOOKUP(#REF!&"CP",Importes!$A$2:$F$14,5,FALSE)*(IF($BG25>100,0,$BG25)/100)),2),0)) ->  | BO25: =IF(AM25="","",IF(AM25>0,ROUND(IF(MOD(AM25,30)=0,QUOTIENT(AM25,30)*VLOOKUP(#REF!&IF(AC25="Si","AM+E","AM"),Importes!$A$2:$F$14,6,FALSE)*(IF($BG25>100,0,$BG25)/100),AM25*VLOOKUP(#REF!&IF(AC25="Si","AM+E","AM"),Importes!$A$2:$F$14,5,FALSE)*(IF($BG25>100,0,$BG25)/100)),2),0)) ->  | CV25: 0 | CW25: 0 | CX25: 0 | CY25: 0 | CZ25: 0 | DA25: 0 | DB25: 5 | DC25: 5 | DD25: 2025-01-01 | DE25: 2025-01-31 | DF25: 0 | DG25: 0 | DH25: 2025-01-01 | DI25: 2025-01-31 | DJ25: 00:00:00 | DK25: 2025-01-01 | DL25: 0 | DM25: 0 | DN25: 0 | DO25: 0 | DP25: 0 | DQ25: 2025-01-01 | DR25: 0 | DS25: 0 | DT25: 0 | DU25: 0 | DV25: 0 | DW25: 3 | DX25: 0 | DY25: 0 | DZ25: 0 | EA25: AA | EB25: A | EC25: A | ED25: NO | EG25: 148 | EH25: 30 | EI25: 30 | EJ25: 28 | EK25: 30 | EL25: 30 | EM25: 210 | EN25: 30 | EO25: 30 | EP25: 30 | EQ25: 30 | ER25: 30 | ES25: 30 | ET25: 30 | EU25: 1 | EV25: 1 | EW25: 1 | EX25: 1 | EY25: 1 | EZ25: 1 | FA25: 1 | FB25: 1 | FC25: 1 | FD25: 1 | FE25: 1 | FF25: 1 | FG25: 31 | FH25: 31 | FI25: 28 | FJ25: 31 | FK25: 30 | FL25: 31 | FM25: 30 | FN25: 31 | FO25: 31 | FP25: 30 | FQ25: 31 | FR25: 30
B26: 1 | Q26: =IFERROR(VLOOKUP(P26,Importes!L:Q,2,FALSE),"") ->  | S26: =IF(G26="","",#REF!) ->  | T26: =IF(G26="","",#REF!) ->  | W26: =IF(G26="","",IF($AG$8="x","Mensualidade",IF(AND($AG$8="",#REF!="x",$AH$8=DATE(YEAR($CU$7),12,1)),"Extra Inverno",IF(AND($AG$8="",#REF!="x",$AH$8=DATE(YEAR($CV$8),6,1)),"Extra Verán","")))) ->  | X26: 0 | AB26: AM+E | AC26: Si | AD26: 1 | AF26: AM+E | AG26: 0 | AH26: =IFERROR(IF(OR(AD26="+CT",AF26=""),0,ROUND(IF(MOD(AG26,30)=0,QUOTIENT(AG26,30)*VLOOKUP(C26&AF26,Importes!$A$2:$I$14,IF(MONTH($I$7)=12,6,9),FALSE)*(IF($AE26>100,0,$AE26)/100),AG26*VLOOKUP(C26&AF26,Importes!$A$2:$I$14,IF(MONTH($I$7)=12,5,8),FALSE)*(IF($AE26>100,0,$AE26)/100)),2)),0) -> 0 | AK26: =IFERROR(IF(AJ26="","",IF(AJ26<180,AJ26*VLOOKUP(#REF!&"CP",Importes!$A$2:$F$14,5,FALSE)*(IF($AI26>100,0,$AI26)/100),IF(AJ26=180,VLOOKUP(#REF!&"CP",Importes!$A$2:$F$14,6,FALSE)*6*(IF($AI26>100,0,$AI26)/100),0))),0) ->  | AN26: =IF(AM26="","",IF(AM26>0,ROUND(IF(MOD(AM26,30)=0,QUOTIENT(AM26,30)*VLOOKUP(C26&IF(AC26="Si","AM+E","AM"),Importes!$A$2:$I$14,IF(MONTH($I$7)=12,6,9),FALSE)*(IF($AL26>100,0,$AL26)/100),AM26*VLOOKUP(C26&IF(AC26="Si","AM+E","AM"),Importes!$A$2:$I$14,IF(MONTH($I$7)=12,5,8),FALSE)*(IF($AL26>100,0,$AL26)/100)),2),0)) ->  | AT26: Non | BG26: 81.3 | BH26: =IFERROR(IF(AF26="AM",DF26,IF(AF26="AM+E",DF26,IF(AF26="CP",#REF!,IF(AF26="CV",DR26,IF(AF26="CV+E",DR26))))),0) -> 0 | BI26: =IFERROR(IF(OR(AD26="+CT",AF26=""),0,ROUND(IF(MOD(AG26,30)=0,QUOTIENT(AG26,30)*VLOOKUP(#REF!&AF26,Importes!$A$2:$F$14,6,FALSE)*(IF($AE26>100,0,$AE26)/100),AG26*VLOOKUP(#REF!&AF26,Importes!$A$2:$F$14,5,FALSE)*(IF($AE26>100,0,$AE26)/100)),2)),0) -> 0 | BK26: =IFERROR(ROUND(IF($AI$8="Anual",0.5,1)*IF(AND(AF26="AM",OR(EA26="ALINT",EA26="AL")),#REF!,IF(AND(AF26="AM",#REF!="x"),#REF!,"")),0),"") ->  | BL26: =IF(AJ26="","",IF(AJ26>0,ROUND(IF(MOD(AJ26,30)=0,QUOTIENT(AJ26,30)*VLOOKUP(#REF!&"CP",Importes!$A$2:$F$14,6,FALSE)*(IF($BG26>100,0,$BG26)/100),BK26*VLOOKUP(#REF!&"CP",Importes!$A$2:$F$14,5,FALSE)*(IF($BG26>100,0,$BG26)/100)),2),0)) ->  | BO26: =IF(AM26="","",IF(AM26>0,ROUND(IF(MOD(AM26,30)=0,QUOTIENT(AM26,30)*VLOOKUP(#REF!&IF(AC26="Si","AM+E","AM"),Importes!$A$2:$F$14,6,FALSE)*(IF($BG26>100,0,$BG26)/100),AM26*VLOOKUP(#REF!&IF(AC26="Si","AM+E","AM"),Importes!$A$2:$F$14,5,FALSE)*(IF($BG26>100,0,$BG26)/100)),2),0)) ->  | CM26: =IF(VALUE($A26)=0,"",IF(CM$11="","",IF($O26<CM$6,"",IF($N26>CM$6,"",IF(AND(OR($O26="",$O26>=CM$6),$AR26="",$AF26<>""),"F",IF(AND($AR26<=CM$6,OR($AS26=$O26,$AS26>=CM$6,IF($AS26="",$AU$5))),"h",IF($DE26>=CM$6,"F",""))))))) ->  | CV26: 0 | CW26: 0 | CX26: 0 | CY26: 0 | CZ26: 0 | DA26: 0 | DB26: 5 | DC26: 5 | DD26: 2025-01-01 | DE26: 2025-01-31 | DF26: 0 | DG26: 0 | DH26: 2025-01-01 | DI26: 2025-01-31 | DJ26: 00:00:00 | DK26: 2025-01-01 | DL26: 0 | DM26: 0 | DN26: 0 | DO26: 0 | DP26: 0 | DQ26: 2025-01-01 | DR26: 0 | DS26: 0 | DT26: 0 | DU26: 0 | DV26: 0 | DW26: 3 | DX26: 0 | DY26: 0 | DZ26: 0 | EA26: AA | EB26: A | EC26: A | ED26: NO | EG26: 148 | EH26: 30 | EI26: 30 | EJ26: 28 | EK26: 30 | EL26: 30 | EM26: 210 | EN26: 30 | EO26: 30 | EP26: 30 | EQ26: 30 | ER26: 30 | ES26: 30 | ET26: 30 | EU26: 1 | EV26: 1 | EW26: 1 | EX26: 1 | EY26: 1 | EZ26: 1 | FA26: 1 | FB26: 1 | FC26: 1 | FD26: 1 | FE26: 1 | FF26: 1 | FG26: 31 | FH26: 31 | FI26: 28 | FJ26: 31 | FK26: 30 | FL26: 31 | FM26: 30 | FN26: 31 | FO26: 31 | FP26: 30 | FQ26: 31 | FR26: 30
B27: 1 | Q27: =IFERROR(VLOOKUP(P27,Importes!L:Q,2,FALSE),"") ->  | S27: =IF(G27="","",#REF!) ->  | T27: =IF(G27="","",#REF!) ->  | W27: =IF(G27="","",IF($AG$8="x","Mensualidade",IF(AND($AG$8="",#REF!="x",$AH$8=DATE(YEAR($CU$7),12,1)),"Extra Inverno",IF(AND($AG$8="",#REF!="x",$AH$8=DATE(YEAR($CV$8),6,1)),"Extra Verán","")))) ->  | X27: 0 | AB27: AM+E | AC27: Si | AD27: 1 | AF27: AM+E | AG27: 0 | AH27: =IFERROR(IF(OR(AD27="+CT",AF27=""),0,ROUND(IF(MOD(AG27,30)=0,QUOTIENT(AG27,30)*VLOOKUP(C27&AF27,Importes!$A$2:$I$14,IF(MONTH($I$7)=12,6,9),FALSE)*(IF($AE27>100,0,$AE27)/100),AG27*VLOOKUP(C27&AF27,Importes!$A$2:$I$14,IF(MONTH($I$7)=12,5,8),FALSE)*(IF($AE27>100,0,$AE27)/100)),2)),0) -> 0 | AK27: =IFERROR(IF(AJ27="","",IF(AJ27<180,AJ27*VLOOKUP(#REF!&"CP",Importes!$A$2:$F$14,5,FALSE)*(IF($AI27>100,0,$AI27)/100),IF(AJ27=180,VLOOKUP(#REF!&"CP",Importes!$A$2:$F$14,6,FALSE)*6*(IF($AI27>100,0,$AI27)/100),0))),0) ->  | AN27: =IF(AM27="","",IF(AM27>0,ROUND(IF(MOD(AM27,30)=0,QUOTIENT(AM27,30)*VLOOKUP(C27&IF(AC27="Si","AM+E","AM"),Importes!$A$2:$I$14,IF(MONTH($I$7)=12,6,9),FALSE)*(IF($AL27>100,0,$AL27)/100),AM27*VLOOKUP(C27&IF(AC27="Si","AM+E","AM"),Importes!$A$2:$I$14,IF(MONTH($I$7)=12,5,8),FALSE)*(IF($AL27>100,0,$AL27)/100)),2),0)) ->  | AT27: Non | BG27: 81.3 | BH27: =IFERROR(IF(AF27="AM",DF27,IF(AF27="AM+E",DF27,IF(AF27="CP",#REF!,IF(AF27="CV",DR27,IF(AF27="CV+E",DR27))))),0) -> 0 | BI27: =IFERROR(IF(OR(AD27="+CT",AF27=""),0,ROUND(IF(MOD(AG27,30)=0,QUOTIENT(AG27,30)*VLOOKUP(#REF!&AF27,Importes!$A$2:$F$14,6,FALSE)*(IF($AE27>100,0,$AE27)/100),AG27*VLOOKUP(#REF!&AF27,Importes!$A$2:$F$14,5,FALSE)*(IF($AE27>100,0,$AE27)/100)),2)),0) -> 0 | BK27: =IFERROR(ROUND(IF($AI$8="Anual",0.5,1)*IF(AND(AF27="AM",OR(EA27="ALINT",EA27="AL")),#REF!,IF(AND(AF27="AM",#REF!="x"),#REF!,"")),0),"") ->  | BL27: =IF(AJ27="","",IF(AJ27>0,ROUND(IF(MOD(AJ27,30)=0,QUOTIENT(AJ27,30)*VLOOKUP(#REF!&"CP",Importes!$A$2:$F$14,6,FALSE)*(IF($BG27>100,0,$BG27)/100),BK27*VLOOKUP(#REF!&"CP",Importes!$A$2:$F$14,5,FALSE)*(IF($BG27>100,0,$BG27)/100)),2),0)) ->  | BO27: =IF(AM27="","",IF(AM27>0,ROUND(IF(MOD(AM27,30)=0,QUOTIENT(AM27,30)*VLOOKUP(#REF!&IF(AC27="Si","AM+E","AM"),Importes!$A$2:$F$14,6,FALSE)*(IF($BG27>100,0,$BG27)/100),AM27*VLOOKUP(#REF!&IF(AC27="Si","AM+E","AM"),Importes!$A$2:$F$14,5,FALSE)*(IF($BG27>100,0,$BG27)/100)),2),0)) ->  | CV27: 0 | CW27: 0 | CX27: 0 | CY27: 0 | CZ27: 0 | DA27: 0 | DB27: 5 | DC27: 5 | DD27: 2025-01-01 | DE27: 2025-01-31 | DF27: 0 | DG27: 0 | DH27: 2025-01-01 | DI27: 2025-01-31 | DJ27: 00:00:00 | DK27: 2025-01-01 | DL27: 0 | DM27: 0 | DN27: 0 | DO27: 0 | DP27: 0 | DQ27: 2025-01-01 | DR27: 0 | DS27: 0 | DT27: 0 | DU27: 0 | DV27: 0 | DW27: 3 | DX27: 0 | DY27: 0 | DZ27: 0 | EA27: AA | EB27: A | EC27: A | ED27: NO | EG27: 148 | EH27: 30 | EI27: 30 | EJ27: 28 | EK27: 30 | EL27: 30 | EM27: 210 | EN27: 30 | EO27: 30 | EP27: 30 | EQ27: 30 | ER27: 30 | ES27: 30 | ET27: 30 | EU27: 1 | EV27: 1 | EW27: 1 | EX27: 1 | EY27: 1 | EZ27: 1 | FA27: 1 | FB27: 1 | FC27: 1 | FD27: 1 | FE27: 1 | FF27: 1 | FG27: 31 | FH27: 31 | FI27: 28 | FJ27: 31 | FK27: 30 | FL27: 31 | FM27: 30 | FN27: 31 | FO27: 31 | FP27: 30 | FQ27: 31 | FR27: 30
B28: 1 | Q28: =IFERROR(VLOOKUP(P28,Importes!L:Q,2,FALSE),"") ->  | S28: =IF(G28="","",#REF!) ->  | T28: =IF(G28="","",#REF!) ->  | W28: =IF(G28="","",IF($AG$8="x","Mensualidade",IF(AND($AG$8="",#REF!="x",$AH$8=DATE(YEAR($CU$7),12,1)),"Extra Inverno",IF(AND($AG$8="",#REF!="x",$AH$8=DATE(YEAR($CV$8),6,1)),"Extra Verán","")))) ->  | X28: 0 | AB28: AM+E | AC28: Si | AD28: 1 | AF28: AM+E | AG28: 0 | AH28: =IFERROR(IF(OR(AD28="+CT",AF28=""),0,ROUND(IF(MOD(AG28,30)=0,QUOTIENT(AG28,30)*VLOOKUP(C28&AF28,Importes!$A$2:$I$14,IF(MONTH($I$7)=12,6,9),FALSE)*(IF($AE28>100,0,$AE28)/100),AG28*VLOOKUP(C28&AF28,Importes!$A$2:$I$14,IF(MONTH($I$7)=12,5,8),FALSE)*(IF($AE28>100,0,$AE28)/100)),2)),0) -> 0 | AK28: =IFERROR(IF(AJ28="","",IF(AJ28<180,AJ28*VLOOKUP(#REF!&"CP",Importes!$A$2:$F$14,5,FALSE)*(IF($AI28>100,0,$AI28)/100),IF(AJ28=180,VLOOKUP(#REF!&"CP",Importes!$A$2:$F$14,6,FALSE)*6*(IF($AI28>100,0,$AI28)/100),0))),0) ->  | AN28: =IF(AM28="","",IF(AM28>0,ROUND(IF(MOD(AM28,30)=0,QUOTIENT(AM28,30)*VLOOKUP(C28&IF(AC28="Si","AM+E","AM"),Importes!$A$2:$I$14,IF(MONTH($I$7)=12,6,9),FALSE)*(IF($AL28>100,0,$AL28)/100),AM28*VLOOKUP(C28&IF(AC28="Si","AM+E","AM"),Importes!$A$2:$I$14,IF(MONTH($I$7)=12,5,8),FALSE)*(IF($AL28>100,0,$AL28)/100)),2),0)) ->  | AT28: Non | BG28: 81.3 | BH28: =IFERROR(IF(AF28="AM",DF28,IF(AF28="AM+E",DF28,IF(AF28="CP",#REF!,IF(AF28="CV",DR28,IF(AF28="CV+E",DR28))))),0) -> 0 | BI28: =IFERROR(IF(OR(AD28="+CT",AF28=""),0,ROUND(IF(MOD(AG28,30)=0,QUOTIENT(AG28,30)*VLOOKUP(#REF!&AF28,Importes!$A$2:$F$14,6,FALSE)*(IF($AE28>100,0,$AE28)/100),AG28*VLOOKUP(#REF!&AF28,Importes!$A$2:$F$14,5,FALSE)*(IF($AE28>100,0,$AE28)/100)),2)),0) -> 0 | BK28: =IFERROR(ROUND(IF($AI$8="Anual",0.5,1)*IF(AND(AF28="AM",OR(EA28="ALINT",EA28="AL")),#REF!,IF(AND(AF28="AM",#REF!="x"),#REF!,"")),0),"") ->  | BL28: =IF(AJ28="","",IF(AJ28>0,ROUND(IF(MOD(AJ28,30)=0,QUOTIENT(AJ28,30)*VLOOKUP(#REF!&"CP",Importes!$A$2:$F$14,6,FALSE)*(IF($BG28>100,0,$BG28)/100),BK28*VLOOKUP(#REF!&"CP",Importes!$A$2:$F$14,5,FALSE)*(IF($BG28>100,0,$BG28)/100)),2),0)) ->  | BO28: =IF(AM28="","",IF(AM28>0,ROUND(IF(MOD(AM28,30)=0,QUOTIENT(AM28,30)*VLOOKUP(#REF!&IF(AC28="Si","AM+E","AM"),Importes!$A$2:$F$14,6,FALSE)*(IF($BG28>100,0,$BG28)/100),AM28*VLOOKUP(#REF!&IF(AC28="Si","AM+E","AM"),Importes!$A$2:$F$14,5,FALSE)*(IF($BG28>100,0,$BG28)/100)),2),0)) ->  | BQ28: =IF(VALUE($A28)=0,"",IF(BQ$11="","",IF($O28<BQ$6,"",IF($N28>BQ$6,"",IF(AND(OR($O28="",$O28>=BQ$6),$AR28="",$AF28<>""),"F",IF(AND($AR28<=BQ$6,OR($AS28=$O28,$AS28>=BQ$6,IF($AS28="",$AU$5))),"h",IF($DE28>=BQ$6,"F",""))))))) ->  | CG28: =IF(VALUE($A28)=0,"",IF(CG$11="","",IF($O28<CG$6,"",IF($N28>CG$6,"",IF(AND(OR($O28="",$O28>=CG$6),$AR28="",$AF28<>""),"F",IF(AND($AR28<=CG$6,OR($AS28=$O28,$AS28>=CG$6,IF($AS28="",$AU$5))),"h",IF($DE28>=CG$6,"F",""))))))) ->  | CV28: 0 | CW28: 0 | CX28: 0 | CY28: 0 | CZ28: 0 | DA28: 0 | DB28: 5 | DC28: 5 | DD28: 2025-01-01 | DE28: 2025-01-31 | DF28: 0 | DG28: 0 | DH28: 2025-01-01 | DI28: 2025-01-31 | DJ28: 00:00:00 | DK28: 2025-01-01 | DL28: 0 | DM28: 0 | DN28: 0 | DO28: 0 | DP28: 0 | DQ28: 2025-01-01 | DR28: 0 | DS28: 0 | DT28: 0 | DU28: 0 | DV28: 0 | DW28: 3 | DX28: 0 | DY28: 0 | DZ28: 0 | EA28: AA | EB28: A | EC28: A | ED28: NO | EG28: 148 | EH28: 30 | EI28: 30 | EJ28: 28 | EK28: 30 | EL28: 30 | EM28: 210 | EN28: 30 | EO28: 30 | EP28: 30 | EQ28: 30 | ER28: 30 | ES28: 30 | ET28: 30 | EU28: 1 | EV28: 1 | EW28: 1 | EX28: 1 | EY28: 1 | EZ28: 1 | FA28: 1 | FB28: 1 | FC28: 1 | FD28: 1 | FE28: 1 | FF28: 1 | FG28: 31 | FH28: 31 | FI28: 28 | FJ28: 31 | FK28: 30 | FL28: 31 | FM28: 30 | FN28: 31 | FO28: 31 | FP28: 30 | FQ28: 31 | FR28: 30
B29: 1 | Q29: =IFERROR(VLOOKUP(P29,Importes!L:Q,2,FALSE),"") ->  | S29: =IF(G29="","",#REF!) ->  | T29: =IF(G29="","",#REF!) ->  | W29: =IF(G29="","",IF($AG$8="x","Mensualidade",IF(AND($AG$8="",#REF!="x",$AH$8=DATE(YEAR($CU$7),12,1)),"Extra Inverno",IF(AND($AG$8="",#REF!="x",$AH$8=DATE(YEAR($CV$8),6,1)),"Extra Verán","")))) ->  | X29: 0 | AB29: AM+E | AC29: Si | AD29: 1 | AF29: AM+E | AG29: 0 | AH29: =IFERROR(IF(OR(AD29="+CT",AF29=""),0,ROUND(IF(MOD(AG29,30)=0,QUOTIENT(AG29,30)*VLOOKUP(C29&AF29,Importes!$A$2:$I$14,IF(MONTH($I$7)=12,6,9),FALSE)*(IF($AE29>100,0,$AE29)/100),AG29*VLOOKUP(C29&AF29,Importes!$A$2:$I$14,IF(MONTH($I$7)=12,5,8),FALSE)*(IF($AE29>100,0,$AE29)/100)),2)),0) -> 0 | AK29: =IFERROR(IF(AJ29="","",IF(AJ29<180,AJ29*VLOOKUP(#REF!&"CP",Importes!$A$2:$F$14,5,FALSE)*(IF($AI29>100,0,$AI29)/100),IF(AJ29=180,VLOOKUP(#REF!&"CP",Importes!$A$2:$F$14,6,FALSE)*6*(IF($AI29>100,0,$AI29)/100),0))),0) ->  | AN29: =IF(AM29="","",IF(AM29>0,ROUND(IF(MOD(AM29,30)=0,QUOTIENT(AM29,30)*VLOOKUP(C29&IF(AC29="Si","AM+E","AM"),Importes!$A$2:$I$14,IF(MONTH($I$7)=12,6,9),FALSE)*(IF($AL29>100,0,$AL29)/100),AM29*VLOOKUP(C29&IF(AC29="Si","AM+E","AM"),Importes!$A$2:$I$14,IF(MONTH($I$7)=12,5,8),FALSE)*(IF($AL29>100,0,$AL29)/100)),2),0)) ->  | AT29: Non | BG29: 81.3 | BH29: =IFERROR(IF(AF29="AM",DF29,IF(AF29="AM+E",DF29,IF(AF29="CP",#REF!,IF(AF29="CV",DR29,IF(AF29="CV+E",DR29))))),0) -> 0 | BI29: =IFERROR(IF(OR(AD29="+CT",AF29=""),0,ROUND(IF(MOD(AG29,30)=0,QUOTIENT(AG29,30)*VLOOKUP(#REF!&AF29,Importes!$A$2:$F$14,6,FALSE)*(IF($AE29>100,0,$AE29)/100),AG29*VLOOKUP(#REF!&AF29,Importes!$A$2:$F$14,5,FALSE)*(IF($AE29>100,0,$AE29)/100)),2)),0) -> 0 | BK29: =IFERROR(ROUND(IF($AI$8="Anual",0.5,1)*IF(AND(AF29="AM",OR(EA29="ALINT",EA29="AL")),#REF!,IF(AND(AF29="AM",#REF!="x"),#REF!,"")),0),"") ->  | BL29: =IF(AJ29="","",IF(AJ29>0,ROUND(IF(MOD(AJ29,30)=0,QUOTIENT(AJ29,30)*VLOOKUP(#REF!&"CP",Importes!$A$2:$F$14,6,FALSE)*(IF($BG29>100,0,$BG29)/100),BK29*VLOOKUP(#REF!&"CP",Importes!$A$2:$F$14,5,FALSE)*(IF($BG29>100,0,$BG29)/100)),2),0)) ->  | BO29: =IF(AM29="","",IF(AM29>0,ROUND(IF(MOD(AM29,30)=0,QUOTIENT(AM29,30)*VLOOKUP(#REF!&IF(AC29="Si","AM+E","AM"),Importes!$A$2:$F$14,6,FALSE)*(IF($BG29>100,0,$BG29)/100),AM29*VLOOKUP(#REF!&IF(AC29="Si","AM+E","AM"),Importes!$A$2:$F$14,5,FALSE)*(IF($BG29>100,0,$BG29)/100)),2),0)) ->  | CV29: 0 | CW29: 0 | CX29: 0 | CY29: 0 | CZ29: 0 | DA29: 0 | DB29: 5 | DC29: 5 | DD29: 2025-01-01 | DE29: 2025-01-31 | DF29: 0 | DG29: 0 | DH29: 2025-01-01 | DI29: 2025-01-31 | DJ29: 00:00:00 | DK29: 2025-01-01 | DL29: 0 | DM29: 0 | DN29: 0 | DO29: 0 | DP29: 0 | DQ29: 2025-01-01 | DR29: 0 | DS29: 0 | DT29: 0 | DU29: 0 | DV29: 0 | DW29: 3 | DX29: 0 | DY29: 0 | DZ29: 0 | EA29: AA | EB29: A | EC29: A | ED29: NO | EG29: 148 | EH29: 30 | EI29: 30 | EJ29: 28 | EK29: 30 | EL29: 30 | EM29: 210 | EN29: 30 | EO29: 30 | EP29: 30 | EQ29: 30 | ER29: 30 | ES29: 30 | ET29: 30 | EU29: 1 | EV29: 1 | EW29: 1 | EX29: 1 | EY29: 1 | EZ29: 1 | FA29: 1 | FB29: 1 | FC29: 1 | FD29: 1 | FE29: 1 | FF29: 1 | FG29: 31 | FH29: 31 | FI29: 28 | FJ29: 31 | FK29: 30 | FL29: 31 | FM29: 30 | FN29: 31 | FO29: 31 | FP29: 30 | FQ29: 31 | FR29: 30
B30: 1 | Q30: =IFERROR(VLOOKUP(P30,Importes!L:Q,2,FALSE),"") ->  | S30: =IF(G30="","",#REF!) ->  | T30: =IF(G30="","",#REF!) ->  | W30: =IF(G30="","",IF($AG$8="x","Mensualidade",IF(AND($AG$8="",#REF!="x",$AH$8=DATE(YEAR($CU$7),12,1)),"Extra Inverno",IF(AND($AG$8="",#REF!="x",$AH$8=DATE(YEAR($CV$8),6,1)),"Extra Verán","")))) ->  | X30: 0 | AB30: AM+E | AC30: Si | AD30: 1 | AF30: AM+E | AG30: 0 | AH30: =IFERROR(IF(OR(AD30="+CT",AF30=""),0,ROUND(IF(MOD(AG30,30)=0,QUOTIENT(AG30,30)*VLOOKUP(C30&AF30,Importes!$A$2:$I$14,IF(MONTH($I$7)=12,6,9),FALSE)*(IF($AE30>100,0,$AE30)/100),AG30*VLOOKUP(C30&AF30,Importes!$A$2:$I$14,IF(MONTH($I$7)=12,5,8),FALSE)*(IF($AE30>100,0,$AE30)/100)),2)),0) -> 0 | AK30: =IFERROR(IF(AJ30="","",IF(AJ30<180,AJ30*VLOOKUP(#REF!&"CP",Importes!$A$2:$F$14,5,FALSE)*(IF($AI30>100,0,$AI30)/100),IF(AJ30=180,VLOOKUP(#REF!&"CP",Importes!$A$2:$F$14,6,FALSE)*6*(IF($AI30>100,0,$AI30)/100),0))),0) ->  | AN30: =IF(AM30="","",IF(AM30>0,ROUND(IF(MOD(AM30,30)=0,QUOTIENT(AM30,30)*VLOOKUP(C30&IF(AC30="Si","AM+E","AM"),Importes!$A$2:$I$14,IF(MONTH($I$7)=12,6,9),FALSE)*(IF($AL30>100,0,$AL30)/100),AM30*VLOOKUP(C30&IF(AC30="Si","AM+E","AM"),Importes!$A$2:$I$14,IF(MONTH($I$7)=12,5,8),FALSE)*(IF($AL30>100,0,$AL30)/100)),2),0)) ->  | AT30: Non | BG30: 81.3 | BH30: =IFERROR(IF(AF30="AM",DF30,IF(AF30="AM+E",DF30,IF(AF30="CP",#REF!,IF(AF30="CV",DR30,IF(AF30="CV+E",DR30))))),0) -> 0 | BI30: =IFERROR(IF(OR(AD30="+CT",AF30=""),0,ROUND(IF(MOD(AG30,30)=0,QUOTIENT(AG30,30)*VLOOKUP(#REF!&AF30,Importes!$A$2:$F$14,6,FALSE)*(IF($AE30>100,0,$AE30)/100),AG30*VLOOKUP(#REF!&AF30,Importes!$A$2:$F$14,5,FALSE)*(IF($AE30>100,0,$AE30)/100)),2)),0) -> 0 | BK30: =IFERROR(ROUND(IF($AI$8="Anual",0.5,1)*IF(AND(AF30="AM",OR(EA30="ALINT",EA30="AL")),#REF!,IF(AND(AF30="AM",#REF!="x"),#REF!,"")),0),"") ->  | BL30: =IF(AJ30="","",IF(AJ30>0,ROUND(IF(MOD(AJ30,30)=0,QUOTIENT(AJ30,30)*VLOOKUP(#REF!&"CP",Importes!$A$2:$F$14,6,FALSE)*(IF($BG30>100,0,$BG30)/100),BK30*VLOOKUP(#REF!&"CP",Importes!$A$2:$F$14,5,FALSE)*(IF($BG30>100,0,$BG30)/100)),2),0)) ->  | BO30: =IF(AM30="","",IF(AM30>0,ROUND(IF(MOD(AM30,30)=0,QUOTIENT(AM30,30)*VLOOKUP(#REF!&IF(AC30="Si","AM+E","AM"),Importes!$A$2:$F$14,6,FALSE)*(IF($BG30>100,0,$BG30)/100),AM30*VLOOKUP(#REF!&IF(AC30="Si","AM+E","AM"),Importes!$A$2:$F$14,5,FALSE)*(IF($BG30>100,0,$BG30)/100)),2),0)) ->  | CV30: 0 | CW30: 0 | CX30: 0 | CY30: 0 | CZ30: 0 | DA30: 0 | DB30: 5 | DC30: 5 | DD30: 2025-01-01 | DE30: 2025-01-31 | DF30: 0 | DG30: 0 | DH30: 2025-01-01 | DI30: 2025-01-31 | DJ30: 00:00:00 | DK30: 2025-01-01 | DL30: 0 | DM30: 0 | DN30: 0 | DO30: 0 | DP30: 0 | DQ30: 2025-01-01 | DR30: 0 | DS30: 0 | DT30: 0 | DU30: 0 | DV30: 0 | DW30: 3 | DX30: 0 | DY30: 0 | DZ30: 0 | EA30: AA | EB30: A | EC30: A | ED30: NO | EG30: 148 | EH30: 30 | EI30: 30 | EJ30: 28 | EK30: 30 | EL30: 30 | EM30: 210 | EN30: 30 | EO30: 30 | EP30: 30 | EQ30: 30 | ER30: 30 | ES30: 30 | ET30: 30 | EU30: 1 | EV30: 1 | EW30: 1 | EX30: 1 | EY30: 1 | EZ30: 1 | FA30: 1 | FB30: 1 | FC30: 1 | FD30: 1 | FE30: 1 | FF30: 1 | FG30: 31 | FH30: 31 | FI30: 28 | FJ30: 31 | FK30: 30 | FL30: 31 | FM30: 30 | FN30: 31 | FO30: 31 | FP30: 30 | FQ30: 31 | FR30: 30
B31: 1 | Q31: =IFERROR(VLOOKUP(P31,Importes!L:Q,2,FALSE),"") ->  | S31: =IF(G31="","",#REF!) ->  | T31: =IF(G31="","",#REF!) ->  | W31: =IF(G31="","",IF($AG$8="x","Mensualidade",IF(AND($AG$8="",#REF!="x",$AH$8=DATE(YEAR($CU$7),12,1)),"Extra Inverno",IF(AND($AG$8="",#REF!="x",$AH$8=DATE(YEAR($CV$8),6,1)),"Extra Verán","")))) ->  | X31: 0 | AB31: AM+E | AC31: Si | AD31: 1 | AF31: AM+E | AG31: 0 | AH31: =IFERROR(IF(OR(AD31="+CT",AF31=""),0,ROUND(IF(MOD(AG31,30)=0,QUOTIENT(AG31,30)*VLOOKUP(C31&AF31,Importes!$A$2:$I$14,IF(MONTH($I$7)=12,6,9),FALSE)*(IF($AE31>100,0,$AE31)/100),AG31*VLOOKUP(C31&AF31,Importes!$A$2:$I$14,IF(MONTH($I$7)=12,5,8),FALSE)*(IF($AE31>100,0,$AE31)/100)),2)),0) -> 0 | AK31: =IFERROR(IF(AJ31="","",IF(AJ31<180,AJ31*VLOOKUP(#REF!&"CP",Importes!$A$2:$F$14,5,FALSE)*(IF($AI31>100,0,$AI31)/100),IF(AJ31=180,VLOOKUP(#REF!&"CP",Importes!$A$2:$F$14,6,FALSE)*6*(IF($AI31>100,0,$AI31)/100),0))),0) ->  | AN31: =IF(AM31="","",IF(AM31>0,ROUND(IF(MOD(AM31,30)=0,QUOTIENT(AM31,30)*VLOOKUP(C31&IF(AC31="Si","AM+E","AM"),Importes!$A$2:$I$14,IF(MONTH($I$7)=12,6,9),FALSE)*(IF($AL31>100,0,$AL31)/100),AM31*VLOOKUP(C31&IF(AC31="Si","AM+E","AM"),Importes!$A$2:$I$14,IF(MONTH($I$7)=12,5,8),FALSE)*(IF($AL31>100,0,$AL31)/100)),2),0)) ->  | AT31: Non | BG31: 81.3 | BH31: =IFERROR(IF(AF31="AM",DF31,IF(AF31="AM+E",DF31,IF(AF31="CP",#REF!,IF(AF31="CV",DR31,IF(AF31="CV+E",DR31))))),0) -> 0 | BI31: =IFERROR(IF(OR(AD31="+CT",AF31=""),0,ROUND(IF(MOD(AG31,30)=0,QUOTIENT(AG31,30)*VLOOKUP(#REF!&AF31,Importes!$A$2:$F$14,6,FALSE)*(IF($AE31>100,0,$AE31)/100),AG31*VLOOKUP(#REF!&AF31,Importes!$A$2:$F$14,5,FALSE)*(IF($AE31>100,0,$AE31)/100)),2)),0) -> 0 | BK31: =IFERROR(ROUND(IF($AI$8="Anual",0.5,1)*IF(AND(AF31="AM",OR(EA31="ALINT",EA31="AL")),#REF!,IF(AND(AF31="AM",#REF!="x"),#REF!,"")),0),"") ->  | BL31: =IF(AJ31="","",IF(AJ31>0,ROUND(IF(MOD(AJ31,30)=0,QUOTIENT(AJ31,30)*VLOOKUP(#REF!&"CP",Importes!$A$2:$F$14,6,FALSE)*(IF($BG31>100,0,$BG31)/100),BK31*VLOOKUP(#REF!&"CP",Importes!$A$2:$F$14,5,FALSE)*(IF($BG31>100,0,$BG31)/100)),2),0)) ->  | BO31: =IF(AM31="","",IF(AM31>0,ROUND(IF(MOD(AM31,30)=0,QUOTIENT(AM31,30)*VLOOKUP(#REF!&IF(AC31="Si","AM+E","AM"),Importes!$A$2:$F$14,6,FALSE)*(IF($BG31>100,0,$BG31)/100),AM31*VLOOKUP(#REF!&IF(AC31="Si","AM+E","AM"),Importes!$A$2:$F$14,5,FALSE)*(IF($BG31>100,0,$BG31)/100)),2),0)) ->  | CV31: 0 | CW31: 0 | CX31: 0 | CY31: 0 | CZ31: 0 | DA31: 0 | DB31: 5 | DC31: 5 | DD31: 2025-01-01 | DE31: 2025-01-31 | DF31: 0 | DG31: 0 | DH31: 2025-01-01 | DI31: 2025-01-31 | DJ31: 00:00:00 | DK31: 2025-01-01 | DL31: 0 | DM31: 0 | DN31: 0 | DO31: 0 | DP31: 0 | DQ31: 2025-01-01 | DR31: 0 | DS31: 0 | DT31: 0 | DU31: 0 | DV31: 0 | DW31: 3 | DX31: 0 | DY31: 0 | DZ31: 0 | EA31: AA | EB31: A | EC31: A | ED31: NO | EG31: 148 | EH31: 30 | EI31: 30 | EJ31: 28 | EK31: 30 | EL31: 30 | EM31: 210 | EN31: 30 | EO31: 30 | EP31: 30 | EQ31: 30 | ER31: 30 | ES31: 30 | ET31: 30 | EU31: 1 | EV31: 1 | EW31: 1 | EX31: 1 | EY31: 1 | EZ31: 1 | FA31: 1 | FB31: 1 | FC31: 1 | FD31: 1 | FE31: 1 | FF31: 1 | FG31: 31 | FH31: 31 | FI31: 28 | FJ31: 31 | FK31: 30 | FL31: 31 | FM31: 30 | FN31: 31 | FO31: 31 | FP31: 30 | FQ31: 31 | FR31: 30
B32: 1 | Q32: =IFERROR(VLOOKUP(P32,Importes!L:Q,2,FALSE),"") ->  | S32: =IF(G32="","",#REF!) ->  | T32: =IF(G32="","",#REF!) ->  | W32: =IF(G32="","",IF($AG$8="x","Mensualidade",IF(AND($AG$8="",#REF!="x",$AH$8=DATE(YEAR($CU$7),12,1)),"Extra Inverno",IF(AND($AG$8="",#REF!="x",$AH$8=DATE(YEAR($CV$8),6,1)),"Extra Verán","")))) ->  | X32: 0 | AB32: AM+E | AC32: Si | AD32: 1 | AF32: AM+E | AG32: 0 | AH32: =IFERROR(IF(OR(AD32="+CT",AF32=""),0,ROUND(IF(MOD(AG32,30)=0,QUOTIENT(AG32,30)*VLOOKUP(C32&AF32,Importes!$A$2:$I$14,IF(MONTH($I$7)=12,6,9),FALSE)*(IF($AE32>100,0,$AE32)/100),AG32*VLOOKUP(C32&AF32,Importes!$A$2:$I$14,IF(MONTH($I$7)=12,5,8),FALSE)*(IF($AE32>100,0,$AE32)/100)),2)),0) -> 0 | AK32: =IFERROR(IF(AJ32="","",IF(AJ32<180,AJ32*VLOOKUP(#REF!&"CP",Importes!$A$2:$F$14,5,FALSE)*(IF($AI32>100,0,$AI32)/100),IF(AJ32=180,VLOOKUP(#REF!&"CP",Importes!$A$2:$F$14,6,FALSE)*6*(IF($AI32>100,0,$AI32)/100),0))),0) ->  | AN32: =IF(AM32="","",IF(AM32>0,ROUND(IF(MOD(AM32,30)=0,QUOTIENT(AM32,30)*VLOOKUP(C32&IF(AC32="Si","AM+E","AM"),Importes!$A$2:$I$14,IF(MONTH($I$7)=12,6,9),FALSE)*(IF($AL32>100,0,$AL32)/100),AM32*VLOOKUP(C32&IF(AC32="Si","AM+E","AM"),Importes!$A$2:$I$14,IF(MONTH($I$7)=12,5,8),FALSE)*(IF($AL32>100,0,$AL32)/100)),2),0)) ->  | AT32: Non | BG32: 81.3 | BH32: =IFERROR(IF(AF32="AM",DF32,IF(AF32="AM+E",DF32,IF(AF32="CP",#REF!,IF(AF32="CV",DR32,IF(AF32="CV+E",DR32))))),0) -> 0 | BI32: =IFERROR(IF(OR(AD32="+CT",AF32=""),0,ROUND(IF(MOD(AG32,30)=0,QUOTIENT(AG32,30)*VLOOKUP(#REF!&AF32,Importes!$A$2:$F$14,6,FALSE)*(IF($AE32>100,0,$AE32)/100),AG32*VLOOKUP(#REF!&AF32,Importes!$A$2:$F$14,5,FALSE)*(IF($AE32>100,0,$AE32)/100)),2)),0) -> 0 | BK32: =IFERROR(ROUND(IF($AI$8="Anual",0.5,1)*IF(AND(AF32="AM",OR(EA32="ALINT",EA32="AL")),#REF!,IF(AND(AF32="AM",#REF!="x"),#REF!,"")),0),"") ->  | BL32: =IF(AJ32="","",IF(AJ32>0,ROUND(IF(MOD(AJ32,30)=0,QUOTIENT(AJ32,30)*VLOOKUP(#REF!&"CP",Importes!$A$2:$F$14,6,FALSE)*(IF($BG32>100,0,$BG32)/100),BK32*VLOOKUP(#REF!&"CP",Importes!$A$2:$F$14,5,FALSE)*(IF($BG32>100,0,$BG32)/100)),2),0)) ->  | BO32: =IF(AM32="","",IF(AM32>0,ROUND(IF(MOD(AM32,30)=0,QUOTIENT(AM32,30)*VLOOKUP(#REF!&IF(AC32="Si","AM+E","AM"),Importes!$A$2:$F$14,6,FALSE)*(IF($BG32>100,0,$BG32)/100),AM32*VLOOKUP(#REF!&IF(AC32="Si","AM+E","AM"),Importes!$A$2:$F$14,5,FALSE)*(IF($BG32>100,0,$BG32)/100)),2),0)) ->  | CV32: 0 | CW32: 0 | CX32: 0 | CY32: 0 | CZ32: 0 | DA32: 0 | DB32: 5 | DC32: 5 | DD32: 2025-01-01 | DE32: 2025-01-31 | DF32: 0 | DG32: 0 | DH32: 2025-01-01 | DI32: 2025-01-31 | DJ32: 00:00:00 | DK32: 2025-01-01 | DL32: 0 | DM32: 0 | DN32: 0 | DO32: 0 | DP32: 0 | DQ32: 2025-01-01 | DR32: 0 | DS32: 0 | DT32: 0 | DU32: 0 | DV32: 0 | DW32: 3 | DX32: 0 | DY32: 0 | DZ32: 0 | EA32: AA | EB32: A | EC32: A | ED32: NO | EG32: 148 | EH32: 30 | EI32: 30 | EJ32: 28 | EK32: 30 | EL32: 30 | EM32: 210 | EN32: 30 | EO32: 30 | EP32: 30 | EQ32: 30 | ER32: 30 | ES32: 30 | ET32: 30 | EU32: 1 | EV32: 1 | EW32: 1 | EX32: 1 | EY32: 1 | EZ32: 1 | FA32: 1 | FB32: 1 | FC32: 1 | FD32: 1 | FE32: 1 | FF32: 1 | FG32: 31 | FH32: 31 | FI32: 28 | FJ32: 31 | FK32: 30 | FL32: 31 | FM32: 30 | FN32: 31 | FO32: 31 | FP32: 30 | FQ32: 31 | FR32: 30
B33: 1 | Q33: =IFERROR(VLOOKUP(P33,Importes!L:Q,2,FALSE),"") ->  | S33: =IF(G33="","",#REF!) ->  | T33: =IF(G33="","",#REF!) ->  | W33: =IF(G33="","",IF($AG$8="x","Mensualidade",IF(AND($AG$8="",#REF!="x",$AH$8=DATE(YEAR($CU$7),12,1)),"Extra Inverno",IF(AND($AG$8="",#REF!="x",$AH$8=DATE(YEAR($CV$8),6,1)),"Extra Verán","")))) ->  | X33: 0 | AB33: AM+E | AC33: Si | AD33: 1 | AF33: AM+E | AG33: 0 | AH33: =IFERROR(IF(OR(AD33="+CT",AF33=""),0,ROUND(IF(MOD(AG33,30)=0,QUOTIENT(AG33,30)*VLOOKUP(C33&AF33,Importes!$A$2:$I$14,IF(MONTH($I$7)=12,6,9),FALSE)*(IF($AE33>100,0,$AE33)/100),AG33*VLOOKUP(C33&AF33,Importes!$A$2:$I$14,IF(MONTH($I$7)=12,5,8),FALSE)*(IF($AE33>100,0,$AE33)/100)),2)),0) -> 0 | AK33: =IFERROR(IF(AJ33="","",IF(AJ33<180,AJ33*VLOOKUP(#REF!&"CP",Importes!$A$2:$F$14,5,FALSE)*(IF($AI33>100,0,$AI33)/100),IF(AJ33=180,VLOOKUP(#REF!&"CP",Importes!$A$2:$F$14,6,FALSE)*6*(IF($AI33>100,0,$AI33)/100),0))),0) ->  | AN33: =IF(AM33="","",IF(AM33>0,ROUND(IF(MOD(AM33,30)=0,QUOTIENT(AM33,30)*VLOOKUP(C33&IF(AC33="Si","AM+E","AM"),Importes!$A$2:$I$14,IF(MONTH($I$7)=12,6,9),FALSE)*(IF($AL33>100,0,$AL33)/100),AM33*VLOOKUP(C33&IF(AC33="Si","AM+E","AM"),Importes!$A$2:$I$14,IF(MONTH($I$7)=12,5,8),FALSE)*(IF($AL33>100,0,$AL33)/100)),2),0)) ->  | AT33: Non | BG33: 81.3 | BH33: =IFERROR(IF(AF33="AM",DF33,IF(AF33="AM+E",DF33,IF(AF33="CP",#REF!,IF(AF33="CV",DR33,IF(AF33="CV+E",DR33))))),0) -> 0 | BI33: =IFERROR(IF(OR(AD33="+CT",AF33=""),0,ROUND(IF(MOD(AG33,30)=0,QUOTIENT(AG33,30)*VLOOKUP(#REF!&AF33,Importes!$A$2:$F$14,6,FALSE)*(IF($AE33>100,0,$AE33)/100),AG33*VLOOKUP(#REF!&AF33,Importes!$A$2:$F$14,5,FALSE)*(IF($AE33>100,0,$AE33)/100)),2)),0) -> 0 | BK33: =IFERROR(ROUND(IF($AI$8="Anual",0.5,1)*IF(AND(AF33="AM",OR(EA33="ALINT",EA33="AL")),#REF!,IF(AND(AF33="AM",#REF!="x"),#REF!,"")),0),"") ->  | BL33: =IF(AJ33="","",IF(AJ33>0,ROUND(IF(MOD(AJ33,30)=0,QUOTIENT(AJ33,30)*VLOOKUP(#REF!&"CP",Importes!$A$2:$F$14,6,FALSE)*(IF($BG33>100,0,$BG33)/100),BK33*VLOOKUP(#REF!&"CP",Importes!$A$2:$F$14,5,FALSE)*(IF($BG33>100,0,$BG33)/100)),2),0)) ->  | BO33: =IF(AM33="","",IF(AM33>0,ROUND(IF(MOD(AM33,30)=0,QUOTIENT(AM33,30)*VLOOKUP(#REF!&IF(AC33="Si","AM+E","AM"),Importes!$A$2:$F$14,6,FALSE)*(IF($BG33>100,0,$BG33)/100),AM33*VLOOKUP(#REF!&IF(AC33="Si","AM+E","AM"),Importes!$A$2:$F$14,5,FALSE)*(IF($BG33>100,0,$BG33)/100)),2),0)) ->  | CV33: 0 | CW33: 0 | CX33: 0 | CY33: 0 | CZ33: 0 | DA33: 0 | DB33: 5 | DC33: 5 | DD33: 2025-01-01 | DE33: 2025-01-31 | DF33: 0 | DG33: 0 | DH33: 2025-01-01 | DI33: 2025-01-31 | DJ33: 00:00:00 | DK33: 2025-01-01 | DL33: 0 | DM33: 0 | DN33: 0 | DO33: 0 | DP33: 0 | DQ33: 2025-01-01 | DR33: 0 | DS33: 0 | DT33: 0 | DU33: 0 | DV33: 0 | DW33: 3 | DX33: 0 | DY33: 0 | DZ33: 0 | EA33: AA | EB33: A | EC33: A | ED33: NO | EG33: 148 | EH33: 30 | EI33: 30 | EJ33: 28 | EK33: 30 | EL33: 30 | EM33: 210 | EN33: 30 | EO33: 30 | EP33: 30 | EQ33: 30 | ER33: 30 | ES33: 30 | ET33: 30 | EU33: 1 | EV33: 1 | EW33: 1 | EX33: 1 | EY33: 1 | EZ33: 1 | FA33: 1 | FB33: 1 | FC33: 1 | FD33: 1 | FE33: 1 | FF33: 1 | FG33: 31 | FH33: 31 | FI33: 28 | FJ33: 31 | FK33: 30 | FL33: 31 | FM33: 30 | FN33: 31 | FO33: 31 | FP33: 30 | FQ33: 31 | FR33: 30
B34: 1 | Q34: =IFERROR(VLOOKUP(P34,Importes!L:Q,2,FALSE),"") ->  | S34: =IF(G34="","",#REF!) ->  | T34: =IF(G34="","",#REF!) ->  | W34: =IF(G34="","",IF($AG$8="x","Mensualidade",IF(AND($AG$8="",#REF!="x",$AH$8=DATE(YEAR($CU$7),12,1)),"Extra Inverno",IF(AND($AG$8="",#REF!="x",$AH$8=DATE(YEAR($CV$8),6,1)),"Extra Verán","")))) ->  | X34: 0 | AB34: AM+E | AC34: Si | AD34: 1 | AF34: AM+E | AG34: 0 | AH34: =IFERROR(IF(OR(AD34="+CT",AF34=""),0,ROUND(IF(MOD(AG34,30)=0,QUOTIENT(AG34,30)*VLOOKUP(C34&AF34,Importes!$A$2:$I$14,IF(MONTH($I$7)=12,6,9),FALSE)*(IF($AE34>100,0,$AE34)/100),AG34*VLOOKUP(C34&AF34,Importes!$A$2:$I$14,IF(MONTH($I$7)=12,5,8),FALSE)*(IF($AE34>100,0,$AE34)/100)),2)),0) -> 0 | AK34: =IFERROR(IF(AJ34="","",IF(AJ34<180,AJ34*VLOOKUP(#REF!&"CP",Importes!$A$2:$F$14,5,FALSE)*(IF($AI34>100,0,$AI34)/100),IF(AJ34=180,VLOOKUP(#REF!&"CP",Importes!$A$2:$F$14,6,FALSE)*6*(IF($AI34>100,0,$AI34)/100),0))),0) ->  | AN34: =IF(AM34="","",IF(AM34>0,ROUND(IF(MOD(AM34,30)=0,QUOTIENT(AM34,30)*VLOOKUP(C34&IF(AC34="Si","AM+E","AM"),Importes!$A$2:$I$14,IF(MONTH($I$7)=12,6,9),FALSE)*(IF($AL34>100,0,$AL34)/100),AM34*VLOOKUP(C34&IF(AC34="Si","AM+E","AM"),Importes!$A$2:$I$14,IF(MONTH($I$7)=12,5,8),FALSE)*(IF($AL34>100,0,$AL34)/100)),2),0)) ->  | AT34: Non | BG34: 81.3 | BH34: =IFERROR(IF(AF34="AM",DF34,IF(AF34="AM+E",DF34,IF(AF34="CP",#REF!,IF(AF34="CV",DR34,IF(AF34="CV+E",DR34))))),0) -> 0 | BI34: =IFERROR(IF(OR(AD34="+CT",AF34=""),0,ROUND(IF(MOD(AG34,30)=0,QUOTIENT(AG34,30)*VLOOKUP(#REF!&AF34,Importes!$A$2:$F$14,6,FALSE)*(IF($AE34>100,0,$AE34)/100),AG34*VLOOKUP(#REF!&AF34,Importes!$A$2:$F$14,5,FALSE)*(IF($AE34>100,0,$AE34)/100)),2)),0) -> 0 | BK34: =IFERROR(ROUND(IF($AI$8="Anual",0.5,1)*IF(AND(AF34="AM",OR(EA34="ALINT",EA34="AL")),#REF!,IF(AND(AF34="AM",#REF!="x"),#REF!,"")),0),"") ->  | BL34: =IF(AJ34="","",IF(AJ34>0,ROUND(IF(MOD(AJ34,30)=0,QUOTIENT(AJ34,30)*VLOOKUP(#REF!&"CP",Importes!$A$2:$F$14,6,FALSE)*(IF($BG34>100,0,$BG34)/100),BK34*VLOOKUP(#REF!&"CP",Importes!$A$2:$F$14,5,FALSE)*(IF($BG34>100,0,$BG34)/100)),2),0)) ->  | BO34: =IF(AM34="","",IF(AM34>0,ROUND(IF(MOD(AM34,30)=0,QUOTIENT(AM34,30)*VLOOKUP(#REF!&IF(AC34="Si","AM+E","AM"),Importes!$A$2:$F$14,6,FALSE)*(IF($BG34>100,0,$BG34)/100),AM34*VLOOKUP(#REF!&IF(AC34="Si","AM+E","AM"),Importes!$A$2:$F$14,5,FALSE)*(IF($BG34>100,0,$BG34)/100)),2),0)) ->  | CV34: 0 | CW34: 0 | CX34: 0 | CY34: 0 | CZ34: 0 | DA34: 0 | DB34: 5 | DC34: 5 | DD34: 2025-01-01 | DE34: 2025-01-31 | DF34: 0 | DG34: 0 | DH34: 2025-01-01 | DI34: 2025-01-31 | DJ34: 00:00:00 | DK34: 2025-01-01 | DL34: 0 | DM34: 0 | DN34: 0 | DO34: 0 | DP34: 0 | DQ34: 2025-01-01 | DR34: 0 | DS34: 0 | DT34: 0 | DU34: 0 | DV34: 0 | DW34: 3 | DX34: 0 | DY34: 0 | DZ34: 0 | EA34: AA | EB34: A | EC34: A | ED34: NO | EG34: 148 | EH34: 30 | EI34: 30 | EJ34: 28 | EK34: 30 | EL34: 30 | EM34: 210 | EN34: 30 | EO34: 30 | EP34: 30 | EQ34: 30 | ER34: 30 | ES34: 30 | ET34: 30 | EU34: 1 | EV34: 1 | EW34: 1 | EX34: 1 | EY34: 1 | EZ34: 1 | FA34: 1 | FB34: 1 | FC34: 1 | FD34: 1 | FE34: 1 | FF34: 1 | FG34: 31 | FH34: 31 | FI34: 28 | FJ34: 31 | FK34: 30 | FL34: 31 | FM34: 30 | FN34: 31 | FO34: 31 | FP34: 30 | FQ34: 31 | FR34: 30
B35: 1 | Q35: =IFERROR(VLOOKUP(P35,Importes!L:Q,2,FALSE),"") ->  | S35: =IF(G35="","",#REF!) ->  | T35: =IF(G35="","",#REF!) ->  | W35: =IF(G35="","",IF($AG$8="x","Mensualidade",IF(AND($AG$8="",#REF!="x",$AH$8=DATE(YEAR($CU$7),12,1)),"Extra Inverno",IF(AND($AG$8="",#REF!="x",$AH$8=DATE(YEAR($CV$8),6,1)),"Extra Verán","")))) ->  | X35: 0 | AB35: AM+E | AC35: Si | AD35: 1 | AF35: AM+E | AG35: 0 | AH35: =IFERROR(IF(OR(AD35="+CT",AF35=""),0,ROUND(IF(MOD(AG35,30)=0,QUOTIENT(AG35,30)*VLOOKUP(C35&AF35,Importes!$A$2:$I$14,IF(MONTH($I$7)=12,6,9),FALSE)*(IF($AE35>100,0,$AE35)/100),AG35*VLOOKUP(C35&AF35,Importes!$A$2:$I$14,IF(MONTH($I$7)=12,5,8),FALSE)*(IF($AE35>100,0,$AE35)/100)),2)),0) -> 0 | AK35: =IFERROR(IF(AJ35="","",IF(AJ35<180,AJ35*VLOOKUP(#REF!&"CP",Importes!$A$2:$F$14,5,FALSE)*(IF($AI35>100,0,$AI35)/100),IF(AJ35=180,VLOOKUP(#REF!&"CP",Importes!$A$2:$F$14,6,FALSE)*6*(IF($AI35>100,0,$AI35)/100),0))),0) ->  | AN35: =IF(AM35="","",IF(AM35>0,ROUND(IF(MOD(AM35,30)=0,QUOTIENT(AM35,30)*VLOOKUP(C35&IF(AC35="Si","AM+E","AM"),Importes!$A$2:$I$14,IF(MONTH($I$7)=12,6,9),FALSE)*(IF($AL35>100,0,$AL35)/100),AM35*VLOOKUP(C35&IF(AC35="Si","AM+E","AM"),Importes!$A$2:$I$14,IF(MONTH($I$7)=12,5,8),FALSE)*(IF($AL35>100,0,$AL35)/100)),2),0)) ->  | AT35: Non | BG35: 81.3 | BH35: =IFERROR(IF(AF35="AM",DF35,IF(AF35="AM+E",DF35,IF(AF35="CP",#REF!,IF(AF35="CV",DR35,IF(AF35="CV+E",DR35))))),0) -> 0 | BI35: =IFERROR(IF(OR(AD35="+CT",AF35=""),0,ROUND(IF(MOD(AG35,30)=0,QUOTIENT(AG35,30)*VLOOKUP(#REF!&AF35,Importes!$A$2:$F$14,6,FALSE)*(IF($AE35>100,0,$AE35)/100),AG35*VLOOKUP(#REF!&AF35,Importes!$A$2:$F$14,5,FALSE)*(IF($AE35>100,0,$AE35)/100)),2)),0) -> 0 | BK35: =IFERROR(ROUND(IF($AI$8="Anual",0.5,1)*IF(AND(AF35="AM",OR(EA35="ALINT",EA35="AL")),#REF!,IF(AND(AF35="AM",#REF!="x"),#REF!,"")),0),"") ->  | BL35: =IF(AJ35="","",IF(AJ35>0,ROUND(IF(MOD(AJ35,30)=0,QUOTIENT(AJ35,30)*VLOOKUP(#REF!&"CP",Importes!$A$2:$F$14,6,FALSE)*(IF($BG35>100,0,$BG35)/100),BK35*VLOOKUP(#REF!&"CP",Importes!$A$2:$F$14,5,FALSE)*(IF($BG35>100,0,$BG35)/100)),2),0)) ->  | BO35: =IF(AM35="","",IF(AM35>0,ROUND(IF(MOD(AM35,30)=0,QUOTIENT(AM35,30)*VLOOKUP(#REF!&IF(AC35="Si","AM+E","AM"),Importes!$A$2:$F$14,6,FALSE)*(IF($BG35>100,0,$BG35)/100),AM35*VLOOKUP(#REF!&IF(AC35="Si","AM+E","AM"),Importes!$A$2:$F$14,5,FALSE)*(IF($BG35>100,0,$BG35)/100)),2),0)) ->  | CV35: 0 | CW35: 0 | CX35: 0 | CY35: 0 | CZ35: 0 | DA35: 0 | DB35: 5 | DC35: 5 | DD35: 2025-01-01 | DE35: 2025-01-31 | DF35: 0 | DG35: 0 | DH35: 2025-01-01 | DI35: 2025-01-31 | DJ35: 00:00:00 | DK35: 2025-01-01 | DL35: 0 | DM35: 0 | DN35: 0 | DO35: 0 | DP35: 0 | DQ35: 2025-01-01 | DR35: 0 | DS35: 0 | DT35: 0 | DU35: 0 | DV35: 0 | DW35: 3 | DX35: 0 | DY35: 0 | DZ35: 0 | EA35: AA | EB35: A | EC35: A | ED35: NO | EG35: 148 | EH35: 30 | EI35: 30 | EJ35: 28 | EK35: 30 | EL35: 30 | EM35: 210 | EN35: 30 | EO35: 30 | EP35: 30 | EQ35: 30 | ER35: 30 | ES35: 30 | ET35: 30 | EU35: 1 | EV35: 1 | EW35: 1 | EX35: 1 | EY35: 1 | EZ35: 1 | FA35: 1 | FB35: 1 | FC35: 1 | FD35: 1 | FE35: 1 | FF35: 1 | FG35: 31 | FH35: 31 | FI35: 28 | FJ35: 31 | FK35: 30 | FL35: 31 | FM35: 30 | FN35: 31 | FO35: 31 | FP35: 30 | FQ35: 31 | FR35: 30
B36: 1 | Q36: =IFERROR(VLOOKUP(P36,Importes!L:Q,2,FALSE),"") ->  | S36: =IF(G36="","",#REF!) ->  | T36: =IF(G36="","",#REF!) ->  | W36: =IF(G36="","",IF($AG$8="x","Mensualidade",IF(AND($AG$8="",#REF!="x",$AH$8=DATE(YEAR($CU$7),12,1)),"Extra Inverno",IF(AND($AG$8="",#REF!="x",$AH$8=DATE(YEAR($CV$8),6,1)),"Extra Verán","")))) ->  | X36: 0 | AB36: AM+E | AC36: Si | AD36: 1 | AF36: AM+E | AG36: 0 | AH36: =IFERROR(IF(OR(AD36="+CT",AF36=""),0,ROUND(IF(MOD(AG36,30)=0,QUOTIENT(AG36,30)*VLOOKUP(C36&AF36,Importes!$A$2:$I$14,IF(MONTH($I$7)=12,6,9),FALSE)*(IF($AE36>100,0,$AE36)/100),AG36*VLOOKUP(C36&AF36,Importes!$A$2:$I$14,IF(MONTH($I$7)=12,5,8),FALSE)*(IF($AE36>100,0,$AE36)/100)),2)),0) -> 0 | AK36: =IFERROR(IF(AJ36="","",IF(AJ36<180,AJ36*VLOOKUP(#REF!&"CP",Importes!$A$2:$F$14,5,FALSE)*(IF($AI36>100,0,$AI36)/100),IF(AJ36=180,VLOOKUP(#REF!&"CP",Importes!$A$2:$F$14,6,FALSE)*6*(IF($AI36>100,0,$AI36)/100),0))),0) ->  | AN36: =IF(AM36="","",IF(AM36>0,ROUND(IF(MOD(AM36,30)=0,QUOTIENT(AM36,30)*VLOOKUP(C36&IF(AC36="Si","AM+E","AM"),Importes!$A$2:$I$14,IF(MONTH($I$7)=12,6,9),FALSE)*(IF($AL36>100,0,$AL36)/100),AM36*VLOOKUP(C36&IF(AC36="Si","AM+E","AM"),Importes!$A$2:$I$14,IF(MONTH($I$7)=12,5,8),FALSE)*(IF($AL36>100,0,$AL36)/100)),2),0)) ->  | AT36: Non | BG36: 81.3 | BH36: =IFERROR(IF(AF36="AM",DF36,IF(AF36="AM+E",DF36,IF(AF36="CP",#REF!,IF(AF36="CV",DR36,IF(AF36="CV+E",DR36))))),0) -> 0 | BI36: =IFERROR(IF(OR(AD36="+CT",AF36=""),0,ROUND(IF(MOD(AG36,30)=0,QUOTIENT(AG36,30)*VLOOKUP(#REF!&AF36,Importes!$A$2:$F$14,6,FALSE)*(IF($AE36>100,0,$AE36)/100),AG36*VLOOKUP(#REF!&AF36,Importes!$A$2:$F$14,5,FALSE)*(IF($AE36>100,0,$AE36)/100)),2)),0) -> 0 | BK36: =IFERROR(ROUND(IF($AI$8="Anual",0.5,1)*IF(AND(AF36="AM",OR(EA36="ALINT",EA36="AL")),#REF!,IF(AND(AF36="AM",#REF!="x"),#REF!,"")),0),"") ->  | BL36: =IF(AJ36="","",IF(AJ36>0,ROUND(IF(MOD(AJ36,30)=0,QUOTIENT(AJ36,30)*VLOOKUP(#REF!&"CP",Importes!$A$2:$F$14,6,FALSE)*(IF($BG36>100,0,$BG36)/100),BK36*VLOOKUP(#REF!&"CP",Importes!$A$2:$F$14,5,FALSE)*(IF($BG36>100,0,$BG36)/100)),2),0)) ->  | BO36: =IF(AM36="","",IF(AM36>0,ROUND(IF(MOD(AM36,30)=0,QUOTIENT(AM36,30)*VLOOKUP(#REF!&IF(AC36="Si","AM+E","AM"),Importes!$A$2:$F$14,6,FALSE)*(IF($BG36>100,0,$BG36)/100),AM36*VLOOKUP(#REF!&IF(AC36="Si","AM+E","AM"),Importes!$A$2:$F$14,5,FALSE)*(IF($BG36>100,0,$BG36)/100)),2),0)) ->  | CV36: 0 | CW36: 0 | CX36: 0 | CY36: 0 | CZ36: 0 | DA36: 0 | DB36: 5 | DC36: 5 | DD36: 2025-01-01 | DE36: 2025-01-31 | DF36: 0 | DG36: 0 | DH36: 2025-01-01 | DI36: 2025-01-31 | DJ36: 00:00:00 | DK36: 2025-01-01 | DL36: 0 | DM36: 0 | DN36: 0 | DO36: 0 | DP36: 0 | DQ36: 2025-01-01 | DR36: 0 | DS36: 0 | DT36: 0 | DU36: 0 | DV36: 0 | DW36: 3 | DX36: 0 | DY36: 0 | DZ36: 0 | EA36: AA | EB36: A | EC36: A | ED36: NO | EG36: 148 | EH36: 30 | EI36: 30 | EJ36: 28 | EK36: 30 | EL36: 30 | EM36: 210 | EN36: 30 | EO36: 30 | EP36: 30 | EQ36: 30 | ER36: 30 | ES36: 30 | ET36: 30 | EU36: 1 | EV36: 1 | EW36: 1 | EX36: 1 | EY36: 1 | EZ36: 1 | FA36: 1 | FB36: 1 | FC36: 1 | FD36: 1 | FE36: 1 | FF36: 1 | FG36: 31 | FH36: 31 | FI36: 28 | FJ36: 31 | FK36: 30 | FL36: 31 | FM36: 30 | FN36: 31 | FO36: 31 | FP36: 30 | FQ36: 31 | FR36: 30
B37: 1 | Q37: =IFERROR(VLOOKUP(P37,Importes!L:Q,2,FALSE),"") ->  | S37: =IF(G37="","",#REF!) ->  | T37: =IF(G37="","",#REF!) ->  | W37: =IF(G37="","",IF($AG$8="x","Mensualidade",IF(AND($AG$8="",#REF!="x",$AH$8=DATE(YEAR($CU$7),12,1)),"Extra Inverno",IF(AND($AG$8="",#REF!="x",$AH$8=DATE(YEAR($CV$8),6,1)),"Extra Verán","")))) ->  | X37: 0 | AB37: AM+E | AC37: Si | AD37: 1 | AF37: AM+E | AG37: 0 | AH37: =IFERROR(IF(OR(AD37="+CT",AF37=""),0,ROUND(IF(MOD(AG37,30)=0,QUOTIENT(AG37,30)*VLOOKUP(C37&AF37,Importes!$A$2:$I$14,IF(MONTH($I$7)=12,6,9),FALSE)*(IF($AE37>100,0,$AE37)/100),AG37*VLOOKUP(C37&AF37,Importes!$A$2:$I$14,IF(MONTH($I$7)=12,5,8),FALSE)*(IF($AE37>100,0,$AE37)/100)),2)),0) -> 0 | AK37: =IFERROR(IF(AJ37="","",IF(AJ37<180,AJ37*VLOOKUP(#REF!&"CP",Importes!$A$2:$F$14,5,FALSE)*(IF($AI37>100,0,$AI37)/100),IF(AJ37=180,VLOOKUP(#REF!&"CP",Importes!$A$2:$F$14,6,FALSE)*6*(IF($AI37>100,0,$AI37)/100),0))),0) ->  | AN37: =IF(AM37="","",IF(AM37>0,ROUND(IF(MOD(AM37,30)=0,QUOTIENT(AM37,30)*VLOOKUP(C37&IF(AC37="Si","AM+E","AM"),Importes!$A$2:$I$14,IF(MONTH($I$7)=12,6,9),FALSE)*(IF($AL37>100,0,$AL37)/100),AM37*VLOOKUP(C37&IF(AC37="Si","AM+E","AM"),Importes!$A$2:$I$14,IF(MONTH($I$7)=12,5,8),FALSE)*(IF($AL37>100,0,$AL37)/100)),2),0)) ->  | AT37: Non | BG37: 81.3 | BH37: =IFERROR(IF(AF37="AM",DF37,IF(AF37="AM+E",DF37,IF(AF37="CP",#REF!,IF(AF37="CV",DR37,IF(AF37="CV+E",DR37))))),0) -> 0 | BI37: =IFERROR(IF(OR(AD37="+CT",AF37=""),0,ROUND(IF(MOD(AG37,30)=0,QUOTIENT(AG37,30)*VLOOKUP(#REF!&AF37,Importes!$A$2:$F$14,6,FALSE)*(IF($AE37>100,0,$AE37)/100),AG37*VLOOKUP(#REF!&AF37,Importes!$A$2:$F$14,5,FALSE)*(IF($AE37>100,0,$AE37)/100)),2)),0) -> 0 | BK37: =IFERROR(ROUND(IF($AI$8="Anual",0.5,1)*IF(AND(AF37="AM",OR(EA37="ALINT",EA37="AL")),#REF!,IF(AND(AF37="AM",#REF!="x"),#REF!,"")),0),"") ->  | BL37: =IF(AJ37="","",IF(AJ37>0,ROUND(IF(MOD(AJ37,30)=0,QUOTIENT(AJ37,30)*VLOOKUP(#REF!&"CP",Importes!$A$2:$F$14,6,FALSE)*(IF($BG37>100,0,$BG37)/100),BK37*VLOOKUP(#REF!&"CP",Importes!$A$2:$F$14,5,FALSE)*(IF($BG37>100,0,$BG37)/100)),2),0)) ->  | BO37: =IF(AM37="","",IF(AM37>0,ROUND(IF(MOD(AM37,30)=0,QUOTIENT(AM37,30)*VLOOKUP(#REF!&IF(AC37="Si","AM+E","AM"),Importes!$A$2:$F$14,6,FALSE)*(IF($BG37>100,0,$BG37)/100),AM37*VLOOKUP(#REF!&IF(AC37="Si","AM+E","AM"),Importes!$A$2:$F$14,5,FALSE)*(IF($BG37>100,0,$BG37)/100)),2),0)) ->  | CV37: 0 | CW37: 0 | CX37: 0 | CY37: 0 | CZ37: 0 | DA37: 0 | DB37: 5 | DC37: 5 | DD37: 2025-01-01 | DE37: 2025-01-31 | DF37: 0 | DG37: 0 | DH37: 2025-01-01 | DI37: 2025-01-31 | DJ37: 00:00:00 | DK37: 2025-01-01 | DL37: 0 | DM37: 0 | DN37: 0 | DO37: 0 | DP37: 0 | DQ37: 2025-01-01 | DR37: 0 | DS37: 0 | DT37: 0 | DU37: 0 | DV37: 0 | DW37: 3 | DX37: 0 | DY37: 0 | DZ37: 0 | EA37: AA | EB37: A | EC37: A | ED37: NO | EG37: 148 | EH37: 30 | EI37: 30 | EJ37: 28 | EK37: 30 | EL37: 30 | EM37: 210 | EN37: 30 | EO37: 30 | EP37: 30 | EQ37: 30 | ER37: 30 | ES37: 30 | ET37: 30 | EU37: 1 | EV37: 1 | EW37: 1 | EX37: 1 | EY37: 1 | EZ37: 1 | FA37: 1 | FB37: 1 | FC37: 1 | FD37: 1 | FE37: 1 | FF37: 1 | FG37: 31 | FH37: 31 | FI37: 28 | FJ37: 31 | FK37: 30 | FL37: 31 | FM37: 30 | FN37: 31 | FO37: 31 | FP37: 30 | FQ37: 31 | FR37: 30
B38: 1 | Q38: =IFERROR(VLOOKUP(P38,Importes!L:Q,2,FALSE),"") ->  | S38: =IF(G38="","",#REF!) ->  | T38: =IF(G38="","",#REF!) ->  | W38: =IF(G38="","",IF($AG$8="x","Mensualidade",IF(AND($AG$8="",#REF!="x",$AH$8=DATE(YEAR($CU$7),12,1)),"Extra Inverno",IF(AND($AG$8="",#REF!="x",$AH$8=DATE(YEAR($CV$8),6,1)),"Extra Verán","")))) ->  | X38: 0 | AB38: AM+E | AC38: Si | AD38: 1 | AF38: AM+E | AG38: 0 | AH38: =IFERROR(IF(OR(AD38="+CT",AF38=""),0,ROUND(IF(MOD(AG38,30)=0,QUOTIENT(AG38,30)*VLOOKUP(C38&AF38,Importes!$A$2:$I$14,IF(MONTH($I$7)=12,6,9),FALSE)*(IF($AE38>100,0,$AE38)/100),AG38*VLOOKUP(C38&AF38,Importes!$A$2:$I$14,IF(MONTH($I$7)=12,5,8),FALSE)*(IF($AE38>100,0,$AE38)/100)),2)),0) -> 0 | AK38: =IFERROR(IF(AJ38="","",IF(AJ38<180,AJ38*VLOOKUP(#REF!&"CP",Importes!$A$2:$F$14,5,FALSE)*(IF($AI38>100,0,$AI38)/100),IF(AJ38=180,VLOOKUP(#REF!&"CP",Importes!$A$2:$F$14,6,FALSE)*6*(IF($AI38>100,0,$AI38)/100),0))),0) ->  | AN38: =IF(AM38="","",IF(AM38>0,ROUND(IF(MOD(AM38,30)=0,QUOTIENT(AM38,30)*VLOOKUP(C38&IF(AC38="Si","AM+E","AM"),Importes!$A$2:$I$14,IF(MONTH($I$7)=12,6,9),FALSE)*(IF($AL38>100,0,$AL38)/100),AM38*VLOOKUP(C38&IF(AC38="Si","AM+E","AM"),Importes!$A$2:$I$14,IF(MONTH($I$7)=12,5,8),FALSE)*(IF($AL38>100,0,$AL38)/100)),2),0)) ->  | AT38: Non | BG38: 81.3 | BH38: =IFERROR(IF(AF38="AM",DF38,IF(AF38="AM+E",DF38,IF(AF38="CP",#REF!,IF(AF38="CV",DR38,IF(AF38="CV+E",DR38))))),0) -> 0 | BI38: =IFERROR(IF(OR(AD38="+CT",AF38=""),0,ROUND(IF(MOD(AG38,30)=0,QUOTIENT(AG38,30)*VLOOKUP(#REF!&AF38,Importes!$A$2:$F$14,6,FALSE)*(IF($AE38>100,0,$AE38)/100),AG38*VLOOKUP(#REF!&AF38,Importes!$A$2:$F$14,5,FALSE)*(IF($AE38>100,0,$AE38)/100)),2)),0) -> 0 | BK38: =IFERROR(ROUND(IF($AI$8="Anual",0.5,1)*IF(AND(AF38="AM",OR(EA38="ALINT",EA38="AL")),#REF!,IF(AND(AF38="AM",#REF!="x"),#REF!,"")),0),"") ->  | BL38: =IF(AJ38="","",IF(AJ38>0,ROUND(IF(MOD(AJ38,30)=0,QUOTIENT(AJ38,30)*VLOOKUP(#REF!&"CP",Importes!$A$2:$F$14,6,FALSE)*(IF($BG38>100,0,$BG38)/100),BK38*VLOOKUP(#REF!&"CP",Importes!$A$2:$F$14,5,FALSE)*(IF($BG38>100,0,$BG38)/100)),2),0)) ->  | BO38: =IF(AM38="","",IF(AM38>0,ROUND(IF(MOD(AM38,30)=0,QUOTIENT(AM38,30)*VLOOKUP(#REF!&IF(AC38="Si","AM+E","AM"),Importes!$A$2:$F$14,6,FALSE)*(IF($BG38>100,0,$BG38)/100),AM38*VLOOKUP(#REF!&IF(AC38="Si","AM+E","AM"),Importes!$A$2:$F$14,5,FALSE)*(IF($BG38>100,0,$BG38)/100)),2),0)) ->  | CV38: 0 | CW38: 0 | CX38: 0 | CY38: 0 | CZ38: 0 | DA38: 0 | DB38: 5 | DC38: 5 | DD38: 2025-01-01 | DE38: 2025-01-31 | DF38: 0 | DG38: 0 | DH38: 2025-01-01 | DI38: 2025-01-31 | DJ38: 00:00:00 | DK38: 2025-01-01 | DL38: 0 | DM38: 0 | DN38: 0 | DO38: 0 | DP38: 0 | DQ38: 2025-01-01 | DR38: 0 | DS38: 0 | DT38: 0 | DU38: 0 | DV38: 0 | DW38: 3 | DX38: 0 | DY38: 0 | DZ38: 0 | EA38: AA | EB38: A | EC38: A | ED38: NO | EG38: 148 | EH38: 30 | EI38: 30 | EJ38: 28 | EK38: 30 | EL38: 30 | EM38: 210 | EN38: 30 | EO38: 30 | EP38: 30 | EQ38: 30 | ER38: 30 | ES38: 30 | ET38: 30 | EU38: 1 | EV38: 1 | EW38: 1 | EX38: 1 | EY38: 1 | EZ38: 1 | FA38: 1 | FB38: 1 | FC38: 1 | FD38: 1 | FE38: 1 | FF38: 1 | FG38: 31 | FH38: 31 | FI38: 28 | FJ38: 31 | FK38: 30 | FL38: 31 | FM38: 30 | FN38: 31 | FO38: 31 | FP38: 30 | FQ38: 31 | FR38: 30
B39: 1 | Q39: =IFERROR(VLOOKUP(P39,Importes!L:Q,2,FALSE),"") ->  | S39: =IF(G39="","",#REF!) ->  | T39: =IF(G39="","",#REF!) ->  | W39: =IF(G39="","",IF($AG$8="x","Mensualidade",IF(AND($AG$8="",#REF!="x",$AH$8=DATE(YEAR($CU$7),12,1)),"Extra Inverno",IF(AND($AG$8="",#REF!="x",$AH$8=DATE(YEAR($CV$8),6,1)),"Extra Verán","")))) ->  | X39: 0 | AB39: AM+E | AC39: Si | AD39: 1 | AF39: AM+E | AG39: 0 | AH39: =IFERROR(IF(OR(AD39="+CT",AF39=""),0,ROUND(IF(MOD(AG39,30)=0,QUOTIENT(AG39,30)*VLOOKUP(C39&AF39,Importes!$A$2:$I$14,IF(MONTH($I$7)=12,6,9),FALSE)*(IF($AE39>100,0,$AE39)/100),AG39*VLOOKUP(C39&AF39,Importes!$A$2:$I$14,IF(MONTH($I$7)=12,5,8),FALSE)*(IF($AE39>100,0,$AE39)/100)),2)),0) -> 0 | AK39: =IFERROR(IF(AJ39="","",IF(AJ39<180,AJ39*VLOOKUP(#REF!&"CP",Importes!$A$2:$F$14,5,FALSE)*(IF($AI39>100,0,$AI39)/100),IF(AJ39=180,VLOOKUP(#REF!&"CP",Importes!$A$2:$F$14,6,FALSE)*6*(IF($AI39>100,0,$AI39)/100),0))),0) ->  | AN39: =IF(AM39="","",IF(AM39>0,ROUND(IF(MOD(AM39,30)=0,QUOTIENT(AM39,30)*VLOOKUP(C39&IF(AC39="Si","AM+E","AM"),Importes!$A$2:$I$14,IF(MONTH($I$7)=12,6,9),FALSE)*(IF($AL39>100,0,$AL39)/100),AM39*VLOOKUP(C39&IF(AC39="Si","AM+E","AM"),Importes!$A$2:$I$14,IF(MONTH($I$7)=12,5,8),FALSE)*(IF($AL39>100,0,$AL39)/100)),2),0)) ->  | AT39: Non | BG39: 81.3 | BH39: =IFERROR(IF(AF39="AM",DF39,IF(AF39="AM+E",DF39,IF(AF39="CP",#REF!,IF(AF39="CV",DR39,IF(AF39="CV+E",DR39))))),0) -> 0 | BI39: =IFERROR(IF(OR(AD39="+CT",AF39=""),0,ROUND(IF(MOD(AG39,30)=0,QUOTIENT(AG39,30)*VLOOKUP(#REF!&AF39,Importes!$A$2:$F$14,6,FALSE)*(IF($AE39>100,0,$AE39)/100),AG39*VLOOKUP(#REF!&AF39,Importes!$A$2:$F$14,5,FALSE)*(IF($AE39>100,0,$AE39)/100)),2)),0) -> 0 | BK39: =IFERROR(ROUND(IF($AI$8="Anual",0.5,1)*IF(AND(AF39="AM",OR(EA39="ALINT",EA39="AL")),#REF!,IF(AND(AF39="AM",#REF!="x"),#REF!,"")),0),"") ->  | BL39: =IF(AJ39="","",IF(AJ39>0,ROUND(IF(MOD(AJ39,30)=0,QUOTIENT(AJ39,30)*VLOOKUP(#REF!&"CP",Importes!$A$2:$F$14,6,FALSE)*(IF($BG39>100,0,$BG39)/100),BK39*VLOOKUP(#REF!&"CP",Importes!$A$2:$F$14,5,FALSE)*(IF($BG39>100,0,$BG39)/100)),2),0)) ->  | BO39: =IF(AM39="","",IF(AM39>0,ROUND(IF(MOD(AM39,30)=0,QUOTIENT(AM39,30)*VLOOKUP(#REF!&IF(AC39="Si","AM+E","AM"),Importes!$A$2:$F$14,6,FALSE)*(IF($BG39>100,0,$BG39)/100),AM39*VLOOKUP(#REF!&IF(AC39="Si","AM+E","AM"),Importes!$A$2:$F$14,5,FALSE)*(IF($BG39>100,0,$BG39)/100)),2),0)) ->  | CV39: 0 | CW39: 0 | CX39: 0 | CY39: 0 | CZ39: 0 | DA39: 0 | DB39: 5 | DC39: 5 | DD39: 2025-01-01 | DE39: 2025-01-31 | DF39: 0 | DG39: 0 | DH39: 2025-01-01 | DI39: 2025-01-31 | DJ39: 00:00:00 | DK39: 2025-01-01 | DL39: 0 | DM39: 0 | DN39: 0 | DO39: 0 | DP39: 0 | DQ39: 2025-01-01 | DR39: 0 | DS39: 0 | DT39: 0 | DU39: 0 | DV39: 0 | DW39: 3 | DX39: 0 | DY39: 0 | DZ39: 0 | EA39: AA | EB39: A | EC39: A | ED39: NO | EG39: 148 | EH39: 30 | EI39: 30 | EJ39: 28 | EK39: 30 | EL39: 30 | EM39: 210 | EN39: 30 | EO39: 30 | EP39: 30 | EQ39: 30 | ER39: 30 | ES39: 30 | ET39: 30 | EU39: 1 | EV39: 1 | EW39: 1 | EX39: 1 | EY39: 1 | EZ39: 1 | FA39: 1 | FB39: 1 | FC39: 1 | FD39: 1 | FE39: 1 | FF39: 1 | FG39: 31 | FH39: 31 | FI39: 28 | FJ39: 31 | FK39: 30 | FL39: 31 | FM39: 30 | FN39: 31 | FO39: 31 | FP39: 30 | FQ39: 31 | FR39: 30
B40: 1 | Q40: =IFERROR(VLOOKUP(P40,Importes!L:Q,2,FALSE),"") ->  | S40: =IF(G40="","",#REF!) ->  | T40: =IF(G40="","",#REF!) ->  | W40: =IF(G40="","",IF($AG$8="x","Mensualidade",IF(AND($AG$8="",#REF!="x",$AH$8=DATE(YEAR($CU$7),12,1)),"Extra Inverno",IF(AND($AG$8="",#REF!="x",$AH$8=DATE(YEAR($CV$8),6,1)),"Extra Verán","")))) ->  | X40: 0 | AB40: AM+E | AC40: Si | AD40: 1 | AF40: AM+E | AG40: 0 | AH40: =IFERROR(IF(OR(AD40="+CT",AF40=""),0,ROUND(IF(MOD(AG40,30)=0,QUOTIENT(AG40,30)*VLOOKUP(C40&AF40,Importes!$A$2:$I$14,IF(MONTH($I$7)=12,6,9),FALSE)*(IF($AE40>100,0,$AE40)/100),AG40*VLOOKUP(C40&AF40,Importes!$A$2:$I$14,IF(MONTH($I$7)=12,5,8),FALSE)*(IF($AE40>100,0,$AE40)/100)),2)),0) -> 0 | AK40: =IFERROR(IF(AJ40="","",IF(AJ40<180,AJ40*VLOOKUP(#REF!&"CP",Importes!$A$2:$F$14,5,FALSE)*(IF($AI40>100,0,$AI40)/100),IF(AJ40=180,VLOOKUP(#REF!&"CP",Importes!$A$2:$F$14,6,FALSE)*6*(IF($AI40>100,0,$AI40)/100),0))),0) ->  | AN40: =IF(AM40="","",IF(AM40>0,ROUND(IF(MOD(AM40,30)=0,QUOTIENT(AM40,30)*VLOOKUP(C40&IF(AC40="Si","AM+E","AM"),Importes!$A$2:$I$14,IF(MONTH($I$7)=12,6,9),FALSE)*(IF($AL40>100,0,$AL40)/100),AM40*VLOOKUP(C40&IF(AC40="Si","AM+E","AM"),Importes!$A$2:$I$14,IF(MONTH($I$7)=12,5,8),FALSE)*(IF($AL40>100,0,$AL40)/100)),2),0)) ->  | AT40: Non | BG40: 81.3 | BH40: =IFERROR(IF(AF40="AM",DF40,IF(AF40="AM+E",DF40,IF(AF40="CP",#REF!,IF(AF40="CV",DR40,IF(AF40="CV+E",DR40))))),0) -> 0 | BI40: =IFERROR(IF(OR(AD40="+CT",AF40=""),0,ROUND(IF(MOD(AG40,30)=0,QUOTIENT(AG40,30)*VLOOKUP(#REF!&AF40,Importes!$A$2:$F$14,6,FALSE)*(IF($AE40>100,0,$AE40)/100),AG40*VLOOKUP(#REF!&AF40,Importes!$A$2:$F$14,5,FALSE)*(IF($AE40>100,0,$AE40)/100)),2)),0) -> 0 | BK40: =IFERROR(ROUND(IF($AI$8="Anual",0.5,1)*IF(AND(AF40="AM",OR(EA40="ALINT",EA40="AL")),#REF!,IF(AND(AF40="AM",#REF!="x"),#REF!,"")),0),"") ->  | BL40: =IF(AJ40="","",IF(AJ40>0,ROUND(IF(MOD(AJ40,30)=0,QUOTIENT(AJ40,30)*VLOOKUP(#REF!&"CP",Importes!$A$2:$F$14,6,FALSE)*(IF($BG40>100,0,$BG40)/100),BK40*VLOOKUP(#REF!&"CP",Importes!$A$2:$F$14,5,FALSE)*(IF($BG40>100,0,$BG40)/100)),2),0)) ->  | BO40: =IF(AM40="","",IF(AM40>0,ROUND(IF(MOD(AM40,30)=0,QUOTIENT(AM40,30)*VLOOKUP(#REF!&IF(AC40="Si","AM+E","AM"),Importes!$A$2:$F$14,6,FALSE)*(IF($BG40>100,0,$BG40)/100),AM40*VLOOKUP(#REF!&IF(AC40="Si","AM+E","AM"),Importes!$A$2:$F$14,5,FALSE)*(IF($BG40>100,0,$BG40)/100)),2),0)) ->  | CV40: 0 | CW40: 0 | CX40: 0 | CY40: 0 | CZ40: 0 | DA40: 0 | DB40: 5 | DC40: 5 | DD40: 2025-01-01 | DE40: 2025-01-31 | DF40: 0 | DG40: 0 | DH40: 2025-01-01 | DI40: 2025-01-31 | DJ40: 00:00:00 | DK40: 2025-01-01 | DL40: 0 | DM40: 0 | DN40: 0 | DO40: 0 | DP40: 0 | DQ40: 2025-01-01 | DR40: 0 | DS40: 0 | DT40: 0 | DU40: 0 | DV40: 0 | DW40: 3 | DX40: 0 | DY40: 0 | DZ40: 0 | EA40: AA | EB40: A | EC40: A | ED40: NO | EG40: 148 | EH40: 30 | EI40: 30 | EJ40: 28 | EK40: 30 | EL40: 30 | EM40: 210 | EN40: 30 | EO40: 30 | EP40: 30 | EQ40: 30 | ER40: 30 | ES40: 30 | ET40: 30 | EU40: 1 | EV40: 1 | EW40: 1 | EX40: 1 | EY40: 1 | EZ40: 1 | FA40: 1 | FB40: 1 | FC40: 1 | FD40: 1 | FE40: 1 | FF40: 1 | FG40: 31 | FH40: 31 | FI40: 28 | FJ40: 31 | FK40: 30 | FL40: 31 | FM40: 30 | FN40: 31 | FO40: 31 | FP40: 30 | FQ40: 31 | FR40: 30
B41: 1 | Q41: =IFERROR(VLOOKUP(P41,Importes!L:Q,2,FALSE),"") ->  | S41: =IF(G41="","",#REF!) ->  | T41: =IF(G41="","",#REF!) ->  | W41: =IF(G41="","",IF($AG$8="x","Mensualidade",IF(AND($AG$8="",#REF!="x",$AH$8=DATE(YEAR($CU$7),12,1)),"Extra Inverno",IF(AND($AG$8="",#REF!="x",$AH$8=DATE(YEAR($CV$8),6,1)),"Extra Verán","")))) ->  | X41: 0 | AB41: AM+E | AC41: Si | AD41: 1 | AF41: AM+E | AG41: 0 | AH41: =IFERROR(IF(OR(AD41="+CT",AF41=""),0,ROUND(IF(MOD(AG41,30)=0,QUOTIENT(AG41,30)*VLOOKUP(C41&AF41,Importes!$A$2:$I$14,IF(MONTH($I$7)=12,6,9),FALSE)*(IF($AE41>100,0,$AE41)/100),AG41*VLOOKUP(C41&AF41,Importes!$A$2:$I$14,IF(MONTH($I$7)=12,5,8),FALSE)*(IF($AE41>100,0,$AE41)/100)),2)),0) -> 0 | AK41: =IFERROR(IF(AJ41="","",IF(AJ41<180,AJ41*VLOOKUP(#REF!&"CP",Importes!$A$2:$F$14,5,FALSE)*(IF($AI41>100,0,$AI41)/100),IF(AJ41=180,VLOOKUP(#REF!&"CP",Importes!$A$2:$F$14,6,FALSE)*6*(IF($AI41>100,0,$AI41)/100),0))),0) ->  | AN41: =IF(AM41="","",IF(AM41>0,ROUND(IF(MOD(AM41,30)=0,QUOTIENT(AM41,30)*VLOOKUP(C41&IF(AC41="Si","AM+E","AM"),Importes!$A$2:$I$14,IF(MONTH($I$7)=12,6,9),FALSE)*(IF($AL41>100,0,$AL41)/100),AM41*VLOOKUP(C41&IF(AC41="Si","AM+E","AM"),Importes!$A$2:$I$14,IF(MONTH($I$7)=12,5,8),FALSE)*(IF($AL41>100,0,$AL41)/100)),2),0)) ->  | AT41: Non | BG41: 81.3 | BH41: =IFERROR(IF(AF41="AM",DF41,IF(AF41="AM+E",DF41,IF(AF41="CP",#REF!,IF(AF41="CV",DR41,IF(AF41="CV+E",DR41))))),0) -> 0 | BI41: =IFERROR(IF(OR(AD41="+CT",AF41=""),0,ROUND(IF(MOD(AG41,30)=0,QUOTIENT(AG41,30)*VLOOKUP(#REF!&AF41,Importes!$A$2:$F$14,6,FALSE)*(IF($AE41>100,0,$AE41)/100),AG41*VLOOKUP(#REF!&AF41,Importes!$A$2:$F$14,5,FALSE)*(IF($AE41>100,0,$AE41)/100)),2)),0) -> 0 | BK41: =IFERROR(ROUND(IF($AI$8="Anual",0.5,1)*IF(AND(AF41="AM",OR(EA41="ALINT",EA41="AL")),#REF!,IF(AND(AF41="AM",#REF!="x"),#REF!,"")),0),"") ->  | BL41: =IF(AJ41="","",IF(AJ41>0,ROUND(IF(MOD(AJ41,30)=0,QUOTIENT(AJ41,30)*VLOOKUP(#REF!&"CP",Importes!$A$2:$F$14,6,FALSE)*(IF($BG41>100,0,$BG41)/100),BK41*VLOOKUP(#REF!&"CP",Importes!$A$2:$F$14,5,FALSE)*(IF($BG41>100,0,$BG41)/100)),2),0)) ->  | BO41: =IF(AM41="","",IF(AM41>0,ROUND(IF(MOD(AM41,30)=0,QUOTIENT(AM41,30)*VLOOKUP(#REF!&IF(AC41="Si","AM+E","AM"),Importes!$A$2:$F$14,6,FALSE)*(IF($BG41>100,0,$BG41)/100),AM41*VLOOKUP(#REF!&IF(AC41="Si","AM+E","AM"),Importes!$A$2:$F$14,5,FALSE)*(IF($BG41>100,0,$BG41)/100)),2),0)) ->  | CV41: 0 | CW41: 0 | CX41: 0 | CY41: 0 | CZ41: 0 | DA41: 0 | DB41: 5 | DC41: 5 | DD41: 2025-01-01 | DE41: 2025-01-31 | DF41: 0 | DG41: 0 | DH41: 2025-01-01 | DI41: 2025-01-31 | DJ41: 00:00:00 | DK41: 2025-01-01 | DL41: 0 | DM41: 0 | DN41: 0 | DO41: 0 | DP41: 0 | DQ41: 2025-01-01 | DR41: 0 | DS41: 0 | DT41: 0 | DU41: 0 | DV41: 0 | DW41: 3 | DX41: 0 | DY41: 0 | DZ41: 0 | EA41: AA | EB41: A | EC41: A | ED41: NO | EG41: 148 | EH41: 30 | EI41: 30 | EJ41: 28 | EK41: 30 | EL41: 30 | EM41: 210 | EN41: 30 | EO41: 30 | EP41: 30 | EQ41: 30 | ER41: 30 | ES41: 30 | ET41: 30 | EU41: 1 | EV41: 1 | EW41: 1 | EX41: 1 | EY41: 1 | EZ41: 1 | FA41: 1 | FB41: 1 | FC41: 1 | FD41: 1 | FE41: 1 | FF41: 1 | FG41: 31 | FH41: 31 | FI41: 28 | FJ41: 31 | FK41: 30 | FL41: 31 | FM41: 30 | FN41: 31 | FO41: 31 | FP41: 30 | FQ41: 31 | FR41: 30
B42: 1 | Q42: =IFERROR(VLOOKUP(P42,Importes!L:Q,2,FALSE),"") ->  | S42: =IF(G42="","",#REF!) ->  | T42: =IF(G42="","",#REF!) ->  | W42: =IF(G42="","",IF($AG$8="x","Mensualidade",IF(AND($AG$8="",#REF!="x",$AH$8=DATE(YEAR($CU$7),12,1)),"Extra Inverno",IF(AND($AG$8="",#REF!="x",$AH$8=DATE(YEAR($CV$8),6,1)),"Extra Verán","")))) ->  | X42: 0 | AB42: AM+E | AC42: Si | AD42: 1 | AF42: AM+E | AG42: 0 | AH42: =IFERROR(IF(OR(AD42="+CT",AF42=""),0,ROUND(IF(MOD(AG42,30)=0,QUOTIENT(AG42,30)*VLOOKUP(C42&AF42,Importes!$A$2:$I$14,IF(MONTH($I$7)=12,6,9),FALSE)*(IF($AE42>100,0,$AE42)/100),AG42*VLOOKUP(C42&AF42,Importes!$A$2:$I$14,IF(MONTH($I$7)=12,5,8),FALSE)*(IF($AE42>100,0,$AE42)/100)),2)),0) -> 0 | AK42: =IFERROR(IF(AJ42="","",IF(AJ42<180,AJ42*VLOOKUP(#REF!&"CP",Importes!$A$2:$F$14,5,FALSE)*(IF($AI42>100,0,$AI42)/100),IF(AJ42=180,VLOOKUP(#REF!&"CP",Importes!$A$2:$F$14,6,FALSE)*6*(IF($AI42>100,0,$AI42)/100),0))),0) ->  | AN42: =IF(AM42="","",IF(AM42>0,ROUND(IF(MOD(AM42,30)=0,QUOTIENT(AM42,30)*VLOOKUP(C42&IF(AC42="Si","AM+E","AM"),Importes!$A$2:$I$14,IF(MONTH($I$7)=12,6,9),FALSE)*(IF($AL42>100,0,$AL42)/100),AM42*VLOOKUP(C42&IF(AC42="Si","AM+E","AM"),Importes!$A$2:$I$14,IF(MONTH($I$7)=12,5,8),FALSE)*(IF($AL42>100,0,$AL42)/100)),2),0)) ->  | AT42: Non | BG42: 81.3 | BH42: =IFERROR(IF(AF42="AM",DF42,IF(AF42="AM+E",DF42,IF(AF42="CP",#REF!,IF(AF42="CV",DR42,IF(AF42="CV+E",DR42))))),0) -> 0 | BI42: =IFERROR(IF(OR(AD42="+CT",AF42=""),0,ROUND(IF(MOD(AG42,30)=0,QUOTIENT(AG42,30)*VLOOKUP(#REF!&AF42,Importes!$A$2:$F$14,6,FALSE)*(IF($AE42>100,0,$AE42)/100),AG42*VLOOKUP(#REF!&AF42,Importes!$A$2:$F$14,5,FALSE)*(IF($AE42>100,0,$AE42)/100)),2)),0) -> 0 | BK42: =IFERROR(ROUND(IF($AI$8="Anual",0.5,1)*IF(AND(AF42="AM",OR(EA42="ALINT",EA42="AL")),#REF!,IF(AND(AF42="AM",#REF!="x"),#REF!,"")),0),"") ->  | BL42: =IF(AJ42="","",IF(AJ42>0,ROUND(IF(MOD(AJ42,30)=0,QUOTIENT(AJ42,30)*VLOOKUP(#REF!&"CP",Importes!$A$2:$F$14,6,FALSE)*(IF($BG42>100,0,$BG42)/100),BK42*VLOOKUP(#REF!&"CP",Importes!$A$2:$F$14,5,FALSE)*(IF($BG42>100,0,$BG42)/100)),2),0)) ->  | BO42: =IF(AM42="","",IF(AM42>0,ROUND(IF(MOD(AM42,30)=0,QUOTIENT(AM42,30)*VLOOKUP(#REF!&IF(AC42="Si","AM+E","AM"),Importes!$A$2:$F$14,6,FALSE)*(IF($BG42>100,0,$BG42)/100),AM42*VLOOKUP(#REF!&IF(AC42="Si","AM+E","AM"),Importes!$A$2:$F$14,5,FALSE)*(IF($BG42>100,0,$BG42)/100)),2),0)) ->  | CV42: 0 | CW42: 0 | CX42: 0 | CY42: 0 | CZ42: 0 | DA42: 0 | DB42: 5 | DC42: 5 | DD42: 2025-01-01 | DE42: 2025-01-31 | DF42: 0 | DG42: 0 | DH42: 2025-01-01 | DI42: 2025-01-31 | DJ42: 00:00:00 | DK42: 2025-01-01 | DL42: 0 | DM42: 0 | DN42: 0 | DO42: 0 | DP42: 0 | DQ42: 2025-01-01 | DR42: 0 | DS42: 0 | DT42: 0 | DU42: 0 | DV42: 0 | DW42: 3 | DX42: 0 | DY42: 0 | DZ42: 0 | EA42: AA | EB42: A | EC42: A | ED42: NO | EG42: 148 | EH42: 30 | EI42: 30 | EJ42: 28 | EK42: 30 | EL42: 30 | EM42: 210 | EN42: 30 | EO42: 30 | EP42: 30 | EQ42: 30 | ER42: 30 | ES42: 30 | ET42: 30 | EU42: 1 | EV42: 1 | EW42: 1 | EX42: 1 | EY42: 1 | EZ42: 1 | FA42: 1 | FB42: 1 | FC42: 1 | FD42: 1 | FE42: 1 | FF42: 1 | FG42: 31 | FH42: 31 | FI42: 28 | FJ42: 31 | FK42: 30 | FL42: 31 | FM42: 30 | FN42: 31 | FO42: 31 | FP42: 30 | FQ42: 31 | FR42: 30
B43: 1 | Q43: =IFERROR(VLOOKUP(P43,Importes!L:Q,2,FALSE),"") ->  | S43: =IF(G43="","",#REF!) ->  | T43: =IF(G43="","",#REF!) ->  | W43: =IF(G43="","",IF($AG$8="x","Mensualidade",IF(AND($AG$8="",#REF!="x",$AH$8=DATE(YEAR($CU$7),12,1)),"Extra Inverno",IF(AND($AG$8="",#REF!="x",$AH$8=DATE(YEAR($CV$8),6,1)),"Extra Verán","")))) ->  | X43: 0 | AB43: AM+E | AC43: Si | AD43: 1 | AF43: AM+E | AG43: 0 | AH43: =IFERROR(IF(OR(AD43="+CT",AF43=""),0,ROUND(IF(MOD(AG43,30)=0,QUOTIENT(AG43,30)*VLOOKUP(C43&AF43,Importes!$A$2:$I$14,IF(MONTH($I$7)=12,6,9),FALSE)*(IF($AE43>100,0,$AE43)/100),AG43*VLOOKUP(C43&AF43,Importes!$A$2:$I$14,IF(MONTH($I$7)=12,5,8),FALSE)*(IF($AE43>100,0,$AE43)/100)),2)),0) -> 0 | AK43: =IFERROR(IF(AJ43="","",IF(AJ43<180,AJ43*VLOOKUP(#REF!&"CP",Importes!$A$2:$F$14,5,FALSE)*(IF($AI43>100,0,$AI43)/100),IF(AJ43=180,VLOOKUP(#REF!&"CP",Importes!$A$2:$F$14,6,FALSE)*6*(IF($AI43>100,0,$AI43)/100),0))),0) ->  | AN43: =IF(AM43="","",IF(AM43>0,ROUND(IF(MOD(AM43,30)=0,QUOTIENT(AM43,30)*VLOOKUP(C43&IF(AC43="Si","AM+E","AM"),Importes!$A$2:$I$14,IF(MONTH($I$7)=12,6,9),FALSE)*(IF($AL43>100,0,$AL43)/100),AM43*VLOOKUP(C43&IF(AC43="Si","AM+E","AM"),Importes!$A$2:$I$14,IF(MONTH($I$7)=12,5,8),FALSE)*(IF($AL43>100,0,$AL43)/100)),2),0)) ->  | AT43: Non | BG43: 81.3 | BH43: =IFERROR(IF(AF43="AM",DF43,IF(AF43="AM+E",DF43,IF(AF43="CP",#REF!,IF(AF43="CV",DR43,IF(AF43="CV+E",DR43))))),0) -> 0 | BI43: =IFERROR(IF(OR(AD43="+CT",AF43=""),0,ROUND(IF(MOD(AG43,30)=0,QUOTIENT(AG43,30)*VLOOKUP(#REF!&AF43,Importes!$A$2:$F$14,6,FALSE)*(IF($AE43>100,0,$AE43)/100),AG43*VLOOKUP(#REF!&AF43,Importes!$A$2:$F$14,5,FALSE)*(IF($AE43>100,0,$AE43)/100)),2)),0) -> 0 | BK43: =IFERROR(ROUND(IF($AI$8="Anual",0.5,1)*IF(AND(AF43="AM",OR(EA43="ALINT",EA43="AL")),#REF!,IF(AND(AF43="AM",#REF!="x"),#REF!,"")),0),"") ->  | BL43: =IF(AJ43="","",IF(AJ43>0,ROUND(IF(MOD(AJ43,30)=0,QUOTIENT(AJ43,30)*VLOOKUP(#REF!&"CP",Importes!$A$2:$F$14,6,FALSE)*(IF($BG43>100,0,$BG43)/100),BK43*VLOOKUP(#REF!&"CP",Importes!$A$2:$F$14,5,FALSE)*(IF($BG43>100,0,$BG43)/100)),2),0)) ->  | BO43: =IF(AM43="","",IF(AM43>0,ROUND(IF(MOD(AM43,30)=0,QUOTIENT(AM43,30)*VLOOKUP(#REF!&IF(AC43="Si","AM+E","AM"),Importes!$A$2:$F$14,6,FALSE)*(IF($BG43>100,0,$BG43)/100),AM43*VLOOKUP(#REF!&IF(AC43="Si","AM+E","AM"),Importes!$A$2:$F$14,5,FALSE)*(IF($BG43>100,0,$BG43)/100)),2),0)) ->  | CV43: 0 | CW43: 0 | CX43: 0 | CY43: 0 | CZ43: 0 | DA43: 0 | DB43: 5 | DC43: 5 | DD43: 2025-01-01 | DE43: 2025-01-31 | DF43: 0 | DG43: 0 | DH43: 2025-01-01 | DI43: 2025-01-31 | DJ43: 00:00:00 | DK43: 2025-01-01 | DL43: 0 | DM43: 0 | DN43: 0 | DO43: 0 | DP43: 0 | DQ43: 2025-01-01 | DR43: 0 | DS43: 0 | DT43: 0 | DU43: 0 | DV43: 0 | DW43: 3 | DX43: 0 | DY43: 0 | DZ43: 0 | EA43: AA | EB43: A | EC43: A | ED43: NO | EG43: 148 | EH43: 30 | EI43: 30 | EJ43: 28 | EK43: 30 | EL43: 30 | EM43: 210 | EN43: 30 | EO43: 30 | EP43: 30 | EQ43: 30 | ER43: 30 | ES43: 30 | ET43: 30 | EU43: 1 | EV43: 1 | EW43: 1 | EX43: 1 | EY43: 1 | EZ43: 1 | FA43: 1 | FB43: 1 | FC43: 1 | FD43: 1 | FE43: 1 | FF43: 1 | FG43: 31 | FH43: 31 | FI43: 28 | FJ43: 31 | FK43: 30 | FL43: 31 | FM43: 30 | FN43: 31 | FO43: 31 | FP43: 30 | FQ43: 31 | FR43: 30
B44: 1 | Q44: =IFERROR(VLOOKUP(P44,Importes!L:Q,2,FALSE),"") ->  | S44: =IF(G44="","",#REF!) ->  | T44: =IF(G44="","",#REF!) ->  | W44: =IF(G44="","",IF($AG$8="x","Mensualidade",IF(AND($AG$8="",#REF!="x",$AH$8=DATE(YEAR($CU$7),12,1)),"Extra Inverno",IF(AND($AG$8="",#REF!="x",$AH$8=DATE(YEAR($CV$8),6,1)),"Extra Verán","")))) ->  | X44: 0 | AB44: AM+E | AC44: Si | AD44: 1 | AF44: AM+E | AG44: 0 | AH44: =IFERROR(IF(OR(AD44="+CT",AF44=""),0,ROUND(IF(MOD(AG44,30)=0,QUOTIENT(AG44,30)*VLOOKUP(C44&AF44,Importes!$A$2:$I$14,IF(MONTH($I$7)=12,6,9),FALSE)*(IF($AE44>100,0,$AE44)/100),AG44*VLOOKUP(C44&AF44,Importes!$A$2:$I$14,IF(MONTH($I$7)=12,5,8),FALSE)*(IF($AE44>100,0,$AE44)/100)),2)),0) -> 0 | AK44: =IFERROR(IF(AJ44="","",IF(AJ44<180,AJ44*VLOOKUP(#REF!&"CP",Importes!$A$2:$F$14,5,FALSE)*(IF($AI44>100,0,$AI44)/100),IF(AJ44=180,VLOOKUP(#REF!&"CP",Importes!$A$2:$F$14,6,FALSE)*6*(IF($AI44>100,0,$AI44)/100),0))),0) ->  | AN44: =IF(AM44="","",IF(AM44>0,ROUND(IF(MOD(AM44,30)=0,QUOTIENT(AM44,30)*VLOOKUP(C44&IF(AC44="Si","AM+E","AM"),Importes!$A$2:$I$14,IF(MONTH($I$7)=12,6,9),FALSE)*(IF($AL44>100,0,$AL44)/100),AM44*VLOOKUP(C44&IF(AC44="Si","AM+E","AM"),Importes!$A$2:$I$14,IF(MONTH($I$7)=12,5,8),FALSE)*(IF($AL44>100,0,$AL44)/100)),2),0)) ->  | AT44: Non | BG44: 81.3 | BH44: =IFERROR(IF(AF44="AM",DF44,IF(AF44="AM+E",DF44,IF(AF44="CP",#REF!,IF(AF44="CV",DR44,IF(AF44="CV+E",DR44))))),0) -> 0 | BI44: =IFERROR(IF(OR(AD44="+CT",AF44=""),0,ROUND(IF(MOD(AG44,30)=0,QUOTIENT(AG44,30)*VLOOKUP(#REF!&AF44,Importes!$A$2:$F$14,6,FALSE)*(IF($AE44>100,0,$AE44)/100),AG44*VLOOKUP(#REF!&AF44,Importes!$A$2:$F$14,5,FALSE)*(IF($AE44>100,0,$AE44)/100)),2)),0) -> 0 | BK44: =IFERROR(ROUND(IF($AI$8="Anual",0.5,1)*IF(AND(AF44="AM",OR(EA44="ALINT",EA44="AL")),#REF!,IF(AND(AF44="AM",#REF!="x"),#REF!,"")),0),"") ->  | BL44: =IF(AJ44="","",IF(AJ44>0,ROUND(IF(MOD(AJ44,30)=0,QUOTIENT(AJ44,30)*VLOOKUP(#REF!&"CP",Importes!$A$2:$F$14,6,FALSE)*(IF($BG44>100,0,$BG44)/100),BK44*VLOOKUP(#REF!&"CP",Importes!$A$2:$F$14,5,FALSE)*(IF($BG44>100,0,$BG44)/100)),2),0)) ->  | BO44: =IF(AM44="","",IF(AM44>0,ROUND(IF(MOD(AM44,30)=0,QUOTIENT(AM44,30)*VLOOKUP(#REF!&IF(AC44="Si","AM+E","AM"),Importes!$A$2:$F$14,6,FALSE)*(IF($BG44>100,0,$BG44)/100),AM44*VLOOKUP(#REF!&IF(AC44="Si","AM+E","AM"),Importes!$A$2:$F$14,5,FALSE)*(IF($BG44>100,0,$BG44)/100)),2),0)) ->  | CV44: 0 | CW44: 0 | CX44: 0 | CY44: 0 | CZ44: 0 | DA44: 0 | DB44: 5 | DC44: 5 | DD44: 2025-01-01 | DE44: 2025-01-31 | DF44: 0 | DG44: 0 | DH44: 2025-01-01 | DI44: 2025-01-31 | DJ44: 00:00:00 | DK44: 2025-01-01 | DL44: 0 | DM44: 0 | DN44: 0 | DO44: 0 | DP44: 0 | DQ44: 2025-01-01 | DR44: 0 | DS44: 0 | DT44: 0 | DU44: 0 | DV44: 0 | DW44: 3 | DX44: 0 | DY44: 0 | DZ44: 0 | EA44: AA | EB44: A | EC44: A | ED44: NO | EG44: 148 | EH44: 30 | EI44: 30 | EJ44: 28 | EK44: 30 | EL44: 30 | EM44: 210 | EN44: 30 | EO44: 30 | EP44: 30 | EQ44: 30 | ER44: 30 | ES44: 30 | ET44: 30 | EU44: 1 | EV44: 1 | EW44: 1 | EX44: 1 | EY44: 1 | EZ44: 1 | FA44: 1 | FB44: 1 | FC44: 1 | FD44: 1 | FE44: 1 | FF44: 1 | FG44: 31 | FH44: 31 | FI44: 28 | FJ44: 31 | FK44: 30 | FL44: 31 | FM44: 30 | FN44: 31 | FO44: 31 | FP44: 30 | FQ44: 31 | FR44: 30
B45: 1 | Q45: =IFERROR(VLOOKUP(P45,Importes!L:Q,2,FALSE),"") ->  | S45: =IF(G45="","",#REF!) ->  | T45: =IF(G45="","",#REF!) ->  | W45: =IF(G45="","",IF($AG$8="x","Mensualidade",IF(AND($AG$8="",#REF!="x",$AH$8=DATE(YEAR($CU$7),12,1)),"Extra Inverno",IF(AND($AG$8="",#REF!="x",$AH$8=DATE(YEAR($CV$8),6,1)),"Extra Verán","")))) ->  | X45: 0 | AB45: AM+E | AC45: Si | AD45: 1 | AF45: AM+E | AG45: 0 | AH45: =IFERROR(IF(OR(AD45="+CT",AF45=""),0,ROUND(IF(MOD(AG45,30)=0,QUOTIENT(AG45,30)*VLOOKUP(C45&AF45,Importes!$A$2:$I$14,IF(MONTH($I$7)=12,6,9),FALSE)*(IF($AE45>100,0,$AE45)/100),AG45*VLOOKUP(C45&AF45,Importes!$A$2:$I$14,IF(MONTH($I$7)=12,5,8),FALSE)*(IF($AE45>100,0,$AE45)/100)),2)),0) -> 0 | AK45: =IFERROR(IF(AJ45="","",IF(AJ45<180,AJ45*VLOOKUP(#REF!&"CP",Importes!$A$2:$F$14,5,FALSE)*(IF($AI45>100,0,$AI45)/100),IF(AJ45=180,VLOOKUP(#REF!&"CP",Importes!$A$2:$F$14,6,FALSE)*6*(IF($AI45>100,0,$AI45)/100),0))),0) ->  | AN45: =IF(AM45="","",IF(AM45>0,ROUND(IF(MOD(AM45,30)=0,QUOTIENT(AM45,30)*VLOOKUP(C45&IF(AC45="Si","AM+E","AM"),Importes!$A$2:$I$14,IF(MONTH($I$7)=12,6,9),FALSE)*(IF($AL45>100,0,$AL45)/100),AM45*VLOOKUP(C45&IF(AC45="Si","AM+E","AM"),Importes!$A$2:$I$14,IF(MONTH($I$7)=12,5,8),FALSE)*(IF($AL45>100,0,$AL45)/100)),2),0)) ->  | AT45: Non | BG45: 81.3 | BH45: =IFERROR(IF(AF45="AM",DF45,IF(AF45="AM+E",DF45,IF(AF45="CP",#REF!,IF(AF45="CV",DR45,IF(AF45="CV+E",DR45))))),0) -> 0 | BI45: =IFERROR(IF(OR(AD45="+CT",AF45=""),0,ROUND(IF(MOD(AG45,30)=0,QUOTIENT(AG45,30)*VLOOKUP(#REF!&AF45,Importes!$A$2:$F$14,6,FALSE)*(IF($AE45>100,0,$AE45)/100),AG45*VLOOKUP(#REF!&AF45,Importes!$A$2:$F$14,5,FALSE)*(IF($AE45>100,0,$AE45)/100)),2)),0) -> 0 | BK45: =IFERROR(ROUND(IF($AI$8="Anual",0.5,1)*IF(AND(AF45="AM",OR(EA45="ALINT",EA45="AL")),#REF!,IF(AND(AF45="AM",#REF!="x"),#REF!,"")),0),"") ->  | BL45: =IF(AJ45="","",IF(AJ45>0,ROUND(IF(MOD(AJ45,30)=0,QUOTIENT(AJ45,30)*VLOOKUP(#REF!&"CP",Importes!$A$2:$F$14,6,FALSE)*(IF($BG45>100,0,$BG45)/100),BK45*VLOOKUP(#REF!&"CP",Importes!$A$2:$F$14,5,FALSE)*(IF($BG45>100,0,$BG45)/100)),2),0)) ->  | BO45: =IF(AM45="","",IF(AM45>0,ROUND(IF(MOD(AM45,30)=0,QUOTIENT(AM45,30)*VLOOKUP(#REF!&IF(AC45="Si","AM+E","AM"),Importes!$A$2:$F$14,6,FALSE)*(IF($BG45>100,0,$BG45)/100),AM45*VLOOKUP(#REF!&IF(AC45="Si","AM+E","AM"),Importes!$A$2:$F$14,5,FALSE)*(IF($BG45>100,0,$BG45)/100)),2),0)) ->  | CV45: 0 | CW45: 0 | CX45: 0 | CY45: 0 | CZ45: 0 | DA45: 0 | DB45: 5 | DC45: 5 | DD45: 2025-01-01 | DE45: 2025-01-31 | DF45: 0 | DG45: 0 | DH45: 2025-01-01 | DI45: 2025-01-31 | DJ45: 00:00:00 | DK45: 2025-01-01 | DL45: 0 | DM45: 0 | DN45: 0 | DO45: 0 | DP45: 0 | DQ45: 2025-01-01 | DR45: 0 | DS45: 0 | DT45: 0 | DU45: 0 | DV45: 0 | DW45: 3 | DX45: 0 | DY45: 0 | DZ45: 0 | EA45: AA | EB45: A | EC45: A | ED45: NO | EG45: 148 | EH45: 30 | EI45: 30 | EJ45: 28 | EK45: 30 | EL45: 30 | EM45: 210 | EN45: 30 | EO45: 30 | EP45: 30 | EQ45: 30 | ER45: 30 | ES45: 30 | ET45: 30 | EU45: 1 | EV45: 1 | EW45: 1 | EX45: 1 | EY45: 1 | EZ45: 1 | FA45: =IFERROR(IF($N45<=FA$11,1,IF(YEAR($N45)=YEAR(FA$11),IF(MONTH($N45)=MONTH(FA$11),DAY($N45),0))),0) -> 1 | FB45: 1 | FC45: 1 | FD45: 1 | FE45: 1 | FF45: 1 | FG45: 31 | FH45: 31 | FI45: 28 | FJ45: 31 | FK45: 30 | FL45: 31 | FM45: =IFERROR(IF(OR($O45="",$O45=0),DAY(FM$11),IF($O45>=FM$11,DAY(FM$11),IF(MONTH($O45)=MONTH(FM$11),DAY($O45),0))),0) -> 30 | FN45: 31 | FO45: 31 | FP45: 30 | FQ45: 31 | FR45: 30
B46: 1 | Q46: =IFERROR(VLOOKUP(P46,Importes!L:Q,2,FALSE),"") ->  | S46: =IF(G46="","",#REF!) ->  | T46: =IF(G46="","",#REF!) ->  | W46: =IF(G46="","",IF($AG$8="x","Mensualidade",IF(AND($AG$8="",#REF!="x",$AH$8=DATE(YEAR($CU$7),12,1)),"Extra Inverno",IF(AND($AG$8="",#REF!="x",$AH$8=DATE(YEAR($CV$8),6,1)),"Extra Verán","")))) ->  | X46: 0 | AB46: AM+E | AC46: Si | AD46: 1 | AF46: AM+E | AG46: 0 | AH46: =IFERROR(IF(OR(AD46="+CT",AF46=""),0,ROUND(IF(MOD(AG46,30)=0,QUOTIENT(AG46,30)*VLOOKUP(C46&AF46,Importes!$A$2:$I$14,IF(MONTH($I$7)=12,6,9),FALSE)*(IF($AE46>100,0,$AE46)/100),AG46*VLOOKUP(C46&AF46,Importes!$A$2:$I$14,IF(MONTH($I$7)=12,5,8),FALSE)*(IF($AE46>100,0,$AE46)/100)),2)),0) -> 0 | AK46: =IFERROR(IF(AJ46="","",IF(AJ46<180,AJ46*VLOOKUP(#REF!&"CP",Importes!$A$2:$F$14,5,FALSE)*(IF($AI46>100,0,$AI46)/100),IF(AJ46=180,VLOOKUP(#REF!&"CP",Importes!$A$2:$F$14,6,FALSE)*6*(IF($AI46>100,0,$AI46)/100),0))),0) ->  | AN46: =IF(AM46="","",IF(AM46>0,ROUND(IF(MOD(AM46,30)=0,QUOTIENT(AM46,30)*VLOOKUP(C46&IF(AC46="Si","AM+E","AM"),Importes!$A$2:$I$14,IF(MONTH($I$7)=12,6,9),FALSE)*(IF($AL46>100,0,$AL46)/100),AM46*VLOOKUP(C46&IF(AC46="Si","AM+E","AM"),Importes!$A$2:$I$14,IF(MONTH($I$7)=12,5,8),FALSE)*(IF($AL46>100,0,$AL46)/100)),2),0)) ->  | AT46: Non | BG46: 81.3 | BH46: =IFERROR(IF(AF46="AM",DF46,IF(AF46="AM+E",DF46,IF(AF46="CP",#REF!,IF(AF46="CV",DR46,IF(AF46="CV+E",DR46))))),0) -> 0 | BI46: =IFERROR(IF(OR(AD46="+CT",AF46=""),0,ROUND(IF(MOD(AG46,30)=0,QUOTIENT(AG46,30)*VLOOKUP(#REF!&AF46,Importes!$A$2:$F$14,6,FALSE)*(IF($AE46>100,0,$AE46)/100),AG46*VLOOKUP(#REF!&AF46,Importes!$A$2:$F$14,5,FALSE)*(IF($AE46>100,0,$AE46)/100)),2)),0) -> 0 | BK46: =IFERROR(ROUND(IF($AI$8="Anual",0.5,1)*IF(AND(AF46="AM",OR(EA46="ALINT",EA46="AL")),#REF!,IF(AND(AF46="AM",#REF!="x"),#REF!,"")),0),"") ->  | BL46: =IF(AJ46="","",IF(AJ46>0,ROUND(IF(MOD(AJ46,30)=0,QUOTIENT(AJ46,30)*VLOOKUP(#REF!&"CP",Importes!$A$2:$F$14,6,FALSE)*(IF($BG46>100,0,$BG46)/100),BK46*VLOOKUP(#REF!&"CP",Importes!$A$2:$F$14,5,FALSE)*(IF($BG46>100,0,$BG46)/100)),2),0)) ->  | BO46: =IF(AM46="","",IF(AM46>0,ROUND(IF(MOD(AM46,30)=0,QUOTIENT(AM46,30)*VLOOKUP(#REF!&IF(AC46="Si","AM+E","AM"),Importes!$A$2:$F$14,6,FALSE)*(IF($BG46>100,0,$BG46)/100),AM46*VLOOKUP(#REF!&IF(AC46="Si","AM+E","AM"),Importes!$A$2:$F$14,5,FALSE)*(IF($BG46>100,0,$BG46)/100)),2),0)) ->  | CV46: 0 | CW46: 0 | CX46: 0 | CY46: 0 | CZ46: 0 | DA46: 0 | DB46: 5 | DC46: 5 | DD46: 2025-01-01 | DE46: 2025-01-31 | DF46: 0 | DG46: 0 | DH46: 2025-01-01 | DI46: 2025-01-31 | DJ46: 00:00:00 | DK46: 2025-01-01 | DL46: 0 | DM46: 0 | DN46: 0 | DO46: 0 | DP46: 0 | DQ46: 2025-01-01 | DR46: 0 | DS46: 0 | DT46: 0 | DU46: 0 | DV46: 0 | DW46: 3 | DX46: 0 | DY46: 0 | DZ46: 0 | EA46: AA | EB46: A | EC46: A | ED46: NO | EG46: 148 | EH46: 30 | EI46: 30 | EJ46: 28 | EK46: 30 | EL46: 30 | EM46: 210 | EN46: 30 | EO46: 30 | EP46: 30 | EQ46: 30 | ER46: 30 | ES46: 30 | ET46: 30 | EU46: 1 | EV46: 1 | EW46: 1 | EX46: 1 | EY46: 1 | EZ46: 1 | FA46: 1 | FB46: 1 | FC46: 1 | FD46: 1 | FE46: 1 | FF46: 1 | FG46: 31 | FH46: 31 | FI46: 28 | FJ46: 31 | FK46: 30 | FL46: 31 | FM46: 30 | FN46: 31 | FO46: 31 | FP46: 30 | FQ46: 31 | FR46: 30
B47: 1 | Q47: =IFERROR(VLOOKUP(P47,Importes!L:Q,2,FALSE),"") ->  | S47: =IF(G47="","",#REF!) ->  | T47: =IF(G47="","",#REF!) ->  | W47: =IF(G47="","",IF($AG$8="x","Mensualidade",IF(AND($AG$8="",#REF!="x",$AH$8=DATE(YEAR($CU$7),12,1)),"Extra Inverno",IF(AND($AG$8="",#REF!="x",$AH$8=DATE(YEAR($CV$8),6,1)),"Extra Verán","")))) ->  | X47: 0 | AB47: AM+E | AC47: Si | AD47: 1 | AF47: AM+E | AG47: 0 | AH47: =IFERROR(IF(OR(AD47="+CT",AF47=""),0,ROUND(IF(MOD(AG47,30)=0,QUOTIENT(AG47,30)*VLOOKUP(C47&AF47,Importes!$A$2:$I$14,IF(MONTH($I$7)=12,6,9),FALSE)*(IF($AE47>100,0,$AE47)/100),AG47*VLOOKUP(C47&AF47,Importes!$A$2:$I$14,IF(MONTH($I$7)=12,5,8),FALSE)*(IF($AE47>100,0,$AE47)/100)),2)),0) -> 0 | AK47: =IFERROR(IF(AJ47="","",IF(AJ47<180,AJ47*VLOOKUP(#REF!&"CP",Importes!$A$2:$F$14,5,FALSE)*(IF($AI47>100,0,$AI47)/100),IF(AJ47=180,VLOOKUP(#REF!&"CP",Importes!$A$2:$F$14,6,FALSE)*6*(IF($AI47>100,0,$AI47)/100),0))),0) ->  | AN47: =IF(AM47="","",IF(AM47>0,ROUND(IF(MOD(AM47,30)=0,QUOTIENT(AM47,30)*VLOOKUP(C47&IF(AC47="Si","AM+E","AM"),Importes!$A$2:$I$14,IF(MONTH($I$7)=12,6,9),FALSE)*(IF($AL47>100,0,$AL47)/100),AM47*VLOOKUP(C47&IF(AC47="Si","AM+E","AM"),Importes!$A$2:$I$14,IF(MONTH($I$7)=12,5,8),FALSE)*(IF($AL47>100,0,$AL47)/100)),2),0)) ->  | AT47: Non | BG47: 81.3 | BH47: =IFERROR(IF(AF47="AM",DF47,IF(AF47="AM+E",DF47,IF(AF47="CP",#REF!,IF(AF47="CV",DR47,IF(AF47="CV+E",DR47))))),0) -> 0 | BI47: =IFERROR(IF(OR(AD47="+CT",AF47=""),0,ROUND(IF(MOD(AG47,30)=0,QUOTIENT(AG47,30)*VLOOKUP(#REF!&AF47,Importes!$A$2:$F$14,6,FALSE)*(IF($AE47>100,0,$AE47)/100),AG47*VLOOKUP(#REF!&AF47,Importes!$A$2:$F$14,5,FALSE)*(IF($AE47>100,0,$AE47)/100)),2)),0) -> 0 | BK47: =IFERROR(ROUND(IF($AI$8="Anual",0.5,1)*IF(AND(AF47="AM",OR(EA47="ALINT",EA47="AL")),#REF!,IF(AND(AF47="AM",#REF!="x"),#REF!,"")),0),"") ->  | BL47: =IF(AJ47="","",IF(AJ47>0,ROUND(IF(MOD(AJ47,30)=0,QUOTIENT(AJ47,30)*VLOOKUP(#REF!&"CP",Importes!$A$2:$F$14,6,FALSE)*(IF($BG47>100,0,$BG47)/100),BK47*VLOOKUP(#REF!&"CP",Importes!$A$2:$F$14,5,FALSE)*(IF($BG47>100,0,$BG47)/100)),2),0)) ->  | BO47: =IF(AM47="","",IF(AM47>0,ROUND(IF(MOD(AM47,30)=0,QUOTIENT(AM47,30)*VLOOKUP(#REF!&IF(AC47="Si","AM+E","AM"),Importes!$A$2:$F$14,6,FALSE)*(IF($BG47>100,0,$BG47)/100),AM47*VLOOKUP(#REF!&IF(AC47="Si","AM+E","AM"),Importes!$A$2:$F$14,5,FALSE)*(IF($BG47>100,0,$BG47)/100)),2),0)) ->  | CV47: 0 | CW47: 0 | CX47: 0 | CY47: 0 | CZ47: 0 | DA47: 0 | DB47: 5 | DC47: 5 | DD47: 2025-01-01 | DE47: 2025-01-31 | DF47: 0 | DG47: 0 | DH47: 2025-01-01 | DI47: 2025-01-31 | DJ47: 00:00:00 | DK47: 2025-01-01 | DL47: 0 | DM47: 0 | DN47: 0 | DO47: 0 | DP47: 0 | DQ47: 2025-01-01 | DR47: 0 | DS47: 0 | DT47: 0 | DU47: 0 | DV47: 0 | DW47: 3 | DX47: 0 | DY47: 0 | DZ47: 0 | EA47: AA | EB47: A | EC47: A | ED47: NO | EG47: 148 | EH47: 30 | EI47: 30 | EJ47: 28 | EK47: 30 | EL47: 30 | EM47: 210 | EN47: 30 | EO47: 30 | EP47: 30 | EQ47: 30 | ER47: 30 | ES47: 30 | ET47: 30 | EU47: 1 | EV47: 1 | EW47: 1 | EX47: 1 | EY47: 1 | EZ47: 1 | FA47: 1 | FB47: 1 | FC47: 1 | FD47: 1 | FE47: 1 | FF47: 1 | FG47: 31 | FH47: 31 | FI47: 28 | FJ47: 31 | FK47: 30 | FL47: 31 | FM47: 30 | FN47: 31 | FO47: 31 | FP47: 30 | FQ47: 31 | FR47: 30
B48: 1 | Q48: =IFERROR(VLOOKUP(P48,Importes!L:Q,2,FALSE),"") ->  | S48: =IF(G48="","",#REF!) ->  | T48: =IF(G48="","",#REF!) ->  | W48: =IF(G48="","",IF($AG$8="x","Mensualidade",IF(AND($AG$8="",#REF!="x",$AH$8=DATE(YEAR($CU$7),12,1)),"Extra Inverno",IF(AND($AG$8="",#REF!="x",$AH$8=DATE(YEAR($CV$8),6,1)),"Extra Verán","")))) ->  | X48: 0 | AB48: AM+E | AC48: Si | AD48: 1 | AF48: AM+E | AG48: 0 | AH48: =IFERROR(IF(OR(AD48="+CT",AF48=""),0,ROUND(IF(MOD(AG48,30)=0,QUOTIENT(AG48,30)*VLOOKUP(C48&AF48,Importes!$A$2:$I$14,IF(MONTH($I$7)=12,6,9),FALSE)*(IF($AE48>100,0,$AE48)/100),AG48*VLOOKUP(C48&AF48,Importes!$A$2:$I$14,IF(MONTH($I$7)=12,5,8),FALSE)*(IF($AE48>100,0,$AE48)/100)),2)),0) -> 0 | AK48: =IFERROR(IF(AJ48="","",IF(AJ48<180,AJ48*VLOOKUP(#REF!&"CP",Importes!$A$2:$F$14,5,FALSE)*(IF($AI48>100,0,$AI48)/100),IF(AJ48=180,VLOOKUP(#REF!&"CP",Importes!$A$2:$F$14,6,FALSE)*6*(IF($AI48>100,0,$AI48)/100),0))),0) ->  | AN48: =IF(AM48="","",IF(AM48>0,ROUND(IF(MOD(AM48,30)=0,QUOTIENT(AM48,30)*VLOOKUP(C48&IF(AC48="Si","AM+E","AM"),Importes!$A$2:$I$14,IF(MONTH($I$7)=12,6,9),FALSE)*(IF($AL48>100,0,$AL48)/100),AM48*VLOOKUP(C48&IF(AC48="Si","AM+E","AM"),Importes!$A$2:$I$14,IF(MONTH($I$7)=12,5,8),FALSE)*(IF($AL48>100,0,$AL48)/100)),2),0)) ->  | AT48: Non | AW48: =IF($AH48>0,"X","") ->  | BG48: 81.3 | BH48: =IFERROR(IF(AF48="AM",DF48,IF(AF48="AM+E",DF48,IF(AF48="CP",#REF!,IF(AF48="CV",DR48,IF(AF48="CV+E",DR48))))),0) -> 0 | BI48: =IFERROR(IF(OR(AD48="+CT",AF48=""),0,ROUND(IF(MOD(AG48,30)=0,QUOTIENT(AG48,30)*VLOOKUP(#REF!&AF48,Importes!$A$2:$F$14,6,FALSE)*(IF($AE48>100,0,$AE48)/100),AG48*VLOOKUP(#REF!&AF48,Importes!$A$2:$F$14,5,FALSE)*(IF($AE48>100,0,$AE48)/100)),2)),0) -> 0 | BK48: =IFERROR(ROUND(IF($AI$8="Anual",0.5,1)*IF(AND(AF48="AM",OR(EA48="ALINT",EA48="AL")),#REF!,IF(AND(AF48="AM",#REF!="x"),#REF!,"")),0),"") ->  | BL48: =IF(AJ48="","",IF(AJ48>0,ROUND(IF(MOD(AJ48,30)=0,QUOTIENT(AJ48,30)*VLOOKUP(#REF!&"CP",Importes!$A$2:$F$14,6,FALSE)*(IF($BG48>100,0,$BG48)/100),BK48*VLOOKUP(#REF!&"CP",Importes!$A$2:$F$14,5,FALSE)*(IF($BG48>100,0,$BG48)/100)),2),0)) ->  | BO48: =IF(AM48="","",IF(AM48>0,ROUND(IF(MOD(AM48,30)=0,QUOTIENT(AM48,30)*VLOOKUP(#REF!&IF(AC48="Si","AM+E","AM"),Importes!$A$2:$F$14,6,FALSE)*(IF($BG48>100,0,$BG48)/100),AM48*VLOOKUP(#REF!&IF(AC48="Si","AM+E","AM"),Importes!$A$2:$F$14,5,FALSE)*(IF($BG48>100,0,$BG48)/100)),2),0)) ->  | CV48: 0 | CW48: 0 | CX48: 0 | CY48: 0 | CZ48: 0 | DA48: 0 | DB48: 5 | DC48: 5 | DD48: 2025-01-01 | DE48: 2025-01-31 | DF48: 0 | DG48: 0 | DH48: 2025-01-01 | DI48: 2025-01-31 | DJ48: 00:00:00 | DK48: 2025-01-01 | DL48: 0 | DM48: 0 | DN48: 0 | DO48: 0 | DP48: 0 | DQ48: 2025-01-01 | DR48: 0 | DS48: 0 | DT48: 0 | DU48: 0 | DV48: 0 | DW48: 3 | DX48: 0 | DY48: 0 | DZ48: 0 | EA48: AA | EB48: A | EC48: A | ED48: NO | EG48: 148 | EH48: 30 | EI48: 30 | EJ48: 28 | EK48: 30 | EL48: 30 | EM48: 210 | EN48: 30 | EO48: 30 | EP48: 30 | EQ48: 30 | ER48: 30 | ES48: 30 | ET48: 30 | EU48: 1 | EV48: 1 | EW48: 1 | EX48: 1 | EY48: 1 | EZ48: 1 | FA48: 1 | FB48: 1 | FC48: 1 | FD48: 1 | FE48: 1 | FF48: 1 | FG48: 31 | FH48: 31 | FI48: 28 | FJ48: 31 | FK48: 30 | FL48: 31 | FM48: 30 | FN48: 31 | FO48: 31 | FP48: 30 | FQ48: 31 | FR48: 30
B49: 1 | Q49: =IFERROR(VLOOKUP(P49,Importes!L:Q,2,FALSE),"") ->  | S49: =IF(G49="","",#REF!) ->  | T49: =IF(G49="","",#REF!) ->  | W49: =IF(G49="","",IF($AG$8="x","Mensualidade",IF(AND($AG$8="",#REF!="x",$AH$8=DATE(YEAR($CU$7),12,1)),"Extra Inverno",IF(AND($AG$8="",#REF!="x",$AH$8=DATE(YEAR($CV$8),6,1)),"Extra Verán","")))) ->  | X49: 0 | AB49: AM+E | AC49: Si | AD49: 1 | AF49: AM+E | AG49: 0 | AH49: =IFERROR(IF(OR(AD49="+CT",AF49=""),0,ROUND(IF(MOD(AG49,30)=0,QUOTIENT(AG49,30)*VLOOKUP(C49&AF49,Importes!$A$2:$I$14,IF(MONTH($I$7)=12,6,9),FALSE)*(IF($AE49>100,0,$AE49)/100),AG49*VLOOKUP(C49&AF49,Importes!$A$2:$I$14,IF(MONTH($I$7)=12,5,8),FALSE)*(IF($AE49>100,0,$AE49)/100)),2)),0) -> 0 | AK49: =IFERROR(IF(AJ49="","",IF(AJ49<180,AJ49*VLOOKUP(#REF!&"CP",Importes!$A$2:$F$14,5,FALSE)*(IF($AI49>100,0,$AI49)/100),IF(AJ49=180,VLOOKUP(#REF!&"CP",Importes!$A$2:$F$14,6,FALSE)*6*(IF($AI49>100,0,$AI49)/100),0))),0) ->  | AN49: =IF(AM49="","",IF(AM49>0,ROUND(IF(MOD(AM49,30)=0,QUOTIENT(AM49,30)*VLOOKUP(C49&IF(AC49="Si","AM+E","AM"),Importes!$A$2:$I$14,IF(MONTH($I$7)=12,6,9),FALSE)*(IF($AL49>100,0,$AL49)/100),AM49*VLOOKUP(C49&IF(AC49="Si","AM+E","AM"),Importes!$A$2:$I$14,IF(MONTH($I$7)=12,5,8),FALSE)*(IF($AL49>100,0,$AL49)/100)),2),0)) ->  | AT49: Non | BG49: 81.3 | BH49: =IFERROR(IF(AF49="AM",DF49,IF(AF49="AM+E",DF49,IF(AF49="CP",#REF!,IF(AF49="CV",DR49,IF(AF49="CV+E",DR49))))),0) -> 0 | BI49: =IFERROR(IF(OR(AD49="+CT",AF49=""),0,ROUND(IF(MOD(AG49,30)=0,QUOTIENT(AG49,30)*VLOOKUP(#REF!&AF49,Importes!$A$2:$F$14,6,FALSE)*(IF($AE49>100,0,$AE49)/100),AG49*VLOOKUP(#REF!&AF49,Importes!$A$2:$F$14,5,FALSE)*(IF($AE49>100,0,$AE49)/100)),2)),0) -> 0 | BK49: =IFERROR(ROUND(IF($AI$8="Anual",0.5,1)*IF(AND(AF49="AM",OR(EA49="ALINT",EA49="AL")),#REF!,IF(AND(AF49="AM",#REF!="x"),#REF!,"")),0),"") ->  | BL49: =IF(AJ49="","",IF(AJ49>0,ROUND(IF(MOD(AJ49,30)=0,QUOTIENT(AJ49,30)*VLOOKUP(#REF!&"CP",Importes!$A$2:$F$14,6,FALSE)*(IF($BG49>100,0,$BG49)/100),BK49*VLOOKUP(#REF!&"CP",Importes!$A$2:$F$14,5,FALSE)*(IF($BG49>100,0,$BG49)/100)),2),0)) ->  | BO49: =IF(AM49="","",IF(AM49>0,ROUND(IF(MOD(AM49,30)=0,QUOTIENT(AM49,30)*VLOOKUP(#REF!&IF(AC49="Si","AM+E","AM"),Importes!$A$2:$F$14,6,FALSE)*(IF($BG49>100,0,$BG49)/100),AM49*VLOOKUP(#REF!&IF(AC49="Si","AM+E","AM"),Importes!$A$2:$F$14,5,FALSE)*(IF($BG49>100,0,$BG49)/100)),2),0)) ->  | CO49: =IF(VALUE($A49)=0,"",IF(CO$11="","",IF($O49<CO$6,"",IF($N49>CO$6,"",IF(AND(OR($O49="",$O49>=CO$6),$AR49="",$AF49<>""),"F",IF(AND($AR49<=CO$6,OR($AS49=$O49,$AS49>=CO$6,IF($AS49="",$AU$5))),"h",IF($DE49>=CO$6,"F",""))))))) ->  | CV49: 0 | CW49: 0 | CX49: 0 | CY49: 0 | CZ49: 0 | DA49: 0 | DB49: 5 | DC49: 5 | DD49: 2025-01-01 | DE49: 2025-01-31 | DF49: 0 | DG49: 0 | DH49: 2025-01-01 | DI49: 2025-01-31 | DJ49: 00:00:00 | DK49: 2025-01-01 | DL49: 0 | DM49: 0 | DN49: 0 | DO49: 0 | DP49: 0 | DQ49: 2025-01-01 | DR49: 0 | DS49: 0 | DT49: 0 | DU49: 0 | DV49: 0 | DW49: 3 | DX49: 0 | DY49: 0 | DZ49: 0 | EA49: AA | EB49: A | EC49: A | ED49: NO | EG49: 148 | EH49: 30 | EI49: 30 | EJ49: 28 | EK49: 30 | EL49: 30 | EM49: 210 | EN49: 30 | EO49: 30 | EP49: 30 | EQ49: 30 | ER49: 30 | ES49: 30 | ET49: 30 | EU49: 1 | EV49: 1 | EW49: 1 | EX49: 1 | EY49: 1 | EZ49: 1 | FA49: 1 | FB49: 1 | FC49: 1 | FD49: 1 | FE49: 1 | FF49: 1 | FG49: 31 | FH49: 31 | FI49: 28 | FJ49: 31 | FK49: 30 | FL49: 31 | FM49: 30 | FN49: 31 | FO49: 31 | FP49: 30 | FQ49: 31 | FR49: 30
B50: 1 | Q50: =IFERROR(VLOOKUP(P50,Importes!L:Q,2,FALSE),"") ->  | S50: =IF(G50="","",#REF!) ->  | T50: =IF(G50="","",#REF!) ->  | W50: =IF(G50="","",IF($AG$8="x","Mensualidade",IF(AND($AG$8="",#REF!="x",$AH$8=DATE(YEAR($CU$7),12,1)),"Extra Inverno",IF(AND($AG$8="",#REF!="x",$AH$8=DATE(YEAR($CV$8),6,1)),"Extra Verán","")))) ->  | X50: 0 | AB50: AM+E | AC50: Si | AD50: 1 | AF50: AM+E | AG50: 0 | AH50: =IFERROR(IF(OR(AD50="+CT",AF50=""),0,ROUND(IF(MOD(AG50,30)=0,QUOTIENT(AG50,30)*VLOOKUP(C50&AF50,Importes!$A$2:$I$14,IF(MONTH($I$7)=12,6,9),FALSE)*(IF($AE50>100,0,$AE50)/100),AG50*VLOOKUP(C50&AF50,Importes!$A$2:$I$14,IF(MONTH($I$7)=12,5,8),FALSE)*(IF($AE50>100,0,$AE50)/100)),2)),0) -> 0 | AK50: =IFERROR(IF(AJ50="","",IF(AJ50<180,AJ50*VLOOKUP(#REF!&"CP",Importes!$A$2:$F$14,5,FALSE)*(IF($AI50>100,0,$AI50)/100),IF(AJ50=180,VLOOKUP(#REF!&"CP",Importes!$A$2:$F$14,6,FALSE)*6*(IF($AI50>100,0,$AI50)/100),0))),0) ->  | AN50: =IF(AM50="","",IF(AM50>0,ROUND(IF(MOD(AM50,30)=0,QUOTIENT(AM50,30)*VLOOKUP(C50&IF(AC50="Si","AM+E","AM"),Importes!$A$2:$I$14,IF(MONTH($I$7)=12,6,9),FALSE)*(IF($AL50>100,0,$AL50)/100),AM50*VLOOKUP(C50&IF(AC50="Si","AM+E","AM"),Importes!$A$2:$I$14,IF(MONTH($I$7)=12,5,8),FALSE)*(IF($AL50>100,0,$AL50)/100)),2),0)) ->  | AT50: Non | BG50: 81.3 | BH50: =IFERROR(IF(AF50="AM",DF50,IF(AF50="AM+E",DF50,IF(AF50="CP",#REF!,IF(AF50="CV",DR50,IF(AF50="CV+E",DR50))))),0) -> 0 | BI50: =IFERROR(IF(OR(AD50="+CT",AF50=""),0,ROUND(IF(MOD(AG50,30)=0,QUOTIENT(AG50,30)*VLOOKUP(#REF!&AF50,Importes!$A$2:$F$14,6,FALSE)*(IF($AE50>100,0,$AE50)/100),AG50*VLOOKUP(#REF!&AF50,Importes!$A$2:$F$14,5,FALSE)*(IF($AE50>100,0,$AE50)/100)),2)),0) -> 0 | BK50: =IFERROR(ROUND(IF($AI$8="Anual",0.5,1)*IF(AND(AF50="AM",OR(EA50="ALINT",EA50="AL")),#REF!,IF(AND(AF50="AM",#REF!="x"),#REF!,"")),0),"") ->  | BL50: =IF(AJ50="","",IF(AJ50>0,ROUND(IF(MOD(AJ50,30)=0,QUOTIENT(AJ50,30)*VLOOKUP(#REF!&"CP",Importes!$A$2:$F$14,6,FALSE)*(IF($BG50>100,0,$BG50)/100),BK50*VLOOKUP(#REF!&"CP",Importes!$A$2:$F$14,5,FALSE)*(IF($BG50>100,0,$BG50)/100)),2),0)) ->  | BO50: =IF(AM50="","",IF(AM50>0,ROUND(IF(MOD(AM50,30)=0,QUOTIENT(AM50,30)*VLOOKUP(#REF!&IF(AC50="Si","AM+E","AM"),Importes!$A$2:$F$14,6,FALSE)*(IF($BG50>100,0,$BG50)/100),AM50*VLOOKUP(#REF!&IF(AC50="Si","AM+E","AM"),Importes!$A$2:$F$14,5,FALSE)*(IF($BG50>100,0,$BG50)/100)),2),0)) ->  | CV50: 0 | CW50: 0 | CX50: 0 | CY50: 0 | CZ50: 0 | DA50: 0 | DB50: 5 | DC50: 5 | DD50: 2025-01-01 | DE50: 2025-01-31 | DF50: 0 | DG50: 0 | DH50: 2025-01-01 | DI50: 2025-01-31 | DJ50: 00:00:00 | DK50: 2025-01-01 | DL50: 0 | DM50: 0 | DN50: 0 | DO50: 0 | DP50: 0 | DQ50: 2025-01-01 | DR50: 0 | DS50: 0 | DT50: 0 | DU50: 0 | DV50: 0 | DW50: 3 | DX50: 0 | DY50: 0 | DZ50: 0 | EA50: AA | EB50: A | EC50: A | ED50: NO | EG50: 148 | EH50: 30 | EI50: 30 | EJ50: 28 | EK50: 30 | EL50: 30 | EM50: 210 | EN50: 30 | EO50: 30 | EP50: 30 | EQ50: 30 | ER50: 30 | ES50: 30 | ET50: 30 | EU50: 1 | EV50: 1 | EW50: 1 | EX50: 1 | EY50: 1 | EZ50: 1 | FA50: 1 | FB50: 1 | FC50: 1 | FD50: 1 | FE50: 1 | FF50: 1 | FG50: 31 | FH50: 31 | FI50: 28 | FJ50: 31 | FK50: 30 | FL50: 31 | FM50: 30 | FN50: 31 | FO50: 31 | FP50: 30 | FQ50: 31 | FR50: 30
B51: 1 | Q51: =IFERROR(VLOOKUP(P51,Importes!L:Q,2,FALSE),"") ->  | S51: =IF(G51="","",#REF!) ->  | T51: =IF(G51="","",#REF!) ->  | W51: =IF(G51="","",IF($AG$8="x","Mensualidade",IF(AND($AG$8="",#REF!="x",$AH$8=DATE(YEAR($CU$7),12,1)),"Extra Inverno",IF(AND($AG$8="",#REF!="x",$AH$8=DATE(YEAR($CV$8),6,1)),"Extra Verán","")))) ->  | X51: 0 | AB51: AM+E | AC51: Si | AD51: 1 | AF51: AM+E | AG51: 0 | AH51: =IFERROR(IF(OR(AD51="+CT",AF51=""),0,ROUND(IF(MOD(AG51,30)=0,QUOTIENT(AG51,30)*VLOOKUP(C51&AF51,Importes!$A$2:$I$14,IF(MONTH($I$7)=12,6,9),FALSE)*(IF($AE51>100,0,$AE51)/100),AG51*VLOOKUP(C51&AF51,Importes!$A$2:$I$14,IF(MONTH($I$7)=12,5,8),FALSE)*(IF($AE51>100,0,$AE51)/100)),2)),0) -> 0 | AK51: =IFERROR(IF(AJ51="","",IF(AJ51<180,AJ51*VLOOKUP(#REF!&"CP",Importes!$A$2:$F$14,5,FALSE)*(IF($AI51>100,0,$AI51)/100),IF(AJ51=180,VLOOKUP(#REF!&"CP",Importes!$A$2:$F$14,6,FALSE)*6*(IF($AI51>100,0,$AI51)/100),0))),0) ->  | AN51: =IF(AM51="","",IF(AM51>0,ROUND(IF(MOD(AM51,30)=0,QUOTIENT(AM51,30)*VLOOKUP(C51&IF(AC51="Si","AM+E","AM"),Importes!$A$2:$I$14,IF(MONTH($I$7)=12,6,9),FALSE)*(IF($AL51>100,0,$AL51)/100),AM51*VLOOKUP(C51&IF(AC51="Si","AM+E","AM"),Importes!$A$2:$I$14,IF(MONTH($I$7)=12,5,8),FALSE)*(IF($AL51>100,0,$AL51)/100)),2),0)) ->  | AT51: Non | BG51: 81.3 | BH51: =IFERROR(IF(AF51="AM",DF51,IF(AF51="AM+E",DF51,IF(AF51="CP",#REF!,IF(AF51="CV",DR51,IF(AF51="CV+E",DR51))))),0) -> 0 | BI51: =IFERROR(IF(OR(AD51="+CT",AF51=""),0,ROUND(IF(MOD(AG51,30)=0,QUOTIENT(AG51,30)*VLOOKUP(#REF!&AF51,Importes!$A$2:$F$14,6,FALSE)*(IF($AE51>100,0,$AE51)/100),AG51*VLOOKUP(#REF!&AF51,Importes!$A$2:$F$14,5,FALSE)*(IF($AE51>100,0,$AE51)/100)),2)),0) -> 0 | BK51: =IFERROR(ROUND(IF($AI$8="Anual",0.5,1)*IF(AND(AF51="AM",OR(EA51="ALINT",EA51="AL")),#REF!,IF(AND(AF51="AM",#REF!="x"),#REF!,"")),0),"") ->  | BL51: =IF(AJ51="","",IF(AJ51>0,ROUND(IF(MOD(AJ51,30)=0,QUOTIENT(AJ51,30)*VLOOKUP(#REF!&"CP",Importes!$A$2:$F$14,6,FALSE)*(IF($BG51>100,0,$BG51)/100),BK51*VLOOKUP(#REF!&"CP",Importes!$A$2:$F$14,5,FALSE)*(IF($BG51>100,0,$BG51)/100)),2),0)) ->  | BO51: =IF(AM51="","",IF(AM51>0,ROUND(IF(MOD(AM51,30)=0,QUOTIENT(AM51,30)*VLOOKUP(#REF!&IF(AC51="Si","AM+E","AM"),Importes!$A$2:$F$14,6,FALSE)*(IF($BG51>100,0,$BG51)/100),AM51*VLOOKUP(#REF!&IF(AC51="Si","AM+E","AM"),Importes!$A$2:$F$14,5,FALSE)*(IF($BG51>100,0,$BG51)/100)),2),0)) ->  | CV51: 0 | CW51: 0 | CX51: 0 | CY51: 0 | CZ51: 0 | DA51: 0 | DB51: 5 | DC51: 5 | DD51: 2025-01-01 | DE51: 2025-01-31 | DF51: 0 | DG51: 0 | DH51: 2025-01-01 | DI51: 2025-01-31 | DJ51: 00:00:00 | DK51: 2025-01-01 | DL51: 0 | DM51: 0 | DN51: 0 | DO51: 0 | DP51: 0 | DQ51: 2025-01-01 | DR51: 0 | DS51: 0 | DT51: 0 | DU51: 0 | DV51: 0 | DW51: 3 | DX51: 0 | DY51: 0 | DZ51: 0 | EA51: AA | EB51: A | EC51: A | ED51: NO | EG51: 148 | EH51: 30 | EI51: 30 | EJ51: 28 | EK51: 30 | EL51: 30 | EM51: 210 | EN51: 30 | EO51: 30 | EP51: 30 | EQ51: 30 | ER51: 30 | ES51: 30 | ET51: 30 | EU51: 1 | EV51: 1 | EW51: 1 | EX51: 1 | EY51: 1 | EZ51: 1 | FA51: 1 | FB51: 1 | FC51: 1 | FD51: 1 | FE51: 1 | FF51: 1 | FG51: 31 | FH51: 31 | FI51: 28 | FJ51: 31 | FK51: 30 | FL51: 31 | FM51: 30 | FN51: 31 | FO51: 31 | FP51: 30 | FQ51: 31 | FR51: 30
B52: 1 | Q52: =IFERROR(VLOOKUP(P52,Importes!L:Q,2,FALSE),"") ->  | S52: =IF(G52="","",#REF!) ->  | T52: =IF(G52="","",#REF!) ->  | W52: =IF(G52="","",IF($AG$8="x","Mensualidade",IF(AND($AG$8="",#REF!="x",$AH$8=DATE(YEAR($CU$7),12,1)),"Extra Inverno",IF(AND($AG$8="",#REF!="x",$AH$8=DATE(YEAR($CV$8),6,1)),"Extra Verán","")))) ->  | X52: 0 | AB52: AM+E | AC52: Si | AD52: 1 | AF52: AM+E | AG52: 0 | AH52: =IFERROR(IF(OR(AD52="+CT",AF52=""),0,ROUND(IF(MOD(AG52,30)=0,QUOTIENT(AG52,30)*VLOOKUP(C52&AF52,Importes!$A$2:$I$14,IF(MONTH($I$7)=12,6,9),FALSE)*(IF($AE52>100,0,$AE52)/100),AG52*VLOOKUP(C52&AF52,Importes!$A$2:$I$14,IF(MONTH($I$7)=12,5,8),FALSE)*(IF($AE52>100,0,$AE52)/100)),2)),0) -> 0 | AK52: =IFERROR(IF(AJ52="","",IF(AJ52<180,AJ52*VLOOKUP(#REF!&"CP",Importes!$A$2:$F$14,5,FALSE)*(IF($AI52>100,0,$AI52)/100),IF(AJ52=180,VLOOKUP(#REF!&"CP",Importes!$A$2:$F$14,6,FALSE)*6*(IF($AI52>100,0,$AI52)/100),0))),0) ->  | AN52: =IF(AM52="","",IF(AM52>0,ROUND(IF(MOD(AM52,30)=0,QUOTIENT(AM52,30)*VLOOKUP(C52&IF(AC52="Si","AM+E","AM"),Importes!$A$2:$I$14,IF(MONTH($I$7)=12,6,9),FALSE)*(IF($AL52>100,0,$AL52)/100),AM52*VLOOKUP(C52&IF(AC52="Si","AM+E","AM"),Importes!$A$2:$I$14,IF(MONTH($I$7)=12,5,8),FALSE)*(IF($AL52>100,0,$AL52)/100)),2),0)) ->  | AT52: Non | BG52: 81.3 | BH52: =IFERROR(IF(AF52="AM",DF52,IF(AF52="AM+E",DF52,IF(AF52="CP",#REF!,IF(AF52="CV",DR52,IF(AF52="CV+E",DR52))))),0) -> 0 | BI52: =IFERROR(IF(OR(AD52="+CT",AF52=""),0,ROUND(IF(MOD(AG52,30)=0,QUOTIENT(AG52,30)*VLOOKUP(#REF!&AF52,Importes!$A$2:$F$14,6,FALSE)*(IF($AE52>100,0,$AE52)/100),AG52*VLOOKUP(#REF!&AF52,Importes!$A$2:$F$14,5,FALSE)*(IF($AE52>100,0,$AE52)/100)),2)),0) -> 0 | BK52: =IFERROR(ROUND(IF($AI$8="Anual",0.5,1)*IF(AND(AF52="AM",OR(EA52="ALINT",EA52="AL")),#REF!,IF(AND(AF52="AM",#REF!="x"),#REF!,"")),0),"") ->  | BL52: =IF(AJ52="","",IF(AJ52>0,ROUND(IF(MOD(AJ52,30)=0,QUOTIENT(AJ52,30)*VLOOKUP(#REF!&"CP",Importes!$A$2:$F$14,6,FALSE)*(IF($BG52>100,0,$BG52)/100),BK52*VLOOKUP(#REF!&"CP",Importes!$A$2:$F$14,5,FALSE)*(IF($BG52>100,0,$BG52)/100)),2),0)) ->  | BO52: =IF(AM52="","",IF(AM52>0,ROUND(IF(MOD(AM52,30)=0,QUOTIENT(AM52,30)*VLOOKUP(#REF!&IF(AC52="Si","AM+E","AM"),Importes!$A$2:$F$14,6,FALSE)*(IF($BG52>100,0,$BG52)/100),AM52*VLOOKUP(#REF!&IF(AC52="Si","AM+E","AM"),Importes!$A$2:$F$14,5,FALSE)*(IF($BG52>100,0,$BG52)/100)),2),0)) ->  | BZ52: =IF(VALUE($A52)=0,"",IF(BZ$11="","",IF($O52<BZ$6,"",IF($N52>BZ$6,"",IF(AND(OR($O52="",$O52>=BZ$6),$AR52="",$AF52<>""),"F",IF(AND($AR52<=BZ$6,OR($AS52=$O52,$AS52>=BZ$6,IF($AS52="",$AU$5))),"h",IF($DE52>=BZ$6,"F",""))))))) ->  | CV52: 0 | CW52: 0 | CX52: 0 | CY52: 0 | CZ52: 0 | DA52: 0 | DB52: 5 | DC52: 5 | DD52: 2025-01-01 | DE52: 2025-01-31 | DF52: 0 | DG52: 0 | DH52: 2025-01-01 | DI52: 2025-01-31 | DJ52: 00:00:00 | DK52: 2025-01-01 | DL52: 0 | DM52: 0 | DN52: 0 | DO52: 0 | DP52: 0 | DQ52: 2025-01-01 | DR52: 0 | DS52: 0 | DT52: 0 | DU52: 0 | DV52: 0 | DW52: 3 | DX52: 0 | DY52: 0 | DZ52: 0 | EA52: AA | EB52: A | EC52: A | ED52: NO | EG52: 148 | EH52: 30 | EI52: 30 | EJ52: 28 | EK52: 30 | EL52: 30 | EM52: 210 | EN52: 30 | EO52: 30 | EP52: 30 | EQ52: 30 | ER52: 30 | ES52: 30 | ET52: 30 | EU52: 1 | EV52: 1 | EW52: 1 | EX52: 1 | EY52: 1 | EZ52: 1 | FA52: 1 | FB52: 1 | FC52: 1 | FD52: 1 | FE52: 1 | FF52: 1 | FG52: 31 | FH52: 31 | FI52: 28 | FJ52: 31 | FK52: 30 | FL52: 31 | FM52: 30 | FN52: 31 | FO52: 31 | FP52: 30 | FQ52: 31 | FR52: 30
B53: 1 | Q53: =IFERROR(VLOOKUP(P53,Importes!L:Q,2,FALSE),"") ->  | S53: =IF(G53="","",#REF!) ->  | T53: =IF(G53="","",#REF!) ->  | W53: =IF(G53="","",IF($AG$8="x","Mensualidade",IF(AND($AG$8="",#REF!="x",$AH$8=DATE(YEAR($CU$7),12,1)),"Extra Inverno",IF(AND($AG$8="",#REF!="x",$AH$8=DATE(YEAR($CV$8),6,1)),"Extra Verán","")))) ->  | X53: 0 | AB53: AM+E | AC53: Si | AD53: 1 | AF53: AM+E | AG53: 0 | AH53: =IFERROR(IF(OR(AD53="+CT",AF53=""),0,ROUND(IF(MOD(AG53,30)=0,QUOTIENT(AG53,30)*VLOOKUP(C53&AF53,Importes!$A$2:$I$14,IF(MONTH($I$7)=12,6,9),FALSE)*(IF($AE53>100,0,$AE53)/100),AG53*VLOOKUP(C53&AF53,Importes!$A$2:$I$14,IF(MONTH($I$7)=12,5,8),FALSE)*(IF($AE53>100,0,$AE53)/100)),2)),0) -> 0 | AK53: =IFERROR(IF(AJ53="","",IF(AJ53<180,AJ53*VLOOKUP(#REF!&"CP",Importes!$A$2:$F$14,5,FALSE)*(IF($AI53>100,0,$AI53)/100),IF(AJ53=180,VLOOKUP(#REF!&"CP",Importes!$A$2:$F$14,6,FALSE)*6*(IF($AI53>100,0,$AI53)/100),0))),0) ->  | AN53: =IF(AM53="","",IF(AM53>0,ROUND(IF(MOD(AM53,30)=0,QUOTIENT(AM53,30)*VLOOKUP(C53&IF(AC53="Si","AM+E","AM"),Importes!$A$2:$I$14,IF(MONTH($I$7)=12,6,9),FALSE)*(IF($AL53>100,0,$AL53)/100),AM53*VLOOKUP(C53&IF(AC53="Si","AM+E","AM"),Importes!$A$2:$I$14,IF(MONTH($I$7)=12,5,8),FALSE)*(IF($AL53>100,0,$AL53)/100)),2),0)) ->  | AT53: Non | BG53: 81.3 | BH53: =IFERROR(IF(AF53="AM",DF53,IF(AF53="AM+E",DF53,IF(AF53="CP",#REF!,IF(AF53="CV",DR53,IF(AF53="CV+E",DR53))))),0) -> 0 | BI53: =IFERROR(IF(OR(AD53="+CT",AF53=""),0,ROUND(IF(MOD(AG53,30)=0,QUOTIENT(AG53,30)*VLOOKUP(#REF!&AF53,Importes!$A$2:$F$14,6,FALSE)*(IF($AE53>100,0,$AE53)/100),AG53*VLOOKUP(#REF!&AF53,Importes!$A$2:$F$14,5,FALSE)*(IF($AE53>100,0,$AE53)/100)),2)),0) -> 0 | BK53: =IFERROR(ROUND(IF($AI$8="Anual",0.5,1)*IF(AND(AF53="AM",OR(EA53="ALINT",EA53="AL")),#REF!,IF(AND(AF53="AM",#REF!="x"),#REF!,"")),0),"") ->  | BL53: =IF(AJ53="","",IF(AJ53>0,ROUND(IF(MOD(AJ53,30)=0,QUOTIENT(AJ53,30)*VLOOKUP(#REF!&"CP",Importes!$A$2:$F$14,6,FALSE)*(IF($BG53>100,0,$BG53)/100),BK53*VLOOKUP(#REF!&"CP",Importes!$A$2:$F$14,5,FALSE)*(IF($BG53>100,0,$BG53)/100)),2),0)) ->  | BO53: =IF(AM53="","",IF(AM53>0,ROUND(IF(MOD(AM53,30)=0,QUOTIENT(AM53,30)*VLOOKUP(#REF!&IF(AC53="Si","AM+E","AM"),Importes!$A$2:$F$14,6,FALSE)*(IF($BG53>100,0,$BG53)/100),AM53*VLOOKUP(#REF!&IF(AC53="Si","AM+E","AM"),Importes!$A$2:$F$14,5,FALSE)*(IF($BG53>100,0,$BG53)/100)),2),0)) ->  | CV53: 0 | CW53: 0 | CX53: 0 | CY53: 0 | CZ53: 0 | DA53: 0 | DB53: 5 | DC53: 5 | DD53: 2025-01-01 | DE53: 2025-01-31 | DF53: 0 | DG53: 0 | DH53: 2025-01-01 | DI53: 2025-01-31 | DJ53: 00:00:00 | DK53: 2025-01-01 | DL53: 0 | DM53: 0 | DN53: 0 | DO53: 0 | DP53: 0 | DQ53: 2025-01-01 | DR53: 0 | DS53: 0 | DT53: 0 | DU53: 0 | DV53: 0 | DW53: 3 | DX53: 0 | DY53: 0 | DZ53: 0 | EA53: AA | EB53: A | EC53: A | ED53: NO | EG53: 148 | EH53: 30 | EI53: 30 | EJ53: 28 | EK53: 30 | EL53: 30 | EM53: 210 | EN53: 30 | EO53: 30 | EP53: 30 | EQ53: 30 | ER53: 30 | ES53: 30 | ET53: 30 | EU53: 1 | EV53: 1 | EW53: 1 | EX53: 1 | EY53: 1 | EZ53: 1 | FA53: 1 | FB53: 1 | FC53: 1 | FD53: 1 | FE53: 1 | FF53: 1 | FG53: 31 | FH53: 31 | FI53: 28 | FJ53: 31 | FK53: 30 | FL53: 31 | FM53: 30 | FN53: 31 | FO53: 31 | FP53: 30 | FQ53: 31 | FR53: 30
B54: 1 | Q54: =IFERROR(VLOOKUP(P54,Importes!L:Q,2,FALSE),"") ->  | S54: =IF(G54="","",#REF!) ->  | T54: =IF(G54="","",#REF!) ->  | W54: =IF(G54="","",IF($AG$8="x","Mensualidade",IF(AND($AG$8="",#REF!="x",$AH$8=DATE(YEAR($CU$7),12,1)),"Extra Inverno",IF(AND($AG$8="",#REF!="x",$AH$8=DATE(YEAR($CV$8),6,1)),"Extra Verán","")))) ->  | X54: 0 | AB54: AM+E | AC54: Si | AD54: 1 | AF54: AM+E | AG54: 0 | AH54: =IFERROR(IF(OR(AD54="+CT",AF54=""),0,ROUND(IF(MOD(AG54,30)=0,QUOTIENT(AG54,30)*VLOOKUP(C54&AF54,Importes!$A$2:$I$14,IF(MONTH($I$7)=12,6,9),FALSE)*(IF($AE54>100,0,$AE54)/100),AG54*VLOOKUP(C54&AF54,Importes!$A$2:$I$14,IF(MONTH($I$7)=12,5,8),FALSE)*(IF($AE54>100,0,$AE54)/100)),2)),0) -> 0 | AK54: =IFERROR(IF(AJ54="","",IF(AJ54<180,AJ54*VLOOKUP(#REF!&"CP",Importes!$A$2:$F$14,5,FALSE)*(IF($AI54>100,0,$AI54)/100),IF(AJ54=180,VLOOKUP(#REF!&"CP",Importes!$A$2:$F$14,6,FALSE)*6*(IF($AI54>100,0,$AI54)/100),0))),0) ->  | AN54: =IF(AM54="","",IF(AM54>0,ROUND(IF(MOD(AM54,30)=0,QUOTIENT(AM54,30)*VLOOKUP(C54&IF(AC54="Si","AM+E","AM"),Importes!$A$2:$I$14,IF(MONTH($I$7)=12,6,9),FALSE)*(IF($AL54>100,0,$AL54)/100),AM54*VLOOKUP(C54&IF(AC54="Si","AM+E","AM"),Importes!$A$2:$I$14,IF(MONTH($I$7)=12,5,8),FALSE)*(IF($AL54>100,0,$AL54)/100)),2),0)) ->  | AT54: Non | BG54: 81.3 | BH54: =IFERROR(IF(AF54="AM",DF54,IF(AF54="AM+E",DF54,IF(AF54="CP",#REF!,IF(AF54="CV",DR54,IF(AF54="CV+E",DR54))))),0) -> 0 | BI54: =IFERROR(IF(OR(AD54="+CT",AF54=""),0,ROUND(IF(MOD(AG54,30)=0,QUOTIENT(AG54,30)*VLOOKUP(#REF!&AF54,Importes!$A$2:$F$14,6,FALSE)*(IF($AE54>100,0,$AE54)/100),AG54*VLOOKUP(#REF!&AF54,Importes!$A$2:$F$14,5,FALSE)*(IF($AE54>100,0,$AE54)/100)),2)),0) -> 0 | BK54: =IFERROR(ROUND(IF($AI$8="Anual",0.5,1)*IF(AND(AF54="AM",OR(EA54="ALINT",EA54="AL")),#REF!,IF(AND(AF54="AM",#REF!="x"),#REF!,"")),0),"") ->  | BL54: =IF(AJ54="","",IF(AJ54>0,ROUND(IF(MOD(AJ54,30)=0,QUOTIENT(AJ54,30)*VLOOKUP(#REF!&"CP",Importes!$A$2:$F$14,6,FALSE)*(IF($BG54>100,0,$BG54)/100),BK54*VLOOKUP(#REF!&"CP",Importes!$A$2:$F$14,5,FALSE)*(IF($BG54>100,0,$BG54)/100)),2),0)) ->  | BO54: =IF(AM54="","",IF(AM54>0,ROUND(IF(MOD(AM54,30)=0,QUOTIENT(AM54,30)*VLOOKUP(#REF!&IF(AC54="Si","AM+E","AM"),Importes!$A$2:$F$14,6,FALSE)*(IF($BG54>100,0,$BG54)/100),AM54*VLOOKUP(#REF!&IF(AC54="Si","AM+E","AM"),Importes!$A$2:$F$14,5,FALSE)*(IF($BG54>100,0,$BG54)/100)),2),0)) ->  | CB54: =IF(VALUE($A54)=0,"",IF(CB$11="","",IF($O54<CB$6,"",IF($N54>CB$6,"",IF(AND(OR($O54="",$O54>=CB$6),$AR54="",$AF54<>""),"F",IF(AND($AR54<=CB$6,OR($AS54=$O54,$AS54>=CB$6,IF($AS54="",$AU$5))),"h",IF($DE54>=CB$6,"F",""))))))) ->  | CV54: 0 | CW54: 0 | CX54: 0 | CY54: 0 | CZ54: 0 | DA54: 0 | DB54: 5 | DC54: 5 | DD54: 2025-01-01 | DE54: 2025-01-31 | DF54: 0 | DG54: 0 | DH54: 2025-01-01 | DI54: 2025-01-31 | DJ54: 00:00:00 | DK54: 2025-01-01 | DL54: 0 | DM54: 0 | DN54: 0 | DO54: 0 | DP54: 0 | DQ54: 2025-01-01 | DR54: 0 | DS54: 0 | DT54: 0 | DU54: 0 | DV54: 0 | DW54: 3 | DX54: 0 | DY54: 0 | DZ54: 0 | EA54: AA | EB54: A | EC54: A | ED54: NO | EG54: 148 | EH54: 30 | EI54: 30 | EJ54: 28 | EK54: 30 | EL54: 30 | EM54: 210 | EN54: 30 | EO54: 30 | EP54: 30 | EQ54: 30 | ER54: 30 | ES54: 30 | ET54: 30 | EU54: 1 | EV54: 1 | EW54: 1 | EX54: 1 | EY54: 1 | EZ54: 1 | FA54: 1 | FB54: 1 | FC54: 1 | FD54: 1 | FE54: 1 | FF54: 1 | FG54: 31 | FH54: 31 | FI54: 28 | FJ54: 31 | FK54: 30 | FL54: 31 | FM54: 30 | FN54: 31 | FO54: 31 | FP54: 30 | FQ54: 31 | FR54: 30
B55: 1 | Q55: =IFERROR(VLOOKUP(P55,Importes!L:Q,2,FALSE),"") ->  | S55: =IF(G55="","",#REF!) ->  | T55: =IF(G55="","",#REF!) ->  | W55: =IF(G55="","",IF($AG$8="x","Mensualidade",IF(AND($AG$8="",#REF!="x",$AH$8=DATE(YEAR($CU$7),12,1)),"Extra Inverno",IF(AND($AG$8="",#REF!="x",$AH$8=DATE(YEAR($CV$8),6,1)),"Extra Verán","")))) ->  | X55: 0 | AB55: AM+E | AC55: Si | AD55: 1 | AF55: AM+E | AG55: 0 | AH55: =IFERROR(IF(OR(AD55="+CT",AF55=""),0,ROUND(IF(MOD(AG55,30)=0,QUOTIENT(AG55,30)*VLOOKUP(C55&AF55,Importes!$A$2:$I$14,IF(MONTH($I$7)=12,6,9),FALSE)*(IF($AE55>100,0,$AE55)/100),AG55*VLOOKUP(C55&AF55,Importes!$A$2:$I$14,IF(MONTH($I$7)=12,5,8),FALSE)*(IF($AE55>100,0,$AE55)/100)),2)),0) -> 0 | AK55: =IFERROR(IF(AJ55="","",IF(AJ55<180,AJ55*VLOOKUP(#REF!&"CP",Importes!$A$2:$F$14,5,FALSE)*(IF($AI55>100,0,$AI55)/100),IF(AJ55=180,VLOOKUP(#REF!&"CP",Importes!$A$2:$F$14,6,FALSE)*6*(IF($AI55>100,0,$AI55)/100),0))),0) ->  | AN55: =IF(AM55="","",IF(AM55>0,ROUND(IF(MOD(AM55,30)=0,QUOTIENT(AM55,30)*VLOOKUP(C55&IF(AC55="Si","AM+E","AM"),Importes!$A$2:$I$14,IF(MONTH($I$7)=12,6,9),FALSE)*(IF($AL55>100,0,$AL55)/100),AM55*VLOOKUP(C55&IF(AC55="Si","AM+E","AM"),Importes!$A$2:$I$14,IF(MONTH($I$7)=12,5,8),FALSE)*(IF($AL55>100,0,$AL55)/100)),2),0)) ->  | AT55: Non | BG55: 81.3 | BH55: =IFERROR(IF(AF55="AM",DF55,IF(AF55="AM+E",DF55,IF(AF55="CP",#REF!,IF(AF55="CV",DR55,IF(AF55="CV+E",DR55))))),0) -> 0 | BI55: =IFERROR(IF(OR(AD55="+CT",AF55=""),0,ROUND(IF(MOD(AG55,30)=0,QUOTIENT(AG55,30)*VLOOKUP(#REF!&AF55,Importes!$A$2:$F$14,6,FALSE)*(IF($AE55>100,0,$AE55)/100),AG55*VLOOKUP(#REF!&AF55,Importes!$A$2:$F$14,5,FALSE)*(IF($AE55>100,0,$AE55)/100)),2)),0) -> 0 | BK55: =IFERROR(ROUND(IF($AI$8="Anual",0.5,1)*IF(AND(AF55="AM",OR(EA55="ALINT",EA55="AL")),#REF!,IF(AND(AF55="AM",#REF!="x"),#REF!,"")),0),"") ->  | BL55: =IF(AJ55="","",IF(AJ55>0,ROUND(IF(MOD(AJ55,30)=0,QUOTIENT(AJ55,30)*VLOOKUP(#REF!&"CP",Importes!$A$2:$F$14,6,FALSE)*(IF($BG55>100,0,$BG55)/100),BK55*VLOOKUP(#REF!&"CP",Importes!$A$2:$F$14,5,FALSE)*(IF($BG55>100,0,$BG55)/100)),2),0)) ->  | BO55: =IF(AM55="","",IF(AM55>0,ROUND(IF(MOD(AM55,30)=0,QUOTIENT(AM55,30)*VLOOKUP(#REF!&IF(AC55="Si","AM+E","AM"),Importes!$A$2:$F$14,6,FALSE)*(IF($BG55>100,0,$BG55)/100),AM55*VLOOKUP(#REF!&IF(AC55="Si","AM+E","AM"),Importes!$A$2:$F$14,5,FALSE)*(IF($BG55>100,0,$BG55)/100)),2),0)) ->  | CV55: 0 | CW55: 0 | CX55: 0 | CY55: 0 | CZ55: 0 | DA55: 0 | DB55: 5 | DC55: 5 | DD55: 2025-01-01 | DE55: 2025-01-31 | DF55: 0 | DG55: 0 | DH55: 2025-01-01 | DI55: 2025-01-31 | DJ55: 00:00:00 | DK55: 2025-01-01 | DL55: 0 | DM55: 0 | DN55: 0 | DO55: 0 | DP55: 0 | DQ55: 2025-01-01 | DR55: 0 | DS55: 0 | DT55: 0 | DU55: 0 | DV55: 0 | DW55: 3 | DX55: 0 | DY55: 0 | DZ55: 0 | EA55: AA | EB55: A | EC55: A | ED55: NO | EG55: 148 | EH55: 30 | EI55: 30 | EJ55: 28 | EK55: 30 | EL55: 30 | EM55: 210 | EN55: 30 | EO55: 30 | EP55: 30 | EQ55: 30 | ER55: 30 | ES55: 30 | ET55: 30 | EU55: 1 | EV55: 1 | EW55: 1 | EX55: 1 | EY55: 1 | EZ55: 1 | FA55: 1 | FB55: 1 | FC55: 1 | FD55: 1 | FE55: 1 | FF55: 1 | FG55: 31 | FH55: 31 | FI55: 28 | FJ55: 31 | FK55: 30 | FL55: 31 | FM55: 30 | FN55: 31 | FO55: 31 | FP55: 30 | FQ55: 31 | FR55: 30
B56: 1 | Q56: =IFERROR(VLOOKUP(P56,Importes!L:Q,2,FALSE),"") ->  | S56: =IF(G56="","",#REF!) ->  | T56: =IF(G56="","",#REF!) ->  | W56: =IF(G56="","",IF($AG$8="x","Mensualidade",IF(AND($AG$8="",#REF!="x",$AH$8=DATE(YEAR($CU$7),12,1)),"Extra Inverno",IF(AND($AG$8="",#REF!="x",$AH$8=DATE(YEAR($CV$8),6,1)),"Extra Verán","")))) ->  | X56: 0 | AB56: AM+E | AC56: Si | AD56: 1 | AF56: AM+E | AG56: 0 | AH56: =IFERROR(IF(OR(AD56="+CT",AF56=""),0,ROUND(IF(MOD(AG56,30)=0,QUOTIENT(AG56,30)*VLOOKUP(C56&AF56,Importes!$A$2:$I$14,IF(MONTH($I$7)=12,6,9),FALSE)*(IF($AE56>100,0,$AE56)/100),AG56*VLOOKUP(C56&AF56,Importes!$A$2:$I$14,IF(MONTH($I$7)=12,5,8),FALSE)*(IF($AE56>100,0,$AE56)/100)),2)),0) -> 0 | AK56: =IFERROR(IF(AJ56="","",IF(AJ56<180,AJ56*VLOOKUP(#REF!&"CP",Importes!$A$2:$F$14,5,FALSE)*(IF($AI56>100,0,$AI56)/100),IF(AJ56=180,VLOOKUP(#REF!&"CP",Importes!$A$2:$F$14,6,FALSE)*6*(IF($AI56>100,0,$AI56)/100),0))),0) ->  | AN56: =IF(AM56="","",IF(AM56>0,ROUND(IF(MOD(AM56,30)=0,QUOTIENT(AM56,30)*VLOOKUP(C56&IF(AC56="Si","AM+E","AM"),Importes!$A$2:$I$14,IF(MONTH($I$7)=12,6,9),FALSE)*(IF($AL56>100,0,$AL56)/100),AM56*VLOOKUP(C56&IF(AC56="Si","AM+E","AM"),Importes!$A$2:$I$14,IF(MONTH($I$7)=12,5,8),FALSE)*(IF($AL56>100,0,$AL56)/100)),2),0)) ->  | AT56: Non | BG56: 81.3 | BH56: =IFERROR(IF(AF56="AM",DF56,IF(AF56="AM+E",DF56,IF(AF56="CP",#REF!,IF(AF56="CV",DR56,IF(AF56="CV+E",DR56))))),0) -> 0 | BI56: =IFERROR(IF(OR(AD56="+CT",AF56=""),0,ROUND(IF(MOD(AG56,30)=0,QUOTIENT(AG56,30)*VLOOKUP(#REF!&AF56,Importes!$A$2:$F$14,6,FALSE)*(IF($AE56>100,0,$AE56)/100),AG56*VLOOKUP(#REF!&AF56,Importes!$A$2:$F$14,5,FALSE)*(IF($AE56>100,0,$AE56)/100)),2)),0) -> 0 | BK56: =IFERROR(ROUND(IF($AI$8="Anual",0.5,1)*IF(AND(AF56="AM",OR(EA56="ALINT",EA56="AL")),#REF!,IF(AND(AF56="AM",#REF!="x"),#REF!,"")),0),"") ->  | BL56: =IF(AJ56="","",IF(AJ56>0,ROUND(IF(MOD(AJ56,30)=0,QUOTIENT(AJ56,30)*VLOOKUP(#REF!&"CP",Importes!$A$2:$F$14,6,FALSE)*(IF($BG56>100,0,$BG56)/100),BK56*VLOOKUP(#REF!&"CP",Importes!$A$2:$F$14,5,FALSE)*(IF($BG56>100,0,$BG56)/100)),2),0)) ->  | BO56: =IF(AM56="","",IF(AM56>0,ROUND(IF(MOD(AM56,30)=0,QUOTIENT(AM56,30)*VLOOKUP(#REF!&IF(AC56="Si","AM+E","AM"),Importes!$A$2:$F$14,6,FALSE)*(IF($BG56>100,0,$BG56)/100),AM56*VLOOKUP(#REF!&IF(AC56="Si","AM+E","AM"),Importes!$A$2:$F$14,5,FALSE)*(IF($BG56>100,0,$BG56)/100)),2),0)) ->  | CV56: 0 | CW56: 0 | CX56: 0 | CY56: 0 | CZ56: 0 | DA56: 0 | DB56: 5 | DC56: 5 | DD56: 2025-01-01 | DE56: 2025-01-31 | DF56: 0 | DG56: 0 | DH56: 2025-01-01 | DI56: 2025-01-31 | DJ56: 00:00:00 | DK56: 2025-01-01 | DL56: 0 | DM56: 0 | DN56: 0 | DO56: 0 | DP56: 0 | DQ56: 2025-01-01 | DR56: 0 | DS56: 0 | DT56: 0 | DU56: 0 | DV56: 0 | DW56: 3 | DX56: 0 | DY56: 0 | DZ56: 0 | EA56: AA | EB56: A | EC56: A | ED56: NO | EG56: 148 | EH56: 30 | EI56: 30 | EJ56: 28 | EK56: 30 | EL56: 30 | EM56: 210 | EN56: 30 | EO56: 30 | EP56: 30 | EQ56: 30 | ER56: 30 | ES56: 30 | ET56: 30 | EU56: 1 | EV56: 1 | EW56: 1 | EX56: 1 | EY56: 1 | EZ56: 1 | FA56: 1 | FB56: 1 | FC56: 1 | FD56: 1 | FE56: 1 | FF56: 1 | FG56: 31 | FH56: 31 | FI56: 28 | FJ56: 31 | FK56: 30 | FL56: 31 | FM56: 30 | FN56: 31 | FO56: 31 | FP56: 30 | FQ56: 31 | FR56: 30
B57: 1 | Q57: =IFERROR(VLOOKUP(P57,Importes!L:Q,2,FALSE),"") ->  | S57: =IF(G57="","",#REF!) ->  | T57: =IF(G57="","",#REF!) ->  | W57: =IF(G57="","",IF($AG$8="x","Mensualidade",IF(AND($AG$8="",#REF!="x",$AH$8=DATE(YEAR($CU$7),12,1)),"Extra Inverno",IF(AND($AG$8="",#REF!="x",$AH$8=DATE(YEAR($CV$8),6,1)),"Extra Verán","")))) ->  | X57: 0 | AB57: AM+E | AC57: Si | AD57: 1 | AF57: AM+E | AG57: 0 | AH57: =IFERROR(IF(OR(AD57="+CT",AF57=""),0,ROUND(IF(MOD(AG57,30)=0,QUOTIENT(AG57,30)*VLOOKUP(C57&AF57,Importes!$A$2:$I$14,IF(MONTH($I$7)=12,6,9),FALSE)*(IF($AE57>100,0,$AE57)/100),AG57*VLOOKUP(C57&AF57,Importes!$A$2:$I$14,IF(MONTH($I$7)=12,5,8),FALSE)*(IF($AE57>100,0,$AE57)/100)),2)),0) -> 0 | AK57: =IFERROR(IF(AJ57="","",IF(AJ57<180,AJ57*VLOOKUP(#REF!&"CP",Importes!$A$2:$F$14,5,FALSE)*(IF($AI57>100,0,$AI57)/100),IF(AJ57=180,VLOOKUP(#REF!&"CP",Importes!$A$2:$F$14,6,FALSE)*6*(IF($AI57>100,0,$AI57)/100),0))),0) ->  | AN57: =IF(AM57="","",IF(AM57>0,ROUND(IF(MOD(AM57,30)=0,QUOTIENT(AM57,30)*VLOOKUP(C57&IF(AC57="Si","AM+E","AM"),Importes!$A$2:$I$14,IF(MONTH($I$7)=12,6,9),FALSE)*(IF($AL57>100,0,$AL57)/100),AM57*VLOOKUP(C57&IF(AC57="Si","AM+E","AM"),Importes!$A$2:$I$14,IF(MONTH($I$7)=12,5,8),FALSE)*(IF($AL57>100,0,$AL57)/100)),2),0)) ->  | AT57: Non | BG57: 81.3 | BH57: =IFERROR(IF(AF57="AM",DF57,IF(AF57="AM+E",DF57,IF(AF57="CP",#REF!,IF(AF57="CV",DR57,IF(AF57="CV+E",DR57))))),0) -> 0 | BI57: =IFERROR(IF(OR(AD57="+CT",AF57=""),0,ROUND(IF(MOD(AG57,30)=0,QUOTIENT(AG57,30)*VLOOKUP(#REF!&AF57,Importes!$A$2:$F$14,6,FALSE)*(IF($AE57>100,0,$AE57)/100),AG57*VLOOKUP(#REF!&AF57,Importes!$A$2:$F$14,5,FALSE)*(IF($AE57>100,0,$AE57)/100)),2)),0) -> 0 | BK57: =IFERROR(ROUND(IF($AI$8="Anual",0.5,1)*IF(AND(AF57="AM",OR(EA57="ALINT",EA57="AL")),#REF!,IF(AND(AF57="AM",#REF!="x"),#REF!,"")),0),"") ->  | BL57: =IF(AJ57="","",IF(AJ57>0,ROUND(IF(MOD(AJ57,30)=0,QUOTIENT(AJ57,30)*VLOOKUP(#REF!&"CP",Importes!$A$2:$F$14,6,FALSE)*(IF($BG57>100,0,$BG57)/100),BK57*VLOOKUP(#REF!&"CP",Importes!$A$2:$F$14,5,FALSE)*(IF($BG57>100,0,$BG57)/100)),2),0)) ->  | BO57: =IF(AM57="","",IF(AM57>0,ROUND(IF(MOD(AM57,30)=0,QUOTIENT(AM57,30)*VLOOKUP(#REF!&IF(AC57="Si","AM+E","AM"),Importes!$A$2:$F$14,6,FALSE)*(IF($BG57>100,0,$BG57)/100),AM57*VLOOKUP(#REF!&IF(AC57="Si","AM+E","AM"),Importes!$A$2:$F$14,5,FALSE)*(IF($BG57>100,0,$BG57)/100)),2),0)) ->  | CV57: 0 | CW57: 0 | CX57: 0 | CY57: 0 | CZ57: 0 | DA57: 0 | DB57: 5 | DC57: 5 | DD57: 2025-01-01 | DE57: 2025-01-31 | DF57: 0 | DG57: 0 | DH57: 2025-01-01 | DI57: 2025-01-31 | DJ57: 00:00:00 | DK57: 2025-01-01 | DL57: 0 | DM57: 0 | DN57: 0 | DO57: 0 | DP57: 0 | DQ57: 2025-01-01 | DR57: 0 | DS57: 0 | DT57: 0 | DU57: 0 | DV57: 0 | DW57: 3 | DX57: 0 | DY57: 0 | DZ57: 0 | EA57: AA | EB57: A | EC57: A | ED57: NO | EG57: 148 | EH57: 30 | EI57: 30 | EJ57: 28 | EK57: 30 | EL57: 30 | EM57: 210 | EN57: 30 | EO57: 30 | EP57: 30 | EQ57: 30 | ER57: 30 | ES57: 30 | ET57: 30 | EU57: 1 | EV57: 1 | EW57: 1 | EX57: 1 | EY57: 1 | EZ57: 1 | FA57: 1 | FB57: 1 | FC57: 1 | FD57: 1 | FE57: 1 | FF57: 1 | FG57: 31 | FH57: 31 | FI57: 28 | FJ57: 31 | FK57: 30 | FL57: 31 | FM57: 30 | FN57: 31 | FO57: 31 | FP57: 30 | FQ57: 31 | FR57: 30
B58: 1 | Q58: =IFERROR(VLOOKUP(P58,Importes!L:Q,2,FALSE),"") ->  | S58: =IF(G58="","",#REF!) ->  | T58: =IF(G58="","",#REF!) ->  | W58: =IF(G58="","",IF($AG$8="x","Mensualidade",IF(AND($AG$8="",#REF!="x",$AH$8=DATE(YEAR($CU$7),12,1)),"Extra Inverno",IF(AND($AG$8="",#REF!="x",$AH$8=DATE(YEAR($CV$8),6,1)),"Extra Verán","")))) ->  | X58: 0 | AB58: AM+E | AC58: Si | AD58: 1 | AF58: AM+E | AG58: 0 | AH58: =IFERROR(IF(OR(AD58="+CT",AF58=""),0,ROUND(IF(MOD(AG58,30)=0,QUOTIENT(AG58,30)*VLOOKUP(C58&AF58,Importes!$A$2:$I$14,IF(MONTH($I$7)=12,6,9),FALSE)*(IF($AE58>100,0,$AE58)/100),AG58*VLOOKUP(C58&AF58,Importes!$A$2:$I$14,IF(MONTH($I$7)=12,5,8),FALSE)*(IF($AE58>100,0,$AE58)/100)),2)),0) -> 0 | AK58: =IFERROR(IF(AJ58="","",IF(AJ58<180,AJ58*VLOOKUP(#REF!&"CP",Importes!$A$2:$F$14,5,FALSE)*(IF($AI58>100,0,$AI58)/100),IF(AJ58=180,VLOOKUP(#REF!&"CP",Importes!$A$2:$F$14,6,FALSE)*6*(IF($AI58>100,0,$AI58)/100),0))),0) ->  | AN58: =IF(AM58="","",IF(AM58>0,ROUND(IF(MOD(AM58,30)=0,QUOTIENT(AM58,30)*VLOOKUP(C58&IF(AC58="Si","AM+E","AM"),Importes!$A$2:$I$14,IF(MONTH($I$7)=12,6,9),FALSE)*(IF($AL58>100,0,$AL58)/100),AM58*VLOOKUP(C58&IF(AC58="Si","AM+E","AM"),Importes!$A$2:$I$14,IF(MONTH($I$7)=12,5,8),FALSE)*(IF($AL58>100,0,$AL58)/100)),2),0)) ->  | AT58: Non | BG58: 81.3 | BH58: =IFERROR(IF(AF58="AM",DF58,IF(AF58="AM+E",DF58,IF(AF58="CP",#REF!,IF(AF58="CV",DR58,IF(AF58="CV+E",DR58))))),0) -> 0 | BI58: =IFERROR(IF(OR(AD58="+CT",AF58=""),0,ROUND(IF(MOD(AG58,30)=0,QUOTIENT(AG58,30)*VLOOKUP(#REF!&AF58,Importes!$A$2:$F$14,6,FALSE)*(IF($AE58>100,0,$AE58)/100),AG58*VLOOKUP(#REF!&AF58,Importes!$A$2:$F$14,5,FALSE)*(IF($AE58>100,0,$AE58)/100)),2)),0) -> 0 | BK58: =IFERROR(ROUND(IF($AI$8="Anual",0.5,1)*IF(AND(AF58="AM",OR(EA58="ALINT",EA58="AL")),#REF!,IF(AND(AF58="AM",#REF!="x"),#REF!,"")),0),"") ->  | BL58: =IF(AJ58="","",IF(AJ58>0,ROUND(IF(MOD(AJ58,30)=0,QUOTIENT(AJ58,30)*VLOOKUP(#REF!&"CP",Importes!$A$2:$F$14,6,FALSE)*(IF($BG58>100,0,$BG58)/100),BK58*VLOOKUP(#REF!&"CP",Importes!$A$2:$F$14,5,FALSE)*(IF($BG58>100,0,$BG58)/100)),2),0)) ->  | BO58: =IF(AM58="","",IF(AM58>0,ROUND(IF(MOD(AM58,30)=0,QUOTIENT(AM58,30)*VLOOKUP(#REF!&IF(AC58="Si","AM+E","AM"),Importes!$A$2:$F$14,6,FALSE)*(IF($BG58>100,0,$BG58)/100),AM58*VLOOKUP(#REF!&IF(AC58="Si","AM+E","AM"),Importes!$A$2:$F$14,5,FALSE)*(IF($BG58>100,0,$BG58)/100)),2),0)) ->  | CV58: 0 | CW58: 0 | CX58: 0 | CY58: 0 | CZ58: 0 | DA58: 0 | DB58: 5 | DC58: 5 | DD58: 2025-01-01 | DE58: 2025-01-31 | DF58: 0 | DG58: 0 | DH58: 2025-01-01 | DI58: 2025-01-31 | DJ58: 00:00:00 | DK58: 2025-01-01 | DL58: 0 | DM58: 0 | DN58: 0 | DO58: 0 | DP58: 0 | DQ58: 2025-01-01 | DR58: 0 | DS58: 0 | DT58: 0 | DU58: 0 | DV58: 0 | DW58: 3 | DX58: 0 | DY58: 0 | DZ58: 0 | EA58: AA | EB58: A | EC58: A | ED58: NO | EG58: 148 | EH58: 30 | EI58: 30 | EJ58: 28 | EK58: 30 | EL58: 30 | EM58: 210 | EN58: 30 | EO58: 30 | EP58: 30 | EQ58: 30 | ER58: 30 | ES58: 30 | ET58: 30 | EU58: 1 | EV58: 1 | EW58: 1 | EX58: 1 | EY58: 1 | EZ58: 1 | FA58: 1 | FB58: 1 | FC58: 1 | FD58: 1 | FE58: 1 | FF58: 1 | FG58: 31 | FH58: 31 | FI58: 28 | FJ58: 31 | FK58: 30 | FL58: 31 | FM58: 30 | FN58: 31 | FO58: 31 | FP58: 30 | FQ58: 31 | FR58: 30
B59: 1 | Q59: =IFERROR(VLOOKUP(P59,Importes!L:Q,2,FALSE),"") ->  | S59: =IF(G59="","",#REF!) ->  | T59: =IF(G59="","",#REF!) ->  | W59: =IF(G59="","",IF($AG$8="x","Mensualidade",IF(AND($AG$8="",#REF!="x",$AH$8=DATE(YEAR($CU$7),12,1)),"Extra Inverno",IF(AND($AG$8="",#REF!="x",$AH$8=DATE(YEAR($CV$8),6,1)),"Extra Verán","")))) ->  | X59: 0 | AB59: AM+E | AC59: Si | AD59: 1 | AF59: AM+E | AG59: 0 | AH59: =IFERROR(IF(OR(AD59="+CT",AF59=""),0,ROUND(IF(MOD(AG59,30)=0,QUOTIENT(AG59,30)*VLOOKUP(C59&AF59,Importes!$A$2:$I$14,IF(MONTH($I$7)=12,6,9),FALSE)*(IF($AE59>100,0,$AE59)/100),AG59*VLOOKUP(C59&AF59,Importes!$A$2:$I$14,IF(MONTH($I$7)=12,5,8),FALSE)*(IF($AE59>100,0,$AE59)/100)),2)),0) -> 0 | AK59: =IFERROR(IF(AJ59="","",IF(AJ59<180,AJ59*VLOOKUP(#REF!&"CP",Importes!$A$2:$F$14,5,FALSE)*(IF($AI59>100,0,$AI59)/100),IF(AJ59=180,VLOOKUP(#REF!&"CP",Importes!$A$2:$F$14,6,FALSE)*6*(IF($AI59>100,0,$AI59)/100),0))),0) ->  | AN59: =IF(AM59="","",IF(AM59>0,ROUND(IF(MOD(AM59,30)=0,QUOTIENT(AM59,30)*VLOOKUP(C59&IF(AC59="Si","AM+E","AM"),Importes!$A$2:$I$14,IF(MONTH($I$7)=12,6,9),FALSE)*(IF($AL59>100,0,$AL59)/100),AM59*VLOOKUP(C59&IF(AC59="Si","AM+E","AM"),Importes!$A$2:$I$14,IF(MONTH($I$7)=12,5,8),FALSE)*(IF($AL59>100,0,$AL59)/100)),2),0)) ->  | AT59: Non | BG59: 81.3 | BH59: =IFERROR(IF(AF59="AM",DF59,IF(AF59="AM+E",DF59,IF(AF59="CP",#REF!,IF(AF59="CV",DR59,IF(AF59="CV+E",DR59))))),0) -> 0 | BI59: =IFERROR(IF(OR(AD59="+CT",AF59=""),0,ROUND(IF(MOD(AG59,30)=0,QUOTIENT(AG59,30)*VLOOKUP(#REF!&AF59,Importes!$A$2:$F$14,6,FALSE)*(IF($AE59>100,0,$AE59)/100),AG59*VLOOKUP(#REF!&AF59,Importes!$A$2:$F$14,5,FALSE)*(IF($AE59>100,0,$AE59)/100)),2)),0) -> 0 | BK59: =IFERROR(ROUND(IF($AI$8="Anual",0.5,1)*IF(AND(AF59="AM",OR(EA59="ALINT",EA59="AL")),#REF!,IF(AND(AF59="AM",#REF!="x"),#REF!,"")),0),"") ->  | BL59: =IF(AJ59="","",IF(AJ59>0,ROUND(IF(MOD(AJ59,30)=0,QUOTIENT(AJ59,30)*VLOOKUP(#REF!&"CP",Importes!$A$2:$F$14,6,FALSE)*(IF($BG59>100,0,$BG59)/100),BK59*VLOOKUP(#REF!&"CP",Importes!$A$2:$F$14,5,FALSE)*(IF($BG59>100,0,$BG59)/100)),2),0)) ->  | BO59: =IF(AM59="","",IF(AM59>0,ROUND(IF(MOD(AM59,30)=0,QUOTIENT(AM59,30)*VLOOKUP(#REF!&IF(AC59="Si","AM+E","AM"),Importes!$A$2:$F$14,6,FALSE)*(IF($BG59>100,0,$BG59)/100),AM59*VLOOKUP(#REF!&IF(AC59="Si","AM+E","AM"),Importes!$A$2:$F$14,5,FALSE)*(IF($BG59>100,0,$BG59)/100)),2),0)) ->  | CV59: 0 | CW59: 0 | CX59: 0 | CY59: 0 | CZ59: 0 | DA59: 0 | DB59: 5 | DC59: 5 | DD59: 2025-01-01 | DE59: 2025-01-31 | DF59: 0 | DG59: 0 | DH59: 2025-01-01 | DI59: 2025-01-31 | DJ59: 00:00:00 | DK59: 2025-01-01 | DL59: 0 | DM59: 0 | DN59: 0 | DO59: 0 | DP59: 0 | DQ59: 2025-01-01 | DR59: 0 | DS59: 0 | DT59: 0 | DU59: 0 | DV59: 0 | DW59: 3 | DX59: 0 | DY59: 0 | DZ59: 0 | EA59: AA | EB59: A | EC59: A | ED59: NO | EG59: 148 | EH59: 30 | EI59: 30 | EJ59: 28 | EK59: 30 | EL59: 30 | EM59: 210 | EN59: 30 | EO59: 30 | EP59: 30 | EQ59: 30 | ER59: 30 | ES59: 30 | ET59: 30 | EU59: 1 | EV59: 1 | EW59: 1 | EX59: 1 | EY59: 1 | EZ59: 1 | FA59: 1 | FB59: 1 | FC59: 1 | FD59: 1 | FE59: 1 | FF59: 1 | FG59: 31 | FH59: 31 | FI59: 28 | FJ59: 31 | FK59: 30 | FL59: 31 | FM59: 30 | FN59: 31 | FO59: 31 | FP59: 30 | FQ59: 31 | FR59: 30
B60: 1 | Q60: =IFERROR(VLOOKUP(P60,Importes!L:Q,2,FALSE),"") ->  | S60: =IF(G60="","",#REF!) ->  | T60: =IF(G60="","",#REF!) ->  | W60: =IF(G60="","",IF($AG$8="x","Mensualidade",IF(AND($AG$8="",#REF!="x",$AH$8=DATE(YEAR($CU$7),12,1)),"Extra Inverno",IF(AND($AG$8="",#REF!="x",$AH$8=DATE(YEAR($CV$8),6,1)),"Extra Verán","")))) ->  | X60: 0 | AB60: AM+E | AC60: Si | AD60: 1 | AF60: AM+E | AG60: 0 | AH60: =IFERROR(IF(OR(AD60="+CT",AF60=""),0,ROUND(IF(MOD(AG60,30)=0,QUOTIENT(AG60,30)*VLOOKUP(C60&AF60,Importes!$A$2:$I$14,IF(MONTH($I$7)=12,6,9),FALSE)*(IF($AE60>100,0,$AE60)/100),AG60*VLOOKUP(C60&AF60,Importes!$A$2:$I$14,IF(MONTH($I$7)=12,5,8),FALSE)*(IF($AE60>100,0,$AE60)/100)),2)),0) -> 0 | AK60: =IFERROR(IF(AJ60="","",IF(AJ60<180,AJ60*VLOOKUP(#REF!&"CP",Importes!$A$2:$F$14,5,FALSE)*(IF($AI60>100,0,$AI60)/100),IF(AJ60=180,VLOOKUP(#REF!&"CP",Importes!$A$2:$F$14,6,FALSE)*6*(IF($AI60>100,0,$AI60)/100),0))),0) ->  | AN60: =IF(AM60="","",IF(AM60>0,ROUND(IF(MOD(AM60,30)=0,QUOTIENT(AM60,30)*VLOOKUP(C60&IF(AC60="Si","AM+E","AM"),Importes!$A$2:$I$14,IF(MONTH($I$7)=12,6,9),FALSE)*(IF($AL60>100,0,$AL60)/100),AM60*VLOOKUP(C60&IF(AC60="Si","AM+E","AM"),Importes!$A$2:$I$14,IF(MONTH($I$7)=12,5,8),FALSE)*(IF($AL60>100,0,$AL60)/100)),2),0)) ->  | AT60: Non | BG60: 81.3 | BH60: =IFERROR(IF(AF60="AM",DF60,IF(AF60="AM+E",DF60,IF(AF60="CP",#REF!,IF(AF60="CV",DR60,IF(AF60="CV+E",DR60))))),0) -> 0 | BI60: =IFERROR(IF(OR(AD60="+CT",AF60=""),0,ROUND(IF(MOD(AG60,30)=0,QUOTIENT(AG60,30)*VLOOKUP(#REF!&AF60,Importes!$A$2:$F$14,6,FALSE)*(IF($AE60>100,0,$AE60)/100),AG60*VLOOKUP(#REF!&AF60,Importes!$A$2:$F$14,5,FALSE)*(IF($AE60>100,0,$AE60)/100)),2)),0) -> 0 | BK60: =IFERROR(ROUND(IF($AI$8="Anual",0.5,1)*IF(AND(AF60="AM",OR(EA60="ALINT",EA60="AL")),#REF!,IF(AND(AF60="AM",#REF!="x"),#REF!,"")),0),"") ->  | BL60: =IF(AJ60="","",IF(AJ60>0,ROUND(IF(MOD(AJ60,30)=0,QUOTIENT(AJ60,30)*VLOOKUP(#REF!&"CP",Importes!$A$2:$F$14,6,FALSE)*(IF($BG60>100,0,$BG60)/100),BK60*VLOOKUP(#REF!&"CP",Importes!$A$2:$F$14,5,FALSE)*(IF($BG60>100,0,$BG60)/100)),2),0)) ->  | BO60: =IF(AM60="","",IF(AM60>0,ROUND(IF(MOD(AM60,30)=0,QUOTIENT(AM60,30)*VLOOKUP(#REF!&IF(AC60="Si","AM+E","AM"),Importes!$A$2:$F$14,6,FALSE)*(IF($BG60>100,0,$BG60)/100),AM60*VLOOKUP(#REF!&IF(AC60="Si","AM+E","AM"),Importes!$A$2:$F$14,5,FALSE)*(IF($BG60>100,0,$BG60)/100)),2),0)) ->  | CV60: 0 | CW60: 0 | CX60: 0 | CY60: 0 | CZ60: 0 | DA60: 0 | DB60: 5 | DC60: 5 | DD60: 2025-01-01 | DE60: 2025-01-31 | DF60: 0 | DG60: 0 | DH60: 2025-01-01 | DI60: 2025-01-31 | DJ60: 00:00:00 | DK60: 2025-01-01 | DL60: 0 | DM60: 0 | DN60: 0 | DO60: 0 | DP60: 0 | DQ60: 2025-01-01 | DR60: 0 | DS60: 0 | DT60: 0 | DU60: 0 | DV60: 0 | DW60: 3 | DX60: 0 | DY60: 0 | DZ60: 0 | EA60: AA | EB60: A | EC60: A | ED60: NO | EG60: 148 | EH60: 30 | EI60: 30 | EJ60: 28 | EK60: 30 | EL60: 30 | EM60: 210 | EN60: 30 | EO60: 30 | EP60: 30 | EQ60: 30 | ER60: 30 | ES60: 30 | ET60: 30 | EU60: 1 | EV60: 1 | EW60: 1 | EX60: 1 | EY60: 1 | EZ60: 1 | FA60: 1 | FB60: 1 | FC60: 1 | FD60: 1 | FE60: 1 | FF60: 1 | FG60: 31 | FH60: 31 | FI60: 28 | FJ60: 31 | FK60: 30 | FL60: 31 | FM60: 30 | FN60: 31 | FO60: 31 | FP60: 30 | FQ60: 31 | FR60: 30
BQ61: =IF(VALUE($A61)=0,"",IF(BQ$11="","",IF($O61<BQ$6,"",IF($N61>BQ$6,"",IF(AND(OR($O61="",$O61>=BQ$6),$AR61="",$AF61<>""),"F",IF(AND($AR61<=BQ$6,OR($AS61=$O61,$AS61>=BQ$6,IF($AS61="",$AU$5))),"h",IF($DE61>=BQ$6,"F",""))))))) ->  | CA61: =IF(VALUE($A61)=0,"",IF(CA$11="","",IF($O61<CA$6,"",IF($N61>CA$6,"",IF(AND(OR($O61="",$O61>=CA$6),$AR61="",$AF61<>""),"F",IF(AND($AR61<=CA$6,OR($AS61=$O61,$AS61>=CA$6,IF($AS61="",$AU$5))),"h",IF($DE61>=CA$6,"F",""))))))) ->  | CK61: =IF(VALUE($A61)=0,"",IF(CK$11="","",IF($O61<CK$6,"",IF($N61>CK$6,"",IF(AND(OR($O61="",$O61>=CK$6),$AR61="",$AF61<>""),"F",IF(AND($AR61<=CK$6,OR($AS61=$O61,$AS61>=CK$6,IF($AS61="",$AU$5))),"h",IF($DE61>=CK$6,"F",""))))))) -> 
H62: Lugar e data:
H63: SINATURA DA PERSOA REPRESENTANTE

Sheet Contador (hidden)
A2: expediente | B2: 0 | F2: Verdadero

Sheet Importes (hidden)
A1: Códigos | C1: SMI | D1: =$K$1/30 -> 37.8 | E1: =D1/12*2 -> 6.3 | F1: Achega SMI1 | G1: =$K$4/30 -> 39.47 | H1: =G1/12*2 -> 6.58 | I1: Achega SMI2 | J1: SMI 1 | K1: =I17 -> 1134 | L1: cod | N1: tipo | O1: tempo | P1: nome | Q1: obxecto
A2: =B2&C2 -> 0AM+E | B2: 0 | C2: AM+E | D2: =D3+D4 -> 0.5 | E2: =ROUND(D2*$D$1+$E$1*D2,2) -> 22.05 | F2: =ROUND(D2*$I$17+$K$2*D2,2) -> 661.5 | G2: =G3+H4 -> 0.5 | H2: =ROUND(G2*$G$1+$H$1*G2,2) -> 23.03 | I2: =ROUND(D2*$I$18+$K$5*D2,2) -> 690.67 | J2: Prorrata 2PE | K2: =K1/12*2 -> 189 | L2: 100 | M2: =IF(N2="Indefinido","Ind","Temp") -> Ind | N2: Indefinido | O2: TIEMPO COMPLETO | P2: ORDINARIO
A3: 0AM | B3: 0 | C3: AM | D3: 0.5 | E3: =ROUND(D3*$D$1,2) -> 18.9 | F3: =ROUND(D3*$I$17,2) -> 567 | G3: 0.5 | H3: =ROUND(G3*$G$1,2) -> 19.74 | I3: =ROUND(D3*$I$18,2) -> 592 | L3: 109 | M3: =IF(N3="Indefinido","Ind","Temp") -> Ind | N3: Indefinido | O3: TIEMPO COMPLETO | P3: FOMENTO CONTRATACIÓN INDEFINIDA / EMPLEO ESTABLE | Q3: TRANSFORMACIÓN CONTRATO Temporal
J4: SMI 2 | K4: =I18 -> 1184 | L4: 130 | M4: Ind | N4: Indefinido | O4: TIEMPO COMPLETO | P4: MINUSVÁLIDOS
A5: =B5&C5 -> 0CP | B5: 0 | C5: CP | D5: =0.5/6 -> 0.08 | E5: =ROUND(D5*$D$1,2) -> 3.02 | F5: =ROUND(D5*$I$17,2) -> 90.72 | G5: =0.5/6 -> 0.08 | H5: =ROUND(G5*$G$1,2) -> 3.16 | I5: =ROUND(D5*$I$18,2) -> 94.72 | J5: Prorrata 2PE | K5: =K4/12*2 -> 197.33 | L5: 139 | M5: Ind | N5: Indefinido | O5: TIEMPO COMPLETO | P5: MINUSVÁLIDOS | Q5: TRANSFORMACIÓN CONTRATO Temporal
A6: =B6&C6 -> 0CV | B6: 0 | C6: CV | D6: 0.5 | E6: =ROUND(D6*$D$1,2) -> 18.9 | F6: =ROUND(D6*$I$17,2) -> 567 | G6: 0.5 | H6: =ROUND(G6*$G$1,2) -> 19.74 | I6: =ROUND(D6*$I$18,2) -> 592 | L6: 150 | M6: Ind | N6: Indefinido | O6: TIEMPO COMPLETO | P6: FOMENTO CONTRATACIÓN INDEFINIDA / EMPLEO ESTABLE | Q6: INICIAL
A7: 0CV+E | B7: 0 | C7: CV+E | D7: =D3+D4 -> 0.5 | E7: =ROUND(D7*$D$1,2) -> 18.9 | F7: =ROUND(D7*$I$17,2) -> 567 | G7: =G3+G4 -> 0.5 | H7: =ROUND(G7*$G$1,2) -> 19.74 | I7: =ROUND(D7*$I$18,2) -> 592 | L7: 189 | M7: Ind | N7: Indefinido | O7: TIEMPO COMPLETO | Q7: TRANSFORMACIÓN CONTRATO Temporal
L8: 200 | M8: Ind | N8: Indefinido | O8: TIEMPO PARCIAL | P8: ORDINARIO
A9: 1AM+E | B9: 1 | C9: AM+E | D9: 0.65 | E9: =ROUND(D9*$D$1+$E$1*D9,2) -> 28.67 | F9: =ROUND(D9*$I$17+$K$2*D9,2) -> 859.95 | G9: 0.65 | H9: =ROUND(G9*$G$1+$H$1*G9,2) -> 29.93 | I9: =ROUND(D9*$I$18+$K$5*D9,2) -> 897.86 | L9: 209 | M9: Ind | N9: Indefinido | O9: TIEMPO PARCIAL | P9: FOMENTO CONTRATACIÓN INDEFINIDA / EMPLEO ESTABLE | Q9: TRANSFORMACIÓN CONTRATO Temporal
A10: 1AM | B10: 1 | C10: AM | D10: 0.65 | E10: =ROUND(D10*$D$1,2) -> 24.57 | F10: =ROUND(D10*$I$17,2) -> 737.1 | G10: 0.65 | H10: =ROUND(G10*$G$1,2) -> 25.66 | I10: =ROUND(D10*$I$18,2) -> 769.6 | L10: 230 | M10: Ind | N10: Indefinido | O10: TIEMPO PARCIAL | P10: MINUSVÁLIDOS
L11: 239 | M11: Ind | N11: Indefinido | O11: TIEMPO PARCIAL | P11: MINUSVÁLIDOS | Q11: TRANSFORMACIÓN CONTRATO Temporal
A12: 1CP | B12: 1 | C12: CP | D12: =0.65/6 -> 0.11 | E12: =ROUND(D12*$D$1,2) -> 4.16 | F12: =ROUND(D12*$I$17,2) -> 124.74 | G12: =0.65/6 -> 0.11 | H12: =ROUND(G12*$G$1,2) -> 4.34 | I12: =ROUND(D12*$I$18,2) -> 130.24 | L12: 250 | M12: Ind | N12: Indefinido | O12: TIEMPO PARCIAL | P12: FOMENTO CONTRATACIÓN INDEFINIDA / EMPLEO ESTABLE | Q12: INICIAL
A13: 1CV | B13: 1 | C13: CV | D13: 0.65 | E13: =ROUND(D13*$D$1,2) -> 24.57 | F13: =ROUND(D13*$I$17,2) -> 737.1 | G13: 0.65 | H13: =ROUND(G13*$G$1,2) -> 25.66 | I13: =ROUND(D13*$I$18,2) -> 769.6 | L13: 289 | M13: Ind | N13: Indefinido | O13: TIEMPO PARCIAL | Q13: TRANSFORMACIÓN CONTRATO Temporal
A14: 1CV+E | B14: 1 | C14: CV+E | D14: 0.65 | E14: =ROUND(D14*$D$1+$E$1*D14,2) -> 28.67 | F14: =ROUND(D14*$I$17+$K$2*D14,2) -> 859.95 | G14: 0.65 | H14: =ROUND(G14*$G$1+$H$1*G14,2) -> 29.93 | I14: =ROUND(D14*$I$18+$K$5*D14,2) -> 897.86 | L14: 300 | M14: Ind | N14: Indefinido | O14: FIJO/DISCONTINUO
L15: 309 | M15: Ind | N15: Indefinido | O15: FIJO/DISCONTINUO | P15: FOMENTO CONTRATACIÓN INDEFINIDA / EMPLEO ESTABLE | Q15: TRANSFORMACIÓN CONTRATO Temporal
A16: Minusvalía | C16: Tipo | L16: 330 | M16: Ind | N16: Indefinido | O16: FIJO/DISCONTINUO | P16: MINUSVÁLIDOS
A17: Pensionista | C17: minus | F17: 2024-02-06 | G17: SMI | H17: 2024 | I17: 1134 | L17: 350 | M17: Ind | N17: Indefinido | O17: FIJO/DISCONTINUO | P17: FOMENTO CONTRATACIÓN INDEFINIDA / EMPLEO ESTABLE | Q17: INICIAL
A18: Definitiva | C18: Física | F18: 2025-02-12 | G18: SMI | H18: 2025 | I18: 1184 | L18: 389 | M18: Ind | N18: Indefinido | O18: FIJO/DISCONTINUO | Q18: TRANSFORMACIÓN CONTRATO Temporal
A19: Provisional | C19: Sensorial | L19: 401 | M19: Temp | N19: Duración Determinada | O19: TIEMPO COMPLETO | P19: OBRA O SERVICIO DETERMINADO
C20: P. Cerebral | G20: mes | H20: SMI | I20: mes | L20: 402 | M20: Temp | N20: Duración Determinada | O20: TIEMPO COMPLETO | P20: EVENTUAL POR CIRCUNSTANCIAS DE LA PRODUCCIÓN
A21: sexo | C21: Enf. Mental | G21: 12 | H21: 1134 | I21: 12 | J21: Dec | L21: 403 | M21: Temp | N21: Duración Determinada | O21: TIEMPO COMPLETO | P21: INSERCIÓN
A22: H | C22: D. Intelectual | D22: meses 1º SMI | E22: =COUNTIF($H$21:$H$32,MIN($H$21:$H$32)) -> 1 | G22: 1 | H22: 1184 | I22: 1 | J22: Xan | L22: 408 | M22: Temp | N22: Temporal | O22: TIEMPO COMPLETO | Q22: CARÁCTER ADMINISTRATIVO
A23: M | C23: Psíquica | D23: meses 2º SMI | E23: =COUNTIF($H$21:$H$30,MAX($H$21:$H$30)) -> 9 | G23: 2 | H23: 1184 | I23: 2 | J23: Feb | L23: 410 | M23: Temp | N23: Duración Determinada | O23: TIEMPO COMPLETO | P23: INTERINIDAD
G24: 3 | H24: 1184 | I24: 3 | J24: Mar | L24: 418 | M24: Temp | N24: Duración Determinada | O24: TIEMPO COMPLETO | P24: INTERINIDAD | Q24: CARÁCTER ADMINISTRATIVO
G25: 4 | H25: 1184 | I25: 4 | J25: Abr | L25: 420 | M25: Temp | N25: Temporal | O25: TIEMPO COMPLETO | P25: PRÁCTICAS
A26: Conv | G26: 5 | H26: 1184 | I26: 5 | J26: Mai | L26: 421 | M26: Temp | N26: Temporal | O26: TIEMPO COMPLETO | P26: FORMACIÓN
A27: Baixa | G27: 6 | H27: 1184 | I27: 6 | J27: Xuñ | L27: 430 | M27: Temp | N27: Temporal | O27: TIEMPO COMPLETO | P27: MINUSVÁLIDOS
A28: Non | G28: 7 | H28: 1184 | I28: 7 | J28: Xull | L28: 441 | M28: Temp | N28: Temporal | O28: TIEMPO COMPLETO | P28: RELEVO
A29: Non | G29: 8 | H29: 1184 | I29: 8 | J29: Ago | L29: 450 | M29: Temp | N29: Temporal | O29: TIEMPO COMPLETO | P29: FOMENTO CONTRATACIÓN INDEFINIDA / EMPLEO ESTABLE
G30: 9 | H30: 1184 | I30: 9 | J30: Sep | L30: 501 | M30: Temp | N30: Duración Determinada | O30: TIEMPO PARCIAL | P30: OBRA O SERVICIO DETERMINADO
B31: Mes | G31: 10 | H31: 1184 | I31: 10 | J31: Out | L31: 502 | M31: Temp | N31: Duración Determinada | O31: TIEMPO PARCIAL | P31: EVENTUAL POR CIRCUNSTANCIAS DE LA PRODUCCIÓN
B32: 7 | C32: Xullo | G32: 11 | H32: 1184 | I32: 11 | J32: Nov | L32: 503 | M32: Temp | N32: Duración Determinada | O32: TIEMPO PARCIAL | P32: INSERCIÓN
B33: 8 | C33: Agosto | L33: 508 | M33: Temp | N33: Temporal | O33: TIEMPO PARCIAL | Q33: CARÁCTER ADMINISTRATIVO
B34: 9 | C34: Setembro | L34: 510 | M34: Temp | N34: Duración Determinada | O34: TIEMPO PARCIAL | P34: INTERINIDAD
B35: 10 | C35: Outubro | L35: 518 | M35: Temp | N35: Duración Determinada | O35: TIEMPO PARCIAL | P35: INTERINIDAD | Q35: CARÁCTER ADMINISTRATIVO
B36: 11 | C36: Novembro | L36: 520 | M36: Temp | N36: Temporal | O36: TIEMPO PARCIAL | P36: PRÁCTICAS
B37: 12 | C37: Decembro | L37: 530 | M37: Temp | N37: Temporal | O37: TIEMPO PARCIAL | P37: MINUSVÁLIDOS
B38: 1 | C38: Xaneiro | L38: 540 | M38: Temp | N38: Temporal | O38: TIEMPO PARCIAL | P38: JUBILADO PARCIAL
B39: 2 | C39: Febreiro | L39: 541 | M39: Temp | N39: Temporal | O39: TIEMPO PARCIAL | P39: RELEVO
B40: 3 | C40: Marzo | L40: 550 | M40: Temp | N40: Temporal | O40: TIEMPO PARCIAL | P40: FOMENTO CONTRATACIÓN INDEFINIDA / EMPLEO ESTABLE
B41: 4 | C41: Abril
B42: 5 | C42: Maio
B43: 6 | C43: Xuño

Sheet Campos a Cubrir (hidden)
A1: Este modelo está en formato Excel e, polo tanto, aínda que pode ser cuberta utilizando LibreOffice, debe gardar os cambios no mesmo formato. | I1: I M P O R T A N T E
A3: A continuación describense os campos do formulario con indicación do tipo de campo, a súa descrición, si é un campo autocalculado e si se cubre ou non | I3: Este modelo de folla de cálculo tén celdas ocultas, e celdas con fórmulas (algunhas delas ocultas)
I4: para inserir novas filas ou para borrar información deben terse en conta as seguintes
A5: Campo | C5: Tamaño | D5: Tipo | E5: Descrición | I5: recomendacións:
A6: Nº Exp | C6: 19 | D6: Texto | E6: Nº de Expediente administrativo asignado na convocatoria de axudas
A7: C.E.E. | C7: 50 | D7: Texto | E7: Nome do Centro Especial de Emprego | I7: Borrar información
A8: C.I.F. | C8: 9 | D8: Texto | E8: C.I.F. do Centro Especial de Emprego
A9: Nome da persoa representante | D9: Texto | E9: Nome da persoa representate do Centro Especial de Emprego | I9: No caso de querer borrar a información dunha fila completamente debemos facelo
I10: copiando na fila que queremos borrar a inforación dunha fila que esté totalmente en
A11: Novo Idx | D11: Numérico | E11: Suxire o nº de índice polo que se vincularía a alta dunha nova persoa traballadora | F11: Non se cubre | G11: Autocalculado | I11: blanco, xa que así conservamos a formulas de cálculo ocultas cos seus valores correctos.
A12: Tot. Trab. CEE/RNT | D12: Numérico | E12: Nº de persoas traballadoras que aparecen no RNT do mes que se certifica
A13: Certificación do cadro de persoal do mes de | D13: Texto | E13: lista despregable donde se escolle o mes que se vai a certificar | I13: Para facer esto temos que marcar a fila en blanco a copiar (totalmente) facendo a selección
A14: Certificación comprobada | D14: Texto | E14: lista despregable donde se indica que a certificación esta totalmente correcta | F14: (Por omisión ten o valor "SI") | I14: desde o número indicativo da fila (non desde unha celda), seleccionar a opción de copiar e
A15: Calculo correcto | D15: Texto | E15: lista despregable donde se indica que os calculos feitos son correctos | F15: (Por omisión ten o valor "SI") | I15: posicionarnos a celda que corresponda co Idx/Idn da fila a borrar, e logo pegar a información
I16: seleccionada. Desta maneira aseguramonos de que todas as formulas, ocultas ou non, se
A17: Total Achega Mes | D17: Numérico | E17: Importe total das achegas mensuais solicitadas na certificación | F17: Non se cubre | G17: Autocalculado | I17: copian correctamente na fila que acabamos de borrar
A18: T.c.Vacacións | D18: Numérico | E18: Importe total dos complemento por vacións solicitados na certificación | F18: Non se cubre | G18: Autocalculado
A19: Tot. Trab. Mes | D19: Numérico | E19: Total de traballadores con discapacidade que se relacionan no mes | F19: Non se cubre | G19: Autocalculado | I19: Inserir novas filas para engadir datos de novas persoas traballadoras
A20: Total Certificación mes de | D20: Numérico | E20: total conxunto de todas a achegas e complemento que se relacionan na certificación mensual | F20: Non se cubre | G20: Autocalculado | I20: Para facer insercións correctamente debemos:
A22: Conv. IT | D22: Texto | E22: lista despregable para indicar si os calculos das baixas por enfermidade correspondense co que dispoña a normativa da Seguridade Social ou si hai un convenio colectivo de aplicación específica | F22: (Por omisión ten o valor "NON") | I22: 1º | J22: Seleccionar o rango de filas a inserir e executar o comando
I23: 2º | J23: Seleccionar completamente unha fila con datos cubertos totalmente
A24: Idx / Idn | C24: 3 | D24: Numérico | E24: Indicaría o nº de índice polo que se vincularía á persoa traballadora (é único para cada traballador e contrato de traballo) | J24: (seleccionando desde o número indicativo da fila)
A25: G D | C25: 1 | D25: Numérico | E25: Permite determinar si polo traballador se precibe una subvención do 50 % do SMI ou si se prima cun 10 % adicional determinado na orde de convocatoria de axudas | F25: Non se cubre | G25: Autocalculado | I25: 3º | J25: Escoller o comando copiar
A26: Salario/mes Convenio Colectivo | D26: Numérico | E26: Importe mensual do salario bruto a percibir por cada persoa traballadora | I26: 4º | J26: Pegar nas novas filas en branco a selección anterior para que se restablezan nas
A27: Nº Rexistro ou data publicación C.C. | C27: 3 | D27: Texto | E27: Nº de Rexistro ou data de publicación do convenio colectivo de aplicación ó traballador | J27: novas filas as fórmulas ocultas ou non para poder facer posibles os cálulos)
A28: Traballador | C28: 50 | D28: Texto | E28: Apelidos e nome da persoa traballadora | J28: posicionandonos na celda que corresponda con campo Idx/Idn da nova fila a inserir
A29: D.N.I. | C29: 9 | D29: Texto | E29: Documento Nacional de Identidade da persoa traballadora
A30: Data Nacemento | C30: 6 | D30: Data dd/mm/aa | E30: Data de nacemento | I30: *****
A31: Sexo | C31: 1 | D31: Texto | E31: Sexo | I31: No caso de que nalgunha celda se borrase unha fórmula necesaria para o correcto cálculo da
A32: Discapacidade | C32: 14 | D32: Texto | E32: Tipo de discapacidade. Lista despregable cos seguintes valores (Física, Sensorial, P. Cerebral, Enf. Mental, D. Intelectual, Psíquica) | I32: subvención, sempre se pode repoñer copiando a fórmula correspondente dunha celda que faga
A33: Grao | C33: 4 | D33: Numérico | E33: % de discapacidade do traballador | I33: ese mesmo cálculo para outra persoa traballadora
A34: Tipo | C34: 11 | D34: Texto | E34: lista despregable donde se indica si a discapacidade do traballador é Provisional, Definitiva ou si é Pensionista con consideración de persoa con discapacidade (o contrato debe ser anterior a 29/11/2018)
A35: Data Alta | C35: 6 | D35: Data dd/mm/aa | E35: Data de inicio da relación laboral (data de alta do contrato de traballo)
A36: Data Baixa | C36: 6 | D36: Data dd/mm/aa | E36: Data de finalización da relación laboral (data de baixa do contrato de traballo)
A37: Contrato Código | C37: 3 | D37: Numérico | E37: Lista desplegable. Código do contrato de traballo según a codificación do INSS (*) | H37: (*)No caso de contratos 402 ou 502 débese indicar a data de finalización do mesmo
A38: Contrato Tipo | C38: 4 | D38: Texto | E38: Sinala si o contrato de traballo é de carácter indefinido (Ind) ou temporal (Temp) | F38: Non se cubre | G38: Autocalculado
A39: Rateo | C39: 3 | D39: Texto | E39: Lista despregable de dous valores (Si - Non) Indica si nas retribucións percibidas mensualmente pola persoa traballadora se inclúe ou non a Parte proporcional das Pagas Extraordinarias (só a efectos de clasificación, os cálculos das achegas mensuais xa incluen a p.p. da paga extraordinaria)
A40: % Xornada | C40: 4 | D40: Numérico | E40: % de Xornada da persoa traballadora no mes de inicio do período subvencionable
A41: Tipo de achega | D41: Texto | E41: Indica o tipo de achega que se pericibe por cada traballador, equivalente a porcentaxe do SMI que corresponda segundo o beneficiario mais a parte proporcional da paga extraordinaria que lle corresponda por mes | F41: Non se cubre | G41: Autocalculado
A42: Días | D42: Numérico | E42: Número de días que se solicitan por cada persoa traballadora | F42: Non se cubre | G42: Autocalculado
A43: Achega Mensual | D43: Numérico | E43: Importe da subvención mensual correspondente a cada persoa traballadora | F43: Non se cubre | G43: Autocalculado
A44: % Xornada | D44: Numérico | E44: % de xornada da persoa traballadora correspondente á liquidación do complemento de vacacións | F44: Non se cubre | G44: Autocalculado
A45: Días | D45: Numérico | E45: Número de días que se solicitan por cada persoa traballadora polo complemento de vacacións nos casos de finalización de contratos de traballo e que estas foran cotizadas en non disfrutadas pola persoa traballadora | F45: Non se cubre | G45: Autocalculado
A46: Comp. Vacacións | D46: Numérico | E46: Importe da subvención correspondente ao complemento de vacacións cotizadas en non disfrutadas | F46: Non se cubre | G46: Autocalculado
A47: Certific | D47: Texto | E47: Campo indicativo de que a persoa traballador se inclúe na certificación do mes | F47: Non se cubre | G47: Autocalculado
A48: Días Absentismo | D48: Numérico | E48: Número de días que se descontarán en casos de absentismo
A49: IT AT | D49: Texto | E49: Lista desplebabel de dous valores (IT-AT) donde si indicará si a baixa laboral é por Incapacidade Temporal ou por Accidente de Traballo
A50: Baixa | D50: Data dd/mm/aa | E50: Data de inicio da baixa por enfermidade ou accidente de traballo
A51: Alta | D51: Data dd/mm/aa | E51: Data de finalización da baixa por enfermidade ou accidente de traballo
A52: Conv Baixa | D52: Texto | E52: lista despregable para indicar si, nalgún caso específico e para esa persoa traballadora, os calculos das baixas por enfermidade correspondense co que dispoña a normativa da Seguridade Social ou si hai un convenio colectivo de aplicación específica
A53: Interinidade | D53: Texto | E53: Nº do DNI ou NIF da persoa traballadora sustituida. So se cubre para os contratos 410 e 510
A54: Observacións | D54: Texto
